Workbook

Sheet Info
C7: File name | D7: Front end Programul Operational pentru Pescuit si Afaceri Maritime
C8: Author | D8: Cambridge Econometrics
C9: Client | D9: Ministerul Investițiilor și Proiectelor Europene
C10: Project | D10: Evaluarea progresului în îndeplinirea indicatorilor din cadrul de performanță – Tema E
C12: Version | D12: 1
C13: Authorised for release by
C14: Last revised | D14: 2021-07-27
C15: Status | D15: Completed
C16: Source | D16: SMIS
C18: Purpose | D18: To provide forecasts on indicators relating to the Fisheris and Maritme Affairs Operational Programme.
C22: Sheets in this file:
D24: Info | F24: This documentation sheet
D26: Projections | F26: Indicator projections
D28: Achievement_finalised | F28: Data underpinning the estimates of the achievement of finalised projects
D29: Achievement_to_date_ongoing | F29: Data underpinning the estimates of the achievement of ongoing projects
D30: Achievement_forecast_ongoing | F30: Estimates of the achievemnt of ongoing projects. Can be adjusted by the user.
D31: Project_characteristics | F31: Estimates of the average project characteristics and the number of projects starting in the future. Can be adjusted by the user.
D32: Achievement_forecasts_future | F32: Estimates of the achievement of projects starting in the future. Can be adjusted by the user.

Sheet Projections
H2: As percentage of target (%) | L2: Total | P2: Finalised | T2: Ongoing | X2: New
C3: PA | D3: PI | E3: Indicator | F3: Region | G3: Target | H3: 2020 | I3: =+H3+1 -> 2021 | J3: =+I3+1 -> 2022 | K3: 2023 | L3: 2020 | M3: =+L3+1 -> 2021 | N3: =+M3+1 -> 2022 | O3: 2023 | P3: 2020 | Q3: =+P3+1 -> 2021 | R3: =+Q3+1 -> 2022 | S3: 2023 | T3: 2020 | U3: =+T3+1 -> 2021 | V3: =+U3+1 -> 2022 | W3: 2023 | X3: 2020 | Y3: =+X3+1 -> 2021 | Z3: =+Y3+1 -> 2022 | AA3: 2023
C4: 1 | D4: All | E4: 1.3 | F4: All | G4: 8 | H4: =L4/$G4*100 -> 37.5 | I4: =M4/$G4*100 -> 112.5 | J4: =N4/$G4*100 -> 112.5 | K4: 112.5 | L4: =P4+T4+X4 -> 3 | M4: 9 | N4: 9 | O4: 9 | P4: =Achievement_finalised!G4 -> 3 | Q4: =P4 -> 3 | R4: =Q4 -> 3 | S4: 3 | T4: =SUMIFS(Achievement_forecast_ongoing!G$6:G$49999,Achievement_forecast_ongoing!$D$6:$D$49999,Projections!$D4,Achievement_forecast_ongoing!$E$6:$E$49999,Projections!$E4,Achievement_forecast_ongoing!$C$6:$C$49999,Projections!$C4,Achievement_forecast_ongoing!$F$6:$F$49999,Projections!$F4) -> 0 | U4: =SUMIFS(Achievement_forecast_ongoing!H$6:H$49999,Achievement_forecast_ongoing!$D$6:$D$49999,Projections!$D4,Achievement_forecast_ongoing!$E$6:$E$49999,Projections!$E4,Achievement_forecast_ongoing!$C$6:$C$49999,Projections!$C4,Achievement_forecast_ongoing!$F$6:$F$49999,Projections!$F4) -> 6 | V4: =SUMIFS(Achievement_forecast_ongoing!I$6:I$49999,Achievement_forecast_ongoing!$D$6:$D$49999,Projections!$D4,Achievement_forecast_ongoing!$E$6:$E$49999,Projections!$E4,Achievement_forecast_ongoing!$C$6:$C$49999,Projections!$C4,Achievement_forecast_ongoing!$F$6:$F$49999,Projections!$F4) -> 6 | W4: =SUMIFS(Achievement_forecast_ongoing!J$6:J$49999,Achievement_forecast_ongoing!$D$6:$D$49999,Projections!$D4,Achievement_forecast_ongoing!$E$6:$E$49999,Projections!$E4,Achievement_forecast_ongoing!$C$6:$C$49999,Projections!$C4,Achievement_forecast_ongoing!$F$6:$F$49999,Projections!$F4) -> 6 | X4: =Achievement_forecasts_future!G4 -> 0 | Y4: =Achievement_forecasts_future!H4 -> 0 | Z4: =Achievement_forecasts_future!I4 -> 0 | AA4: =Achievement_forecasts_future!J4 -> 0
C5: 1 | D5: All | E5: 1F | F5: All | G5: =5023169*G21 -> 24493474.36 | H5: =L5/$G5*100 -> 20.55645668 | I5: 45.38596009 | J5: 48.82948744 | K5: 53.70978282 | L5: 5034990.446 | M5: 11116598.5 | N5: 11960037.99 | O5: 13155391.88 | P5: =Achievement_finalised!G5 -> 821332.8 | Q5: =P5 -> 821332.8 | R5: 821332.8 | S5: 821332.8 | T5: =SUMIFS(Achievement_forecast_ongoing!G$6:G$49999,Achievement_forecast_ongoing!$D$6:$D$49999,Projections!$D5,Achievement_forecast_ongoing!$E$6:$E$49999,Projections!$E5,Achievement_forecast_ongoing!$C$6:$C$49999,Projections!$C5,Achievement_forecast_ongoing!$F$6:$F$49999,Projections!$F5) -> 4213657.646 | U5: =SUMIFS(Achievement_forecast_ongoing!H$6:H$49999,Achievement_forecast_ongoing!$D$6:$D$49999,Projections!$D5,Achievement_forecast_ongoing!$E$6:$E$49999,Projections!$E5,Achievement_forecast_ongoing!$C$6:$C$49999,Projections!$C5,Achievement_forecast_ongoing!$F$6:$F$49999,Projections!$F5) -> 10295265.7 | V5: =SUMIFS(Achievement_forecast_ongoing!I$6:I$49999,Achievement_forecast_ongoing!$D$6:$D$49999,Projections!$D5,Achievement_forecast_ongoing!$E$6:$E$49999,Projections!$E5,Achievement_forecast_ongoing!$C$6:$C$49999,Projections!$C5,Achievement_forecast_ongoing!$F$6:$F$49999,Projections!$F5) -> 10295265.7 | W5: =SUMIFS(Achievement_forecast_ongoing!J$6:J$49999,Achievement_forecast_ongoing!$D$6:$D$49999,Projections!$D5,Achievement_forecast_ongoing!$E$6:$E$49999,Projections!$E5,Achievement_forecast_ongoing!$C$6:$C$49999,Projections!$C5,Achievement_forecast_ongoing!$F$6:$F$49999,Projections!$F5) -> 10295265.7 | X5: =Achievement_forecasts_future!G5 -> 0 | Y5: =Achievement_forecasts_future!H5 -> 0 | Z5: =Achievement_forecasts_future!I5 -> 843439.4886 | AA5: =Achievement_forecasts_future!J5 -> 2038793.386
C6: 2 | D6: All | E6: 1F | F6: All | G6: =121402849*G21 -> 591972432 | H6: 38.82095774 | I6: 63.04299621 | J6: 67.71630517 | K6: 68.1698264 | L6: 229809367.6 | M6: 373197157.9 | N6: 400861858.6 | O6: 403546579.2 | P6: =Achievement_finalised!G6 -> 191788147.8 | Q6: 191788147.8 | R6: 191788147.8 | S6: 191788147.8 | T6: =SUMIFS(Achievement_forecast_ongoing!G$6:G$49999,Achievement_forecast_ongoing!$D$6:$D$49999,Projections!$D6,Achievement_forecast_ongoing!$E$6:$E$49999,Projections!$E6,Achievement_forecast_ongoing!$C$6:$C$49999,Projections!$C6,Achievement_forecast_ongoing!$F$6:$F$49999,Projections!$F6) -> 38021219.84 | U6: =SUMIFS(Achievement_forecast_ongoing!H$6:H$49999,Achievement_forecast_ongoing!$D$6:$D$49999,Projections!$D6,Achievement_forecast_ongoing!$E$6:$E$49999,Projections!$E6,Achievement_forecast_ongoing!$C$6:$C$49999,Projections!$C6,Achievement_forecast_ongoing!$F$6:$F$49999,Projections!$F6) -> 181409010.1 | V6: =SUMIFS(Achievement_forecast_ongoing!I$6:I$49999,Achievement_forecast_ongoing!$D$6:$D$49999,Projections!$D6,Achievement_forecast_ongoing!$E$6:$E$49999,Projections!$E6,Achievement_forecast_ongoing!$C$6:$C$49999,Projections!$C6,Achievement_forecast_ongoing!$F$6:$F$49999,Projections!$F6) -> 192252954.1 | W6: =SUMIFS(Achievement_forecast_ongoing!J$6:J$49999,Achievement_forecast_ongoing!$D$6:$D$49999,Projections!$D6,Achievement_forecast_ongoing!$E$6:$E$49999,Projections!$E6,Achievement_forecast_ongoing!$C$6:$C$49999,Projections!$C6,Achievement_forecast_ongoing!$F$6:$F$49999,Projections!$F6) -> 192430943.7 | X6: =Achievement_forecasts_future!G6 -> 0 | Y6: =Achievement_forecasts_future!H6 -> 0 | Z6: =Achievement_forecasts_future!I6 -> 16820756.67 | AA6: =Achievement_forecasts_future!J6 -> 19327487.76
C7: 2 | D7: All | E7: 2.2 | F7: All | G7: 105 | H7: 42.85714286 | I7: 77.14285714 | J7: 98.0952381 | K7: 110.1218162 | L7: 45 | M7: 81 | N7: 103 | O7: 115.627907 | P7: =Achievement_finalised!G7 -> 45 | Q7: 45 | R7: 45 | S7: 45 | T7: =SUMIFS(Achievement_forecast_ongoing!G$6:G$49999,Achievement_forecast_ongoing!$D$6:$D$49999,Projections!$D7,Achievement_forecast_ongoing!$E$6:$E$49999,Projections!$E7,Achievement_forecast_ongoing!$C$6:$C$49999,Projections!$C7,Achievement_forecast_ongoing!$F$6:$F$49999,Projections!$F7) -> 0 | U7: =SUMIFS(Achievement_forecast_ongoing!H$6:H$49999,Achievement_forecast_ongoing!$D$6:$D$49999,Projections!$D7,Achievement_forecast_ongoing!$E$6:$E$49999,Projections!$E7,Achievement_forecast_ongoing!$C$6:$C$49999,Projections!$C7,Achievement_forecast_ongoing!$F$6:$F$49999,Projections!$F7) -> 36 | V7: =SUMIFS(Achievement_forecast_ongoing!I$6:I$49999,Achievement_forecast_ongoing!$D$6:$D$49999,Projections!$D7,Achievement_forecast_ongoing!$E$6:$E$49999,Projections!$E7,Achievement_forecast_ongoing!$C$6:$C$49999,Projections!$C7,Achievement_forecast_ongoing!$F$6:$F$49999,Projections!$F7) -> 58 | W7: =SUMIFS(Achievement_forecast_ongoing!J$6:J$49999,Achievement_forecast_ongoing!$D$6:$D$49999,Projections!$D7,Achievement_forecast_ongoing!$E$6:$E$49999,Projections!$E7,Achievement_forecast_ongoing!$C$6:$C$49999,Projections!$C7,Achievement_forecast_ongoing!$F$6:$F$49999,Projections!$F7) -> 67 | X7: =Achievement_forecasts_future!G7 -> 0 | Y7: =Achievement_forecasts_future!H7 -> 0 | Z7: =Achievement_forecasts_future!I7 -> 0 | AA7: =Achievement_forecasts_future!J7 -> 3.627906977
C8: 2 | D8: All | E8: 2.3 | F8: All | G8: 62 | H8: 72.58064516 | I8: 72.58064516 | J8: 72.58064516 | K8: 78.10702676 | L8: 45 | M8: 45 | N8: 45 | O8: 48.42635659 | P8: =Achievement_finalised!G8 -> 45 | Q8: 45 | R8: 45 | S8: 45 | T8: =SUMIFS(Achievement_forecast_ongoing!G$6:G$49999,Achievement_forecast_ongoing!$D$6:$D$49999,Projections!$D8,Achievement_forecast_ongoing!$E$6:$E$49999,Projections!$E8,Achievement_forecast_ongoing!$C$6:$C$49999,Projections!$C8,Achievement_forecast_ongoing!$F$6:$F$49999,Projections!$F8) -> 0 | U8: =SUMIFS(Achievement_forecast_ongoing!H$6:H$49999,Achievement_forecast_ongoing!$D$6:$D$49999,Projections!$D8,Achievement_forecast_ongoing!$E$6:$E$49999,Projections!$E8,Achievement_forecast_ongoing!$C$6:$C$49999,Projections!$C8,Achievement_forecast_ongoing!$F$6:$F$49999,Projections!$F8) -> 0 | V8: =SUMIFS(Achievement_forecast_ongoing!I$6:I$49999,Achievement_forecast_ongoing!$D$6:$D$49999,Projections!$D8,Achievement_forecast_ongoing!$E$6:$E$49999,Projections!$E8,Achievement_forecast_ongoing!$C$6:$C$49999,Projections!$C8,Achievement_forecast_ongoing!$F$6:$F$49999,Projections!$F8) -> 0 | W8: =SUMIFS(Achievement_forecast_ongoing!J$6:J$49999,Achievement_forecast_ongoing!$D$6:$D$49999,Projections!$D8,Achievement_forecast_ongoing!$E$6:$E$49999,Projections!$E8,Achievement_forecast_ongoing!$C$6:$C$49999,Projections!$C8,Achievement_forecast_ongoing!$F$6:$F$49999,Projections!$F8) -> 0 | X8: =Achievement_forecasts_future!G8 -> 0 | Y8: =Achievement_forecasts_future!H8 -> 0 | Z8: =Achievement_forecasts_future!I8 -> 0 | AA8: =Achievement_forecasts_future!J8 -> 3.426356589
C9: 3 | D9: All | E9: 1F | F9: All | G9: =16521678*G21 -> 80561354.1 | H9: 24.35666828 | I9: 24.35666828 | J9: 27.93260978 | K9: 28.41611299 | L9: 19622061.78 | M9: 19622061.78 | N9: 22502888.67 | O9: 22892405.41 | P9: =Achievement_finalised!G9 -> 19622061.78 | Q9: 19622061.78 | R9: 19622061.78 | S9: 19622061.78 | T9: =SUMIFS(Achievement_forecast_ongoing!G$6:G$49999,Achievement_forecast_ongoing!$D$6:$D$49999,Projections!$D9,Achievement_forecast_ongoing!$E$6:$E$49999,Projections!$E9,Achievement_forecast_ongoing!$C$6:$C$49999,Projections!$C9,Achievement_forecast_ongoing!$F$6:$F$49999,Projections!$F9) -> 0 | U9: =SUMIFS(Achievement_forecast_ongoing!H$6:H$49999,Achievement_forecast_ongoing!$D$6:$D$49999,Projections!$D9,Achievement_forecast_ongoing!$E$6:$E$49999,Projections!$E9,Achievement_forecast_ongoing!$C$6:$C$49999,Projections!$C9,Achievement_forecast_ongoing!$F$6:$F$49999,Projections!$F9) -> 0 | V9: =SUMIFS(Achievement_forecast_ongoing!I$6:I$49999,Achievement_forecast_ongoing!$D$6:$D$49999,Projections!$D9,Achievement_forecast_ongoing!$E$6:$E$49999,Projections!$E9,Achievement_forecast_ongoing!$C$6:$C$49999,Projections!$C9,Achievement_forecast_ongoing!$F$6:$F$49999,Projections!$F9) -> 0 | W9: =SUMIFS(Achievement_forecast_ongoing!J$6:J$49999,Achievement_forecast_ongoing!$D$6:$D$49999,Projections!$D9,Achievement_forecast_ongoing!$E$6:$E$49999,Projections!$E9,Achievement_forecast_ongoing!$C$6:$C$49999,Projections!$C9,Achievement_forecast_ongoing!$F$6:$F$49999,Projections!$F9) -> 0 | X9: =Achievement_forecasts_future!G9 -> 0 | Y9: =Achievement_forecasts_future!H9 -> 0 | Z9: =Achievement_forecasts_future!I9 -> 2880826.889 | AA9: =Achievement_forecasts_future!J9 -> 3270343.63
C10: 3 | D10: All | E10: 3.1 | F10: All | G10: 7 | H10: 42.85714286 | I10: 42.85714286 | J10: 42.85714286 | K10: 42.85714286 | L10: 3 | M10: 3 | N10: 3 | O10: 3 | P10: =Achievement_finalised!G10 -> 3 | Q10: 3 | R10: 3 | S10: 3 | T10: =SUMIFS(Achievement_forecast_ongoing!G$6:G$49999,Achievement_forecast_ongoing!$D$6:$D$49999,Projections!$D10,Achievement_forecast_ongoing!$E$6:$E$49999,Projections!$E10,Achievement_forecast_ongoing!$C$6:$C$49999,Projections!$C10,Achievement_forecast_ongoing!$F$6:$F$49999,Projections!$F10) -> 0 | U10: =SUMIFS(Achievement_forecast_ongoing!H$6:H$49999,Achievement_forecast_ongoing!$D$6:$D$49999,Projections!$D10,Achievement_forecast_ongoing!$E$6:$E$49999,Projections!$E10,Achievement_forecast_ongoing!$C$6:$C$49999,Projections!$C10,Achievement_forecast_ongoing!$F$6:$F$49999,Projections!$F10) -> 0 | V10: =SUMIFS(Achievement_forecast_ongoing!I$6:I$49999,Achievement_forecast_ongoing!$D$6:$D$49999,Projections!$D10,Achievement_forecast_ongoing!$E$6:$E$49999,Projections!$E10,Achievement_forecast_ongoing!$C$6:$C$49999,Projections!$C10,Achievement_forecast_ongoing!$F$6:$F$49999,Projections!$F10) -> 0 | W10: =SUMIFS(Achievement_forecast_ongoing!J$6:J$49999,Achievement_forecast_ongoing!$D$6:$D$49999,Projections!$D10,Achievement_forecast_ongoing!$E$6:$E$49999,Projections!$E10,Achievement_forecast_ongoing!$C$6:$C$49999,Projections!$C10,Achievement_forecast_ongoing!$F$6:$F$49999,Projections!$F10) -> 0 | X10: =Achievement_forecasts_future!G10 -> 0 | Y10: =Achievement_forecasts_future!H10 -> 0 | Z10: =Achievement_forecasts_future!I10 -> 0 | AA10: =Achievement_forecasts_future!J10 -> 0
C11: 3 | D11: All | E11: 3.2 | F11: All | G11: 2 | H11: 50 | I11: 50 | J11: 50 | K11: 100 | L11: 1 | M11: 1 | N11: 1 | O11: 2 | P11: =Achievement_finalised!G11 -> 1 | Q11: 1 | R11: 1 | S11: 1 | T11: =SUMIFS(Achievement_forecast_ongoing!G$6:G$49999,Achievement_forecast_ongoing!$D$6:$D$49999,Projections!$D11,Achievement_forecast_ongoing!$E$6:$E$49999,Projections!$E11,Achievement_forecast_ongoing!$C$6:$C$49999,Projections!$C11,Achievement_forecast_ongoing!$F$6:$F$49999,Projections!$F11) -> 0 | U11: =SUMIFS(Achievement_forecast_ongoing!H$6:H$49999,Achievement_forecast_ongoing!$D$6:$D$49999,Projections!$D11,Achievement_forecast_ongoing!$E$6:$E$49999,Projections!$E11,Achievement_forecast_ongoing!$C$6:$C$49999,Projections!$C11,Achievement_forecast_ongoing!$F$6:$F$49999,Projections!$F11) -> 0 | V11: =SUMIFS(Achievement_forecast_ongoing!I$6:I$49999,Achievement_forecast_ongoing!$D$6:$D$49999,Projections!$D11,Achievement_forecast_ongoing!$E$6:$E$49999,Projections!$E11,Achievement_forecast_ongoing!$C$6:$C$49999,Projections!$C11,Achievement_forecast_ongoing!$F$6:$F$49999,Projections!$F11) -> 0 | W11: =SUMIFS(Achievement_forecast_ongoing!J$6:J$49999,Achievement_forecast_ongoing!$D$6:$D$49999,Projections!$D11,Achievement_forecast_ongoing!$E$6:$E$49999,Projections!$E11,Achievement_forecast_ongoing!$C$6:$C$49999,Projections!$C11,Achievement_forecast_ongoing!$F$6:$F$49999,Projections!$F11) -> 0 | X11: =Achievement_forecasts_future!G11 -> 0 | Y11: =Achievement_forecasts_future!H11 -> 0 | Z11: =Achievement_forecasts_future!I11 -> 0 | AA11: =Achievement_forecasts_future!J11 -> 1
C12: 4 | D12: All | E12: 1F | F12: All | G12: =49904862*G21 -> 243341097.6 | H12: 30.87397774 | I12: 69.51206574 | J12: 71.94957341 | K12: 72.65201659 | L12: 75129076.29 | M12: 169151423.7 | N12: 175082881.7 | O12: 176792214.6 | P12: =Achievement_finalised!G12 -> 39438240.27 | Q12: 39438240.27 | R12: 39438240.27 | S12: 39438240.27 | T12: =SUMIFS(Achievement_forecast_ongoing!G$6:G$49999,Achievement_forecast_ongoing!$D$6:$D$49999,Projections!$D12,Achievement_forecast_ongoing!$E$6:$E$49999,Projections!$E12,Achievement_forecast_ongoing!$C$6:$C$49999,Projections!$C12,Achievement_forecast_ongoing!$F$6:$F$49999,Projections!$F12) -> 35690836.02 | U12: =SUMIFS(Achievement_forecast_ongoing!H$6:H$49999,Achievement_forecast_ongoing!$D$6:$D$49999,Projections!$D12,Achievement_forecast_ongoing!$E$6:$E$49999,Projections!$E12,Achievement_forecast_ongoing!$C$6:$C$49999,Projections!$C12,Achievement_forecast_ongoing!$F$6:$F$49999,Projections!$F12) -> 129713183.5 | V12: =SUMIFS(Achievement_forecast_ongoing!I$6:I$49999,Achievement_forecast_ongoing!$D$6:$D$49999,Projections!$D12,Achievement_forecast_ongoing!$E$6:$E$49999,Projections!$E12,Achievement_forecast_ongoing!$C$6:$C$49999,Projections!$C12,Achievement_forecast_ongoing!$F$6:$F$49999,Projections!$F12) -> 133810690.7 | W12: =SUMIFS(Achievement_forecast_ongoing!J$6:J$49999,Achievement_forecast_ongoing!$D$6:$D$49999,Projections!$D12,Achievement_forecast_ongoing!$E$6:$E$49999,Projections!$E12,Achievement_forecast_ongoing!$C$6:$C$49999,Projections!$C12,Achievement_forecast_ongoing!$F$6:$F$49999,Projections!$F12) -> 135121621.1 | X12: =Achievement_forecasts_future!G12 -> 0 | Y12: =Achievement_forecasts_future!H12 -> 0 | Z12: =Achievement_forecasts_future!I12 -> 1833950.73 | AA12: =Achievement_forecasts_future!J12 -> 2232353.223
C13: 4 | D13: All | E13: 4.1 | F13: All | G13: 22 | H13: 100 | I13: 100 | J13: 100 | K13: 100 | L13: 22 | M13: 22 | N13: 22 | O13: 22 | P13: =Achievement_finalised!G13 -> 22 | Q13: 22 | R13: 22 | S13: 22 | T13: =SUMIFS(Achievement_forecast_ongoing!G$6:G$49999,Achievement_forecast_ongoing!$D$6:$D$49999,Projections!$D13,Achievement_forecast_ongoing!$E$6:$E$49999,Projections!$E13,Achievement_forecast_ongoing!$C$6:$C$49999,Projections!$C13,Achievement_forecast_ongoing!$F$6:$F$49999,Projections!$F13) -> 0 | U13: =SUMIFS(Achievement_forecast_ongoing!H$6:H$49999,Achievement_forecast_ongoing!$D$6:$D$49999,Projections!$D13,Achievement_forecast_ongoing!$E$6:$E$49999,Projections!$E13,Achievement_forecast_ongoing!$C$6:$C$49999,Projections!$C13,Achievement_forecast_ongoing!$F$6:$F$49999,Projections!$F13) -> 0 | V13: =SUMIFS(Achievement_forecast_ongoing!I$6:I$49999,Achievement_forecast_ongoing!$D$6:$D$49999,Projections!$D13,Achievement_forecast_ongoing!$E$6:$E$49999,Projections!$E13,Achievement_forecast_ongoing!$C$6:$C$49999,Projections!$C13,Achievement_forecast_ongoing!$F$6:$F$49999,Projections!$F13) -> 0 | W13: =SUMIFS(Achievement_forecast_ongoing!J$6:J$49999,Achievement_forecast_ongoing!$D$6:$D$49999,Projections!$D13,Achievement_forecast_ongoing!$E$6:$E$49999,Projections!$E13,Achievement_forecast_ongoing!$C$6:$C$49999,Projections!$C13,Achievement_forecast_ongoing!$F$6:$F$49999,Projections!$F13) -> 0 | X13: =Achievement_forecasts_future!G13 -> 0 | Y13: =Achievement_forecasts_future!H13 -> 0 | Z13: =Achievement_forecasts_future!I13 -> 0 | AA13: =Achievement_forecasts_future!J13 -> 0
C14: 4 | D14: All | E14: 4.2 | F14: All | G14: 28 | H14: 100 | I14: 100 | J14: 100 | K14: 100 | L14: 28 | M14: 28 | N14: 28 | O14: 28 | P14: =Achievement_finalised!G14 -> 28 | Q14: 28 | R14: 28 | S14: 28 | T14: =IF(SUMIFS(Achievement_forecast_ongoing!G$6:G$49999,Achievement_forecast_ongoing!$D$6:$D$49999,Projections!$D14,Achievement_forecast_ongoing!$E$6:$E$49999,Projections!$E14,Achievement_forecast_ongoing!$C$6:$C$49999,Projections!$C14,Achievement_forecast_ongoing!$F$6:$F$49999,Projections!$F14)>=0,0,SUMIFS(Achievement_forecast_ongoing!G$6:G$49999,Achievement_forecast_ongoing!$D$6:$D$49999,Projections!$D14,Achievement_forecast_ongoing!$E$6:$E$49999,Projections!$E14,Achievement_forecast_ongoing!$C$6:$C$49999,Projections!$C14,Achievement_forecast_ongoing!$F$6:$F$49999,Projections!$F14)) -> 0 | U14: =IF(SUMIFS(Achievement_forecast_ongoing!H$6:H$49999,Achievement_forecast_ongoing!$D$6:$D$49999,Projections!$D14,Achievement_forecast_ongoing!$E$6:$E$49999,Projections!$E14,Achievement_forecast_ongoing!$C$6:$C$49999,Projections!$C14,Achievement_forecast_ongoing!$F$6:$F$49999,Projections!$F14)>=0,0,SUMIFS(Achievement_forecast_ongoing!H$6:H$49999,Achievement_forecast_ongoing!$D$6:$D$49999,Projections!$D14,Achievement_forecast_ongoing!$E$6:$E$49999,Projections!$E14,Achievement_forecast_ongoing!$C$6:$C$49999,Projections!$C14,Achievement_forecast_ongoing!$F$6:$F$49999,Projections!$F14)) -> 0 | V14: =IF(SUMIFS(Achievement_forecast_ongoing!I$6:I$49999,Achievement_forecast_ongoing!$D$6:$D$49999,Projections!$D14,Achievement_forecast_ongoing!$E$6:$E$49999,Projections!$E14,Achievement_forecast_ongoing!$C$6:$C$49999,Projections!$C14,Achievement_forecast_ongoing!$F$6:$F$49999,Projections!$F14)>=0,0,SUMIFS(Achievement_forecast_ongoing!I$6:I$49999,Achievement_forecast_ongoing!$D$6:$D$49999,Projections!$D14,Achievement_forecast_ongoing!$E$6:$E$49999,Projections!$E14,Achievement_forecast_ongoing!$C$6:$C$49999,Projections!$C14,Achievement_forecast_ongoing!$F$6:$F$49999,Projections!$F14)) -> 0 | W14: =IF(SUMIFS(Achievement_forecast_ongoing!J$6:J$49999,Achievement_forecast_ongoing!$D$6:$D$49999,Projections!$D14,Achievement_forecast_ongoing!$E$6:$E$49999,Projections!$E14,Achievement_forecast_ongoing!$C$6:$C$49999,Projections!$C14,Achievement_forecast_ongoing!$F$6:$F$49999,Projections!$F14)>=0,0,SUMIFS(Achievement_forecast_ongoing!J$6:J$49999,Achievement_forecast_ongoing!$D$6:$D$49999,Projections!$D14,Achievement_forecast_ongoing!$E$6:$E$49999,Projections!$E14,Achievement_forecast_ongoing!$C$6:$C$49999,Projections!$C14,Achievement_forecast_ongoing!$F$6:$F$49999,Projections!$F14)) -> 0 | X14: =Achievement_forecasts_future!G14 -> 0 | Y14: =Achievement_forecasts_future!H14 -> 0 | Z14: =Achievement_forecasts_future!I14 -> 0 | AA14: =Achievement_forecasts_future!J14 -> 0
C15: 5 | D15: All | E15: 1F | F15: All | G15: =10586891*G21 -> 51622739.21 | H15: 69.69151611 | I15: 84.87554683 | J15: 85.5986607 | K15: 85.5986607 | L15: 35976669.61 | M15: 43815082.19 | N15: 44188373.38 | O15: 44188373.38 | P15: =Achievement_finalised!G15 -> 24114687.28 | Q15: 24114687.28 | R15: 24114687.28 | S15: 24114687.28 | T15: =SUMIFS(Achievement_forecast_ongoing!G$6:G$49999,Achievement_forecast_ongoing!$D$6:$D$49999,Projections!$D15,Achievement_forecast_ongoing!$E$6:$E$49999,Projections!$E15,Achievement_forecast_ongoing!$C$6:$C$49999,Projections!$C15,Achievement_forecast_ongoing!$F$6:$F$49999,Projections!$F15) -> 11861982.33 | U15: =SUMIFS(Achievement_forecast_ongoing!H$6:H$49999,Achievement_forecast_ongoing!$D$6:$D$49999,Projections!$D15,Achievement_forecast_ongoing!$E$6:$E$49999,Projections!$E15,Achievement_forecast_ongoing!$C$6:$C$49999,Projections!$C15,Achievement_forecast_ongoing!$F$6:$F$49999,Projections!$F15) -> 19700394.91 | V15: =SUMIFS(Achievement_forecast_ongoing!I$6:I$49999,Achievement_forecast_ongoing!$D$6:$D$49999,Projections!$D15,Achievement_forecast_ongoing!$E$6:$E$49999,Projections!$E15,Achievement_forecast_ongoing!$C$6:$C$49999,Projections!$C15,Achievement_forecast_ongoing!$F$6:$F$49999,Projections!$F15) -> 20073686.1 | W15: =SUMIFS(Achievement_forecast_ongoing!J$6:J$49999,Achievement_forecast_ongoing!$D$6:$D$49999,Projections!$D15,Achievement_forecast_ongoing!$E$6:$E$49999,Projections!$E15,Achievement_forecast_ongoing!$C$6:$C$49999,Projections!$C15,Achievement_forecast_ongoing!$F$6:$F$49999,Projections!$F15) -> 20073686.1 | X15: =Achievement_forecasts_future!G15 -> 0 | Y15: =Achievement_forecasts_future!H15 -> 0 | Z15: =Achievement_forecasts_future!I15 -> 0 | AA15: =Achievement_forecasts_future!J15 -> 0
C16: 5 | D16: All | E16: 5.3 | F16: All | G16: 21 | H16: 52.38095238 | I16: 57.14285714 | J16: 85.71428571 | K16: 85.71428571 | L16: 11 | M16: 12 | N16: 18 | O16: 18 | P16: =Achievement_finalised!G16 -> 11 | Q16: 11 | R16: 11 | S16: 11 | T16: =SUMIFS(Achievement_forecast_ongoing!G$6:G$49999,Achievement_forecast_ongoing!$D$6:$D$49999,Projections!$D16,Achievement_forecast_ongoing!$E$6:$E$49999,Projections!$E16,Achievement_forecast_ongoing!$C$6:$C$49999,Projections!$C16,Achievement_forecast_ongoing!$F$6:$F$49999,Projections!$F16) -> 0 | U16: =SUMIFS(Achievement_forecast_ongoing!H$6:H$49999,Achievement_forecast_ongoing!$D$6:$D$49999,Projections!$D16,Achievement_forecast_ongoing!$E$6:$E$49999,Projections!$E16,Achievement_forecast_ongoing!$C$6:$C$49999,Projections!$C16,Achievement_forecast_ongoing!$F$6:$F$49999,Projections!$F16) -> 1 | V16: =SUMIFS(Achievement_forecast_ongoing!I$6:I$49999,Achievement_forecast_ongoing!$D$6:$D$49999,Projections!$D16,Achievement_forecast_ongoing!$E$6:$E$49999,Projections!$E16,Achievement_forecast_ongoing!$C$6:$C$49999,Projections!$C16,Achievement_forecast_ongoing!$F$6:$F$49999,Projections!$F16) -> 7 | W16: =SUMIFS(Achievement_forecast_ongoing!J$6:J$49999,Achievement_forecast_ongoing!$D$6:$D$49999,Projections!$D16,Achievement_forecast_ongoing!$E$6:$E$49999,Projections!$E16,Achievement_forecast_ongoing!$C$6:$C$49999,Projections!$C16,Achievement_forecast_ongoing!$F$6:$F$49999,Projections!$F16) -> 7 | X16: =Achievement_forecasts_future!G16 -> 0 | Y16: =Achievement_forecasts_future!H16 -> 0 | Z16: =Achievement_forecasts_future!I16 -> 0 | AA16: =Achievement_forecasts_future!J16 -> 0
C17: 6 | D17: All | E17: 6.1 | F17: All | G17: 1 | H17: 100 | I17: 100 | J17: 100 | K17: 100 | L17: 1 | M17: 1 | N17: 1 | O17: 1 | P17: =Achievement_finalised!G18 -> 1 | Q17: 1 | R17: 1 | S17: 1 | T17: =SUMIFS(Achievement_forecast_ongoing!G$6:G$49999,Achievement_forecast_ongoing!$D$6:$D$49999,Projections!$D17,Achievement_forecast_ongoing!$E$6:$E$49999,Projections!$E17,Achievement_forecast_ongoing!$C$6:$C$49999,Projections!$C17,Achievement_forecast_ongoing!$F$6:$F$49999,Projections!$F17) -> 0 | U17: =SUMIFS(Achievement_forecast_ongoing!H$6:H$49999,Achievement_forecast_ongoing!$D$6:$D$49999,Projections!$D17,Achievement_forecast_ongoing!$E$6:$E$49999,Projections!$E17,Achievement_forecast_ongoing!$C$6:$C$49999,Projections!$C17,Achievement_forecast_ongoing!$F$6:$F$49999,Projections!$F17) -> 0 | V17: =SUMIFS(Achievement_forecast_ongoing!I$6:I$49999,Achievement_forecast_ongoing!$D$6:$D$49999,Projections!$D17,Achievement_forecast_ongoing!$E$6:$E$49999,Projections!$E17,Achievement_forecast_ongoing!$C$6:$C$49999,Projections!$C17,Achievement_forecast_ongoing!$F$6:$F$49999,Projections!$F17) -> 0 | W17: =SUMIFS(Achievement_forecast_ongoing!J$6:J$49999,Achievement_forecast_ongoing!$D$6:$D$49999,Projections!$D17,Achievement_forecast_ongoing!$E$6:$E$49999,Projections!$E17,Achievement_forecast_ongoing!$C$6:$C$49999,Projections!$C17,Achievement_forecast_ongoing!$F$6:$F$49999,Projections!$F17) -> 0 | X17: =Achievement_forecasts_future!G17 -> 0 | Y17: =Achievement_forecasts_future!H17 -> 0 | Z17: =Achievement_forecasts_future!I17 -> 0 | AA17: =Achievement_forecasts_future!J17 -> 0
C18: 6 | D18: All | E18: 1F | F18: All | G18: =2404470*G21 -> 11724436.17 | H18: =L18/$G18*100 -> 86.41423226 | I18: =M18/$G18*100 -> 86.41423226 | J18: =N18/$G18*100 -> 86.41423226 | K18: =O18/$G18*100 -> 86.41423226 | L18: 10131581.5 | M18: 10131581.5 | N18: 10131581.5 | O18: 10131581.5 | P18: =Achievement_finalised!G17 -> 10131581.5 | Q18: 10131581.5 | R18: 10131581.5 | S18: 10131581.5 | T18: =SUMIFS(Achievement_forecast_ongoing!G$6:G$49999,Achievement_forecast_ongoing!$D$6:$D$49999,Projections!$D18,Achievement_forecast_ongoing!$E$6:$E$49999,Projections!$E18,Achievement_forecast_ongoing!$C$6:$C$49999,Projections!$C18,Achievement_forecast_ongoing!$F$6:$F$49999,Projections!$F18) -> 0 | U18: =SUMIFS(Achievement_forecast_ongoing!H$6:H$49999,Achievement_forecast_ongoing!$D$6:$D$49999,Projections!$D18,Achievement_forecast_ongoing!$E$6:$E$49999,Projections!$E18,Achievement_forecast_ongoing!$C$6:$C$49999,Projections!$C18,Achievement_forecast_ongoing!$F$6:$F$49999,Projections!$F18) -> 0 | V18: =SUMIFS(Achievement_forecast_ongoing!I$6:I$49999,Achievement_forecast_ongoing!$D$6:$D$49999,Projections!$D18,Achievement_forecast_ongoing!$E$6:$E$49999,Projections!$E18,Achievement_forecast_ongoing!$C$6:$C$49999,Projections!$C18,Achievement_forecast_ongoing!$F$6:$F$49999,Projections!$F18) -> 0 | W18: =SUMIFS(Achievement_forecast_ongoing!J$6:J$49999,Achievement_forecast_ongoing!$D$6:$D$49999,Projections!$D18,Achievement_forecast_ongoing!$E$6:$E$49999,Projections!$E18,Achievement_forecast_ongoing!$C$6:$C$49999,Projections!$C18,Achievement_forecast_ongoing!$F$6:$F$49999,Projections!$F18) -> 0 | X18: =Achievement_forecasts_future!G18 -> 0 | Y18: =Achievement_forecasts_future!H18 -> 0 | Z18: =Achievement_forecasts_future!I18 -> 0 | AA18: =Achievement_forecasts_future!J18 -> 0
G21: 4.8761
G22: *curs lei/euro februarie

Sheet Achievement_finalised
B1: Date of extraction | D1: 2021-02-16
B2: Characteristics
B3: PA | C3: PI | D3: Indicator | E3: Region | F3: Type | G3: Cumulative achievement
B4: 1 | C4: All | D4: 1.3 | E4: All | F4: Physical | G4: 3
B5: 1 | C5: All | D5: 1F | E5: All | F5: Financial | G5: 821332.8
B6: 2 | C6: All | D6: 1F | E6: All | F6: Financial | G6: 191788147.8
B7: 2 | C7: All | D7: 2.2 | E7: All | F7: Physical | G7: 45
B8: 2 | C8: All | D8: 2.3 | E8: All | F8: Physical | G8: 45
B9: 3 | C9: All | D9: 1F | E9: All | F9: Financial | G9: 19622061.78
B10: 3 | C10: All | D10: 3.1 | E10: All | F10: Physical | G10: 3
B11: 3 | C11: All | D11: 3.2 | E11: All | F11: Physical | G11: 1
B12: 4 | C12: All | D12: 1F | E12: All | F12: Financial | G12: 39438240.27
B13: 4 | C13: All | D13: 4.1 | E13: All | F13: Physical | G13: 22
B14: 4 | C14: All | D14: 4.2 | E14: All | F14: Physical | G14: 28
B15: 5 | C15: All | D15: 1F | E15: All | F15: Financial | G15: 24114687.28
B16: 5 | C16: All | D16: 5.3 | E16: All | F16: Physical | G16: 11
B17: 6 | C17: All | D17: 1F | E17: All | F17: Financial | G17: 10131581.5
B18: 6 | C18: All | D18: 6.1 | E18: All | F18: Physical | G18: 1

Sheet Achievement_to_date_ongoing
C2: Characteristics | K2: Expected achievement | M2: % complete by the end of year
B3: SMIS CODE | C3: PA | D3: PI | E3: Indicator | F3: Region | G3: Type | H3: Value | I3: Start date | J3: End date | M3: 2020 | N3: 2021 | O3: 2022 | P3: 2023
B4: 122162 | C4: 1 | D4: All | E4: 1.3 | F4: All | G4: Physical | H4: 1 | I4: 2018-07-24 | J4: 2021-03-22 | K4: 1 | M4: 0 | N4: 1 | O4: 1 | P4: 1
B5: 129528 | C5: 1 | D5: All | E5: 1.3 | F5: All | G5: Physical | I5: 2019-09-05 | J5: 2021-09-05 | K5: 1 | M5: 0 | N5: 1 | O5: 1 | P5: 1
B6: 129905 | C6: 1 | D6: All | E6: 1.3 | F6: All | G6: Physical | I6: 2019-09-24 | J6: 2021-09-23 | K6: 1 | M6: 0 | N6: 1 | O6: 1 | P6: 1
B7: 130062 | C7: 1 | D7: All | E7: 1.3 | F7: All | G7: Physical | I7: 2019-12-13 | J7: 2021-12-13 | K7: 1 | M7: 0 | N7: 1 | O7: 1 | P7: 1
B8: 129881 | C8: 1 | D8: All | E8: 1.3 | F8: All | G8: Physical | I8: 2019-09-24 | J8: 2021-11-24 | K8: 1 | M8: 0 | N8: 1 | O8: 1 | P8: 1
B9: 130131 | C9: 1 | D9: All | E9: 1.3 | F9: All | G9: Physical | I9: 2019-10-18 | J9: 2021-10-18 | K9: 1 | M9: 0 | N9: 1 | O9: 1 | P9: 1
B10: 130134 | C10: 1 | D10: All | E10: 1.3 | F10: All | G10: Physical | I10: 2019-09-02 | J10: 2021-07-02 | K10: 1 | M10: 0 | N10: 1 | O10: 1 | P10: 1
B11: 122162 | C11: 1 | D11: All | E11: 1F | F11: All | G11: Financial | H11: 1069585.1 | I11: 2018-07-24 | J11: 2021-03-22 | K11: 1069585.1 | M11: 0.7512499006 | N11: 1 | O11: 1 | P11: 1
B12: 129905 | C12: 1 | D12: All | E12: 1F | F12: All | G12: Financial | H12: 274470.87 | I12: 2019-09-24 | J12: 2021-09-23 | K12: 1116515.597 | M12: 0 | N12: 1 | O12: 1 | P12: 1
B13: 129528 | C13: 1 | D13: All | E13: 1F | F13: All | G13: Financial | H13: 282470.12 | I13: 2019-09-05 | J13: 2021-09-05 | K13: 282470.12 | M13: 0.9970842877 | N13: 1 | O13: 1 | P13: 1
B14: 130134 | C14: 1 | D14: All | E14: 1F | F14: All | G14: Financial | H14: 4726868.27 | I14: 2019-09-02 | J14: 2021-07-02 | K14: 4726868.27 | M14: 0.6502610502 | N14: 1 | O14: 1 | P14: 1
B15: 130062 | C15: 1 | D15: All | E15: 1F | F15: All | G15: Financial | H15: 170730.49 | I15: 2019-12-13 | J15: 2021-12-13 | K15: 866838.146 | M15: 0.0632033811 | N15: 1 | O15: 1 | P15: 1
B16: 129881 | C16: 1 | D16: All | E16: 1F | F16: All | G16: Financial | H16: 0 | I16: 2019-09-24 | J16: 2021-11-24 | K16: 1116493.049 | M16: 0 | N16: 1 | O16: 1 | P16: 1
B17: 130131 | C17: 1 | D17: All | E17: 1F | F17: All | G17: Financial | H17: 0 | I17: 2019-10-18 | J17: 2021-10-18 | K17: 1116495.417 | M17: 0 | N17: 1 | O17: 1 | P17: 1
B18: 127010 | C18: 2 | D18: All | E18: 1F | F18: All | G18: Financial | H18: 950166.06 | I18: 2019-03-13 | J18: 2021-03-13 | K18: 950166.06 | M18: 0.4754254634 | N18: 1 | O18: 1 | P18: 1
B19: 126591 | C19: 2 | D19: All | E19: 1F | F19: All | G19: Financial | H19: 3038074.57 | I19: 2019-05-14 | J19: 2021-05-14 | K19: 3403211.275 | M19: 0.3576916183 | N19: 1 | O19: 1 | P19: 1
B20: 129538 | C20: 2 | D20: All | E20: 1F | F20: All | G20: Financial | H20: 447372.62 | I20: 2019-09-20 | J20: 2021-09-19 | K20: 1138812.119 | M20: 0.2064380558 | N20: 1 | O20: 1 | P20: 1
B21: 126962 | C21: 2 | D21: All | E21: 1F | F21: All | G21: Financial | H21: 2617793.64 | I21: 2019-05-21 | J21: 2021-05-21 | K21: 6931211.591 | M21: 0.3190789895 | N21: 1 | O21: 1 | P21: 1
B22: 129574 | C22: 2 | D22: All | E22: 1F | F22: All | G22: Financial | H22: 242044.51 | I22: 2019-09-03 | J22: 2021-09-03 | K22: 2820095.324 | M22: 0 | N22: 1 | O22: 1 | P22: 1
B23: 121910 | C23: 2 | D23: All | E23: 1F | F23: All | G23: Financial | H23: 4826294.03 | I23: 2018-09-18 | J23: 2021-03-18 | K23: 4826294.03 | M23: 0.9313366312 | N23: 1 | O23: 1 | P23: 1
B24: 127196 | C24: 2 | D24: All | E24: 1F | F24: All | G24: Financial | H24: 3683394.64 | I24: 2019-03-26 | J24: 2021-03-26 | K24: 3683394.64 | M24: 0.9264712818 | N24: 1 | O24: 1 | P24: 1
B25: 135468 | C25: 2 | D25: All | E25: 1F | F25: All | G25: Financial | H25: 184077.27 | I25: 2020-12-15 | J25: 2022-12-14 | K25: 889221.0367 | M25: 0 | N25: 0.8146391136 | O25: 1 | P25: 1
B26: 121892 | C26: 2 | D26: All | E26: 1F | F26: All | G26: Financial | H26: 2901322.01 | I26: 2018-08-23 | J26: 2021-10-23 | K26: 3107765.609 | M26: 0.7887141507 | N26: 1 | O26: 1 | P26: 1
B27: 129853 | C27: 2 | D27: All | E27: 1F | F27: All | G27: Financial | H27: 170149.67 | I27: 2019-10-08 | J27: 2021-10-08 | K27: 5100130.283 | M27: 0.02818524391 | N27: 1 | O27: 1 | P27: 1
B28: 126885 | C28: 2 | D28: All | E28: 1F | F28: All | G28: Financial | H28: 463990.47 | I28: 2018-05-08 | J28: 2021-05-08 | K28: 1371828.635 | M28: 0.1637778575 | N28: 1 | O28: 1 | P28: 1
B29: 129742 | C29: 2 | D29: All | E29: 1F | F29: All | G29: Financial | H29: 3495377.8 | I29: 2019-11-06 | J29: 2021-11-06 | K29: 7852039.489 | M29: 0.3760829157 | N29: 1 | O29: 1 | P29: 1
B30: 129876 | C30: 2 | D30: All | E30: 1F | F30: All | G30: Financial | H30: 409960.54 | I30: 2019-09-06 | J30: 2021-08-31 | K30: 871749.0271 | M30: 0.397303638 | N30: 1 | O30: 1 | P30: 1
B31: 129910 | C31: 2 | D31: All | E31: 1F | F31: All | G31: Financial | H31: 215520.86 | I31: 2019-08-22 | J31: 2021-08-22 | K31: 683562.1066 | M31: 0.1116539303 | N31: 1 | O31: 1 | P31: 1
B32: 135093 | C32: 2 | D32: All | E32: 1F | F32: All | G32: Financial | H32: 4674.3 | I32: 2020-10-05 | J32: 2021-10-04 | K32: 346579.0916 | M32: 0 | N32: 1 | O32: 1 | P32: 1
B33: 129886 | C33: 2 | D33: All | E33: 1F | F33: All | G33: Financial | H33: 930576.8 | I33: 2019-10-04 | J33: 2021-10-03 | K33: 2749693.339 | M33: 0.1364263216 | N33: 1 | O33: 1 | P33: 1
B34: 122048 | C34: 2 | D34: All | E34: 1F | F34: All | G34: Financial | H34: 1779943.94 | I34: 2018-10-19 | J34: 2021-07-18 | K34: 1951816.187 | M34: 0.770440963 | N34: 1 | O34: 1 | P34: 1
B35: 135051 | C35: 2 | D35: All | E35: 1F | F35: All | G35: Financial | H35: 0 | I35: 2021-01-26 | J35: 2023-01-26 | K35: 1863425.06 | M35: 0 | N35: 0.7690074288 | O35: 0.9921985916 | P35: 1
B36: 135364 | C36: 2 | D36: All | E36: 1F | F36: All | G36: Financial | H36: 299387.4 | I36: 2020-09-29 | J36: 2022-09-29 | K36: 7723698.897 | M36: 0 | N36: 0.8808942469 | O36: 1 | P36: 1
B37: 135011 | C37: 2 | D37: All | E37: 1F | F37: All | G37: Financial | H37: 0 | I37: 2021-01-25 | J37: 2023-03-24 | K37: 1801864.333 | M37: 0 | N37: 0.743178271 | O37: 0.9762773581 | P37: 1
B38: 127241 | C38: 2 | D38: All | E38: 1F | F38: All | G38: Financial | H38: 25934.46 | I38: 2019-11-03 | J38: 2021-11-03 | K38: 650580.0648 | M38: 0.03367816458 | N38: 1 | O38: 1 | P38: 1
B39: 126941 | C39: 2 | D39: All | E39: 1F | F39: All | G39: Financial | H39: 279676.38 | I39: 2019-07-25 | J39: 2021-07-25 | K39: 1881174.758 | M39: 0.1256025925 | N39: 1 | O39: 1 | P39: 1
B40: 135059 | C40: 2 | D40: All | E40: 1F | F40: All | G40: Financial | H40: 685253.67 | I40: 2020-10-13 | J40: 2022-10-13 | K40: 720235.0472 | M40: 0 | N40: 0.87030228 | O40: 1 | P40: 1
B41: 129733 | C41: 2 | D41: All | E41: 1F | F41: All | G41: Financial | H41: 970482.28 | I41: 2019-10-18 | J41: 2021-10-18 | K41: 1711250.377 | M41: 0.07443213689 | N41: 1 | O41: 1 | P41: 1
B42: 126939 | C42: 2 | D42: All | E42: 1F | F42: All | G42: Financial | H42: 2538223.32 | I42: 2019-02-26 | J42: 2021-02-26 | K42: 2538223.32 | M42: 0.9731110666 | N42: 1 | O42: 1 | P42: 1
B43: 126959 | C43: 2 | D43: All | E43: 1F | F43: All | G43: Financial | H43: 2201050.52 | I43: 2019-02-27 | J43: 2021-02-27 | K43: 2239221.059 | M43: 0.2384627082 | N43: 1 | O43: 1 | P43: 1
B44: 127280 | C44: 2 | D44: All | E44: 1F | F44: All | G44: Financial | H44: 1655714.33 | I44: 2019-04-12 | J44: 2021-04-12 | K44: 5808532.958 | M44: 0.2408190874 | N44: 1 | O44: 1 | P44: 1
B45: 129904 | C45: 2 | D45: All | E45: 1F | F45: All | G45: Financial | H45: 67886.84 | I45: 2019-11-04 | J45: 2022-01-04 | K45: 2980692.27 | M45: 0.01924156574 | N45: 0.9981300908 | O45: 1 | P45: 1
B46: 134339 | C46: 2 | D46: All | E46: 1F | F46: All | G46: Financial | H46: 0 | I46: 2020-10-15 | J46: 2022-10-15 | K46: 7983375.022 | M46: 0 | N46: 0.87030228 | O46: 1 | P46: 1
B47: 135077 | C47: 2 | D47: All | E47: 1F | F47: All | G47: Financial | H47: 425874.52 | I47: 2020-10-19 | J47: 2022-10-19 | K47: 2222226.406 | M47: 0 | N47: 0.8647816561 | O47: 1 | P47: 1
B48: 129366 | C48: 2 | D48: All | E48: 1F | F48: All | G48: Financial | H48: 3182818.76 | I48: 2019-08-19 | J48: 2021-08-19 | K48: 8005992.111 | M48: 0.2119959653 | N48: 1 | O48: 1 | P48: 1
B49: 129800 | C49: 2 | D49: All | E49: 1F | F49: All | G49: Financial | H49: 131508 | I49: 2019-08-09 | J49: 2021-07-09 | K49: 1709270.404 | M49: 0.065 | N49: 1 | O49: 1 | P49: 1
B50: 129925 | C50: 2 | D50: All | E50: 1F | F50: All | G50: Financial | H50: 424893.41 | I50: 2019-10-01 | J50: 2021-12-01 | K50: 1558654.653 | M50: 0.05259664892 | N50: 1 | O50: 1 | P50: 1
B51: 135394 | C51: 2 | D51: All | E51: 1F | F51: All | G51: Financial | H51: 66257.85 | I51: 2020-10-20 | J51: 2022-10-20 | K51: 831385.7622 | M51: 0 | N51: 0.8647816561 | O51: 1 | P51: 1
B52: 129805 | C52: 2 | D52: All | E52: 1F | F52: All | G52: Financial | H52: 868729.62 | I52: 2019-09-06 | J52: 2021-09-05 | K52: 2049002.682 | M52: 0.3012235044 | N52: 1 | O52: 1 | P52: 1
B53: 129879 | C53: 2 | D53: All | E53: 1F | F53: All | G53: Financial | H53: 2538387.15 | I53: 2019-09-24 | J53: 2021-09-24 | K53: 5582986.72 | M53: 0.03965665916 | N53: 1 | O53: 1 | P53: 1
B54: 129450 | C54: 2 | D54: All | E54: 1F | F54: All | G54: Financial | H54: 209330.04 | I54: 2019-11-20 | J54: 2021-11-19 | K54: 529240.4271 | M54: 0.08862109513 | N54: 1 | O54: 1 | P54: 1
B55: 129778 | C55: 2 | D55: All | E55: 1F | F55: All | G55: Financial | H55: 5434958.22 | I55: 2019-09-11 | J55: 2021-09-11 | K55: 7997088.385 | M55: 0 | N55: 1 | O55: 1 | P55: 1
B56: 135055 | C56: 2 | D56: All | E56: 1F | F56: All | G56: Financial | H56: 0 | I56: 2021-02-02 | J56: 2023-02-02 | K56: 2193562.19 | M56: 0 | N56: 0.7606355705 | O56: 0.9901090893 | P56: 1
B57: 135320 | C57: 2 | D57: All | E57: 1F | F57: All | G57: Financial | H57: 0 | I57: 2020-10-22 | J57: 2022-05-22 | K57: 2341377.456 | M57: 0 | N57: 0.9334583284 | O57: 1 | P57: 1
B58: 135516 | C58: 2 | D58: All | E58: 1F | F58: All | G58: Financial | H58: 0 | I58: 2021-01-28 | J58: 2022-01-28 | K58: 672925.9536 | M58: 0 | N58: 0.9834810237 | O58: 1 | P58: 1
B59: 135249 | C59: 2 | D59: All | E59: 1F | F59: All | G59: Financial | H59: 19711.21 | I59: 2021-01-25 | J59: 2023-03-25 | K59: 472920.753 | M59: 0 | N59: 0.743178271 | O59: 0.9762773581 | P59: 1
B60: 134374 | C60: 2 | D60: All | E60: 1F | F60: All | G60: Financial | H60: 0 | I60: 2020-10-06 | J60: 2022-02-05 | K60: 7980903.034 | M60: 0 | N60: 0.9857519842 | O60: 1 | P60: 1
B61: 135379 | C61: 2 | D61: All | E61: 1F | F61: All | G61: Financial | H61: 64906.78 | I61: 2020-10-01 | J61: 2022-10-01 | K61: 2963909.671 | M61: 0 | N61: 0.8756717643 | O61: 1 | P61: 1
B62: 129835 | C62: 2 | D62: All | E62: 1F | F62: All | G62: Financial | H62: 78570.92 | I62: 2019-08-05 | J62: 2021-08-05 | K62: 1138994.705 | M62: 0.05827899982 | N62: 1 | O62: 1 | P62: 1
B63: 129941 | C63: 2 | D63: All | E63: 1F | F63: All | G63: Financial | H63: 7787809.01 | I63: 2019-11-01 | J63: 2021-06-01 | K63: 7999861.742 | M63: 0.8224410285 | N63: 1 | O63: 1 | P63: 1
B64: 129858 | C64: 2 | D64: All | E64: 1F | F64: All | G64: Financial | H64: 562003.25 | I64: 2019-10-21 | J64: 2021-04-21 | K64: 562003.25 | M64: 0.7833955701 | N64: 1 | O64: 1 | P64: 1
B65: 126808 | C65: 2 | D65: All | E65: 1F | F65: All | G65: Financial | H65: 1751315.14 | I65: 2019-06-05 | J65: 2021-05-06 | K65: 1751315.14 | M65: 0.7445282359 | N65: 1 | O65: 1 | P65: 1
B66: 127210 | C66: 2 | D66: All | E66: 1F | F66: All | G66: Financial | H66: 1057818.74 | I66: 2019-03-11 | J66: 2021-03-11 | K66: 1108746.22 | M66: 0.3919854526 | N66: 1 | O66: 1 | P66: 1
B67: 135229 | C67: 2 | D67: All | E67: 1F | F67: All | G67: Financial | H67: 28481.78 | I67: 2020-10-16 | J67: 2022-10-16 | K67: 2470180.748 | M67: 0 | N67: 0.8647816561 | O67: 1 | P67: 1
B68: 135250 | C68: 2 | D68: All | E68: 1F | F68: All | G68: Financial | H68: 230108.5 | I68: 2019-11-05 | J68: 2022-08-31 | K68: 1042877.569 | M68: 0 | N68: 0.9370987732 | O68: 1 | P68: 1
B69: 135030 | C69: 2 | D69: All | E69: 1F | F69: All | G69: Financial | H69: 197491.35 | I69: 2021-01-27 | J69: 2022-10-31 | K69: 708158.4249 | M69: 0 | N69: 0.8215325028 | O69: 1 | P69: 1
B70: 135361 | C70: 2 | D70: All | E70: 1F | F70: All | G70: Financial | H70: 0 | I70: 2021-01-26 | J70: 2023-01-25 | K70: 4252131.168 | M70: 0 | N70: 0.7771500886 | O70: 0.994230889 | P70: 1
B71: 135165 | C71: 2 | D71: All | E71: 1F | F71: All | G71: Financial | H71: 3085861.52 | I71: 2020-09-01 | J71: 2022-05-01 | K71: 3686381.419 | M71: 0 | N71: 0.9506908127 | O71: 1 | P71: 1
B72: 135328 | C72: 2 | D72: All | E72: 1F | F72: All | G72: Financial | H72: 84697.88 | I72: 2020-12-04 | J72: 2022-12-04 | K72: 854701.0993 | M72: 0 | N72: 0.82823717 | O72: 1 | P72: 1
B73: 135305 | C73: 2 | D73: All | E73: 1F | F73: All | G73: Financial | H73: 0 | I73: 2021-01-27 | J73: 2023-01-27 | K73: 2739585.858 | M73: 0 | N73: 0.7690074288 | O73: 0.9921985916 | P73: 1
B74: 135245 | C74: 2 | D74: All | E74: 1F | F74: All | G74: Financial | H74: 0 | I74: 2020-12-08 | J74: 2022-12-08 | K74: 2211440.397 | M74: 0 | N74: 0.8215325028 | O74: 1 | P74: 1
B75: 135349 | C75: 2 | D75: All | E75: 1F | F75: All | G75: Financial | H75: 482402.98 | I75: 2020-10-15 | J75: 2022-10-14 | K75: 4861857.372 | M75: 0 | N75: 0.87030228 | O75: 1 | P75: 1
B76: 129866 | C76: 2 | D76: All | E76: 1F | F76: All | G76: Financial | H76: 1749221.95 | I76: 2019-10-01 | J76: 2021-10-02 | K76: 7003949.301 | M76: 0.2109958344 | N76: 1 | O76: 1 | P76: 1
B77: 135418 | C77: 2 | D77: All | E77: 1F | F77: All | G77: Financial | H77: 0 | I77: 2021-01-20 | J77: 2022-10-03 | K77: 397669.9038 | M77: 0 | N77: 0.8411008634 | O77: 1 | P77: 1
B78: 134982 | C78: 2 | D78: All | E78: 1F | F78: All | G78: Financial | H78: 0 | I78: 2020-10-26 | J78: 2022-10-26 | K78: 1635913.853 | M78: 0 | N78: 0.8591056384 | O78: 1 | P78: 1
B79: 135031 | C79: 2 | D79: All | E79: 1F | F79: All | G79: Financial | H79: 9662.6 | I79: 2021-01-27 | J79: 2022-12-27 | K79: 200588.7535 | M79: 0 | N79: 0.7850698246 | O79: 1 | P79: 1
B80: 135318 | C80: 2 | D80: All | E80: 1F | F80: All | G80: Financial | H80: 0 | I80: 2020-10-06 | J80: 2022-10-06 | K80: 1710129.01 | M80: 0 | N80: 0.8756717643 | O80: 1 | P80: 1
B81: 135483 | C81: 2 | D81: All | E81: 1F | F81: All | G81: Financial | H81: 0 | I81: 2020-10-20 | J81: 2022-10-20 | K81: 4644584.004 | M81: 0 | N81: 0.8647816561 | O81: 1 | P81: 1
B82: 135476 | C82: 2 | D82: All | E82: 1F | F82: All | G82: Financial | H82: 0 | I82: 2021-01-28 | J82: 2023-01-27 | K82: 3169534.952 | M82: 0 | N82: 0.7690074288 | O82: 0.9921985916 | P82: 1
B83: 135347 | C83: 2 | D83: All | E83: 1F | F83: All | G83: Financial | H83: 0 | I83: 2021-01-29 | J83: 2023-01-28 | K83: 859712.357 | M83: 0 | N83: 0.7690074288 | O83: 0.9921985916 | P83: 1
B84: 135360 | C84: 2 | D84: All | E84: 1F | F84: All | G84: Financial | H84: 0 | I84: 2020-10-22 | J84: 2022-10-22 | K84: 2389255.8 | M84: 0 | N84: 0.8647816561 | O84: 1 | P84: 1
B85: 135439 | C85: 2 | D85: All | E85: 1F | F85: All | G85: Financial | H85: 0 | I85: 2021-01-26 | J85: 2023-01-26 | K85: 1340081.016 | M85: 0 | N85: 0.7690074288 | O85: 0.9921985916 | P85: 1
B86: 121892 | C86: 2 | D86: All | E86: 2.2 | F86: All | G86: Physical | I86: 2018-08-23 | J86: 2021-10-23 | K86: 1 | M86: 0 | N86: 1 | O86: 1 | P86: 1
B87: 121910 | C87: 2 | D87: All | E87: 2.2 | F87: All | G87: Physical | H87: 1 | I87: 2018-09-18 | J87: 2021-03-18 | K87: 1 | M87: 0 | N87: 1 | O87: 1 | P87: 1
B88: 127210 | C88: 2 | D88: All | E88: 2.2 | F88: All | G88: Physical | H88: 1 | I88: 2019-03-11 | J88: 2021-03-11 | K88: 1 | M88: 0 | N88: 1 | O88: 1 | P88: 1
B89: 122048 | C89: 2 | D89: All | E89: 2.2 | F89: All | G89: Physical | I89: 2018-10-19 | J89: 2021-07-18 | K89: 1 | M89: 0 | N89: 1 | O89: 1 | P89: 1
B90: 126808 | C90: 2 | D90: All | E90: 2.2 | F90: All | G90: Physical | H90: 1 | I90: 2019-06-05 | J90: 2021-05-06 | K90: 1 | M90: 0 | N90: 1 | O90: 1 | P90: 1
B91: 127280 | C91: 2 | D91: All | E91: 2.2 | F91: All | G91: Physical | H91: 1 | I91: 2019-04-12 | J91: 2021-04-12 | K91: 1 | M91: 0 | N91: 1 | O91: 1 | P91: 1
B92: 127241 | C92: 2 | D92: All | E92: 2.2 | F92: All | G92: Physical | I92: 2019-11-03 | J92: 2021-11-03 | K92: 1 | M92: 0 | N92: 1 | O92: 1 | P92: 1
B93: 129835 | C93: 2 | D93: All | E93: 2.2 | F93: All | G93: Physical | I93: 2019-08-05 | J93: 2021-08-05 | K93: 1 | M93: 0 | N93: 1 | O93: 1 | P93: 1
B94: 129853 | C94: 2 | D94: All | E94: 2.2 | F94: All | G94: Physical | I94: 2019-10-08 | J94: 2021-10-08 | K94: 1 | M94: 0 | N94: 1 | O94: 1 | P94: 1
B95: 129858 | C95: 2 | D95: All | E95: 2.2 | F95: All | G95: Physical | H95: 1 | I95: 2019-10-21 | J95: 2021-04-21 | K95: 1 | M95: 0 | N95: 1 | O95: 1 | P95: 1
B96: 129366 | C96: 2 | D96: All | E96: 2.2 | F96: All | G96: Physical | I96: 2019-08-19 | J96: 2021-08-19 | K96: 1 | M96: 0 | N96: 1 | O96: 1 | P96: 1
B97: 129742 | C97: 2 | D97: All | E97: 2.2 | F97: All | G97: Physical | I97: 2019-11-06 | J97: 2021-11-06 | K97: 1 | M97: 0 | N97: 1 | O97: 1 | P97: 1
B98: 129925 | C98: 2 | D98: All | E98: 2.2 | F98: All | G98: Physical | I98: 2019-10-01 | J98: 2021-12-01 | K98: 1 | M98: 0 | N98: 1 | O98: 1 | P98: 1
B99: 126885 | C99: 2 | D99: All | E99: 2.2 | F99: All | G99: Physical | H99: 1 | I99: 2018-05-08 | J99: 2021-05-08 | K99: 1 | M99: 0 | N99: 1 | O99: 1 | P99: 1
B100: 126591 | C100: 2 | D100: All | E100: 2.2 | F100: All | G100: Physical | H100: 1 | I100: 2019-05-14 | J100: 2021-05-14 | K100: 1 | M100: 0 | N100: 1 | O100: 1 | P100: 1
B101: 129538 | C101: 2 | D101: All | E101: 2.2 | F101: All | G101: Physical | I101: 2019-09-20 | J101: 2021-09-19 | K101: 1 | M101: 0 | N101: 1 | O101: 1 | P101: 1
B102: 129904 | C102: 2 | D102: All | E102: 2.2 | F102: All | G102: Physical | I102: 2019-11-04 | J102: 2022-01-04 | K102: 1 | M102: 0 | N102: 0 | O102: 1 | P102: 1
B103: 129574 | C103: 2 | D103: All | E103: 2.2 | F103: All | G103: Physical | I103: 2019-09-03 | J103: 2021-09-03 | K103: 1 | M103: 0 | N103: 1 | O103: 1 | P103: 1
B104: 129778 | C104: 2 | D104: All | E104: 2.2 | F104: All | G104: Physical | I104: 2019-09-11 | J104: 2021-09-11 | K104: 1 | M104: 0 | N104: 1 | O104: 1 | P104: 1
B105: 126939 | C105: 2 | D105: All | E105: 2.2 | F105: All | G105: Physical | H105: 1 | I105: 2019-02-26 | J105: 2021-02-26 | K105: 1 | M105: 0 | N105: 1 | O105: 1 | P105: 1
B106: 135011 | C106: 2 | D106: All | E106: 2.2 | F106: All | G106: Physical | I106: 2021-01-25 | J106: 2023-03-24 | K106: 1 | M106: 0 | N106: 0 | O106: 0 | P106: 1
B107: 134339 | C107: 2 | D107: All | E107: 2.2 | F107: All | G107: Physical | I107: 2020-10-15 | J107: 2022-10-15 | K107: 1 | M107: 0 | N107: 0 | O107: 1 | P107: 1
B108: 135347 | C108: 2 | D108: All | E108: 2.2 | F108: All | G108: Physical | I108: 2021-01-29 | J108: 2023-01-28 | K108: 1 | M108: 0 | N108: 0 | O108: 0 | P108: 1
B109: 135349 | C109: 2 | D109: All | E109: 2.2 | F109: All | G109: Physical | I109: 2020-10-15 | J109: 2022-10-14 | K109: 1 | M109: 0 | N109: 0 | O109: 1 | P109: 1
B110: 134374 | C110: 2 | D110: All | E110: 2.2 | F110: All | G110: Physical | I110: 2020-10-06 | J110: 2022-02-05 | K110: 1 | M110: 0 | N110: 0 | O110: 1 | P110: 1
B111: 135031 | C111: 2 | D111: All | E111: 2.2 | F111: All | G111: Physical | I111: 2021-01-27 | J111: 2022-12-27 | K111: 1 | M111: 0 | N111: 0 | O111: 1 | P111: 1
B112: 135051 | C112: 2 | D112: All | E112: 2.2 | F112: All | G112: Physical | I112: 2021-01-26 | J112: 2023-01-26 | K112: 1 | M112: 0 | N112: 0 | O112: 0 | P112: 1
B113: 135249 | C113: 2 | D113: All | E113: 2.2 | F113: All | G113: Physical | I113: 2021-01-25 | J113: 2023-03-25 | K113: 1 | M113: 0 | N113: 0 | O113: 0 | P113: 1
B114: 135250 | C114: 2 | D114: All | E114: 2.2 | F114: All | G114: Physical | I114: 2019-11-05 | J114: 2022-08-31 | K114: 1 | M114: 0 | N114: 0 | O114: 1 | P114: 1
B115: 126941 | C115: 2 | D115: All | E115: 2.2 | F115: All | G115: Physical | I115: 2019-07-25 | J115: 2021-07-25 | K115: 1 | M115: 0 | N115: 1 | O115: 1 | P115: 1
B116: 127196 | C116: 2 | D116: All | E116: 2.2 | F116: All | G116: Physical | H116: 1 | I116: 2019-03-26 | J116: 2021-03-26 | K116: 1 | M116: 0 | N116: 1 | O116: 1 | P116: 1
B117: 127010 | C117: 2 | D117: All | E117: 2.2 | F117: All | G117: Physical | H117: 1 | I117: 2019-03-13 | J117: 2021-03-13 | K117: 1 | M117: 0 | N117: 1 | O117: 1 | P117: 1
B118: 129866 | C118: 2 | D118: All | E118: 2.2 | F118: All | G118: Physical | I118: 2019-10-01 | J118: 2021-10-02 | K118: 1 | M118: 0 | N118: 1 | O118: 1 | P118: 1
B119: 126962 | C119: 2 | D119: All | E119: 2.2 | F119: All | G119: Physical | H119: 1 | I119: 2019-05-21 | J119: 2021-05-21 | K119: 1 | M119: 0 | N119: 1 | O119: 1 | P119: 1
B120: 135516 | C120: 2 | D120: All | E120: 2.2 | F120: All | G120: Physical | I120: 2021-01-28 | J120: 2022-01-28 | K120: 1 | M120: 0 | N120: 0 | O120: 1 | P120: 1
B121: 126959 | C121: 2 | D121: All | E121: 2.2 | F121: All | G121: Physical | H121: 1 | I121: 2019-02-27 | J121: 2021-02-27 | K121: 1 | M121: 0 | N121: 1 | O121: 1 | P121: 1
B122: 135245 | C122: 2 | D122: All | E122: 2.2 | F122: All | G122: Physical | I122: 2020-12-08 | J122: 2022-12-08 | K122: 1 | M122: 0 | N122: 0 | O122: 1 | P122: 1
B123: 135360 | C123: 2 | D123: All | E123: 2.2 | F123: All | G123: Physical | I123: 2020-10-22 | J123: 2022-10-22 | K123: 1 | M123: 0 | N123: 0 | O123: 1 | P123: 1
B124: 135361 | C124: 2 | D124: All | E124: 2.2 | F124: All | G124: Physical | I124: 2021-01-26 | J124: 2023-01-25 | K124: 1 | M124: 0 | N124: 0 | O124: 0 | P124: 1
B125: 129800 | C125: 2 | D125: All | E125: 2.2 | F125: All | G125: Physical | I125: 2019-08-09 | J125: 2021-07-09 | K125: 1 | M125: 0 | N125: 1 | O125: 1 | P125: 1
B126: 129910 | C126: 2 | D126: All | E126: 2.2 | F126: All | G126: Physical | I126: 2019-08-22 | J126: 2021-08-22 | K126: 1 | M126: 0 | N126: 1 | O126: 1 | P126: 1
B127: 129733 | C127: 2 | D127: All | E127: 2.2 | F127: All | G127: Physical | I127: 2019-10-18 | J127: 2021-10-18 | K127: 1 | M127: 0 | N127: 1 | O127: 1 | P127: 1
B128: 135030 | C128: 2 | D128: All | E128: 2.2 | F128: All | G128: Physical | I128: 2021-01-27 | J128: 2022-10-31 | K128: 1 | M128: 0 | N128: 0 | O128: 1 | P128: 1
B129: 135055 | C129: 2 | D129: All | E129: 2.2 | F129: All | G129: Physical | I129: 2021-02-02 | J129: 2023-02-02 | K129: 1 | M129: 0 | N129: 0 | O129: 0 | P129: 1
B130: 135229 | C130: 2 | D130: All | E130: 2.2 | F130: All | G130: Physical | I130: 2020-10-16 | J130: 2022-10-16 | K130: 1 | M130: 0 | N130: 0 | O130: 1 | P130: 1
B131: 134982 | C131: 2 | D131: All | E131: 2.2 | F131: All | G131: Physical | I131: 2020-10-26 | J131: 2022-10-26 | K131: 1 | M131: 0 | N131: 0 | O131: 1 | P131: 1
B132: 135059 | C132: 2 | D132: All | E132: 2.2 | F132: All | G132: Physical | I132: 2020-10-13 | J132: 2022-10-13 | K132: 1 | M132: 0 | N132: 0 | O132: 1 | P132: 1
B133: 135418 | C133: 2 | D133: All | E133: 2.2 | F133: All | G133: Physical | I133: 2021-01-20 | J133: 2022-10-03 | K133: 1 | M133: 0 | N133: 0 | O133: 1 | P133: 1
B134: 135077 | C134: 2 | D134: All | E134: 2.2 | F134: All | G134: Physical | I134: 2020-10-19 | J134: 2022-10-19 | K134: 1 | M134: 0 | N134: 0 | O134: 1 | P134: 1
B135: 129805 | C135: 2 | D135: All | E135: 2.2 | F135: All | G135: Physical | I135: 2019-09-06 | J135: 2021-09-05 | K135: 1 | M135: 0 | N135: 1 | O135: 1 | P135: 1
B136: 129876 | C136: 2 | D136: All | E136: 2.2 | F136: All | G136: Physical | I136: 2019-09-06 | J136: 2021-08-31 | K136: 1 | M136: 0 | N136: 1 | O136: 1 | P136: 1
B137: 135328 | C137: 2 | D137: All | E137: 2.2 | F137: All | G137: Physical | I137: 2020-12-04 | J137: 2022-12-04 | K137: 1 | M137: 0 | N137: 0 | O137: 1 | P137: 1
B138: 129886 | C138: 2 | D138: All | E138: 2.2 | F138: All | G138: Physical | I138: 2019-10-04 | J138: 2021-10-03 | K138: 3 | M138: 0 | N138: 1 | O138: 1 | P138: 1
B139: 129941 | C139: 2 | D139: All | E139: 2.2 | F139: All | G139: Physical | H139: 1 | I139: 2019-11-01 | J139: 2021-06-01 | K139: 1 | M139: 0 | N139: 1 | O139: 1 | P139: 1
B140: 135165 | C140: 2 | D140: All | E140: 2.2 | F140: All | G140: Physical | I140: 2020-09-01 | J140: 2022-05-01 | K140: 1 | M140: 0 | N140: 0 | O140: 1 | P140: 1
B141: 129450 | C141: 2 | D141: All | E141: 2.2 | F141: All | G141: Physical | I141: 2019-11-20 | J141: 2021-11-19 | K141: 1 | M141: 0 | N141: 1 | O141: 1 | P141: 1
B142: 135305 | C142: 2 | D142: All | E142: 2.2 | F142: All | G142: Physical | I142: 2021-01-27 | J142: 2023-01-27 | K142: 1 | M142: 0 | N142: 0 | O142: 0 | P142: 1
B143: 135318 | C143: 2 | D143: All | E143: 2.2 | F143: All | G143: Physical | I143: 2020-10-06 | J143: 2022-10-06 | K143: 1 | M143: 0 | N143: 0 | O143: 1 | P143: 1
B144: 135320 | C144: 2 | D144: All | E144: 2.2 | F144: All | G144: Physical | I144: 2020-10-22 | J144: 2022-05-22 | K144: 1 | M144: 0 | N144: 0 | O144: 1 | P144: 1
B145: 135379 | C145: 2 | D145: All | E145: 2.2 | F145: All | G145: Physical | I145: 2020-10-01 | J145: 2022-10-01 | K145: 1 | M145: 0 | N145: 0 | O145: 1 | P145: 1
B146: 135476 | C146: 2 | D146: All | E146: 2.2 | F146: All | G146: Physical | I146: 2021-01-28 | J146: 2023-01-27 | K146: 1 | M146: 0 | N146: 0 | O146: 0 | P146: 1
B147: 135468 | C147: 2 | D147: All | E147: 2.2 | F147: All | G147: Physical | I147: 2020-12-15 | J147: 2022-12-14 | K147: 1 | M147: 0 | N147: 0 | O147: 1 | P147: 1
B148: 135093 | C148: 2 | D148: All | E148: 2.2 | F148: All | G148: Physical | I148: 2020-10-05 | J148: 2021-10-04 | K148: 1 | M148: 0 | N148: 1 | O148: 1 | P148: 1
B149: 135394 | C149: 2 | D149: All | E149: 2.2 | F149: All | G149: Physical | I149: 2020-10-20 | J149: 2022-10-20 | K149: 1 | M149: 0 | N149: 0 | O149: 1 | P149: 1
B150: 135439 | C150: 2 | D150: All | E150: 2.2 | F150: All | G150: Physical | I150: 2021-01-26 | J150: 2023-01-26 | K150: 1 | M150: 0 | N150: 0 | O150: 0 | P150: 1
B151: 117756 | C151: 4 | D151: All | E151: 1F | F151: All | G151: Financial | H151: 106300 | I151: 2017-03-27 | J151: 2023-12-31 | K151: 106300 | M151: 0.9681238616 | N151: 0.9681238616 | O151: 0.9681238616 | P151: 1
B152: 133079 | C152: 4 | D152: All | E152: 1F | F152: All | G152: Financial | H152: 459747.37 | I152: 2019-11-25 | J152: 2021-11-25 | K152: 794415.0491 | M152: 0.3250352511 | N152: 1 | O152: 1 | P152: 1
B153: 128237 | C153: 4 | D153: All | E153: 1F | F153: All | G153: Financial | H153: 36711.5 | I153: 2019-07-12 | J153: 2021-07-09 | K153: 558124.2521 | M153: 0.0591073985 | N153: 1 | O153: 1 | P153: 1
B154: 129631 | C154: 4 | D154: All | E154: 1F | F154: All | G154: Financial | H154: 0 | I154: 2019-08-19 | J154: 2021-08-18 | K154: 199363.5966 | M154: 0 | N154: 1 | O154: 1 | P154: 1
B155: 129437 | C155: 4 | D155: All | E155: 1F | F155: All | G155: Financial | H155: 0 | I155: 2019-08-27 | J155: 2021-10-26 | K155: 410664.1671 | M155: 0 | N155: 1 | O155: 1 | P155: 1
B156: 131550 | C156: 4 | D156: All | E156: 1F | F156: All | G156: Financial | H156: 268897.56 | I156: 2019-09-23 | J156: 2021-09-23 | K156: 731714.7812 | M156: 0.02494284426 | N156: 1 | O156: 1 | P156: 1
B157: 129840 | C157: 4 | D157: All | E157: 1F | F157: All | G157: Financial | H157: 2000 | I157: 2019-11-21 | J157: 2021-11-21 | K157: 801289.3606 | M157: 0.002242906807 | N157: 1 | O157: 1 | P157: 1
B158: 116842 | C158: 4 | D158: All | E158: 1F | F158: All | G158: Financial | H158: 2264429.8 | I158: 2017-03-23 | J158: 2023-12-31 | K158: 3223383.122 | M158: 0.5554812739 | N158: 0.9136601245 | O158: 0.965690078 | P158: 1
B159: 130392 | C159: 4 | D159: All | E159: 1F | F159: All | G159: Financial | H159: 400693.63 | I159: 2019-11-05 | J159: 2021-11-05 | K159: 400693.63 | M159: 0.05406762703 | N159: 1 | O159: 1 | P159: 1
B160: 131817 | C160: 4 | D160: All | E160: 1F | F160: All | G160: Financial | H160: 0 | I160: 2020-02-24 | J160: 2021-10-23 | K160: 801288.5518 | M160: 0 | N160: 1 | O160: 1 | P160: 1
B161: 128308 | C161: 4 | D161: All | E161: 1F | F161: All | G161: Financial | H161: 680212.96 | I161: 2019-02-21 | J161: 2022-02-21 | K161: 794337.3194 | M161: 0.3449199348 | N161: 0.9901090893 | O161: 1 | P161: 1
B162: 132513 | C162: 4 | D162: All | E162: 1F | F162: All | G162: Financial | H162: 652707.44 | I162: 2019-10-04 | J162: 2021-10-04 | K162: 652707.44 | M162: 0.49365339 | N162: 1 | O162: 1 | P162: 1
B163: 132133 | C163: 4 | D163: All | E163: 1F | F163: All | G163: Financial | H163: 5489.28 | I163: 2019-09-20 | J163: 2021-09-20 | K163: 329486.2851 | M163: 0.01497092559 | N163: 1 | O163: 1 | P163: 1
B164: 116912 | C164: 4 | D164: All | E164: 1F | F164: All | G164: Financial | H164: 78489 | I164: 2017-03-27 | J164: 2023-12-31 | K164: 79886.31171 | M164: 0.8828908886 | N164: 0.9136601245 | O164: 0.965690078 | P164: 1
B165: 128316 | C165: 4 | D165: All | E165: 1F | F165: All | G165: Financial | H165: 865628.46 | I165: 2019-02-26 | J165: 2021-02-26 | K165: 865628.46 | M165: 0.6475256364 | N165: 1 | O165: 1 | P165: 1
B166: 134005 | C166: 4 | D166: All | E166: 1F | F166: All | G166: Financial | H166: 81382.5 | I166: 2020-02-27 | J166: 2021-05-27 | K166: 81382.5 | M166: 0.01213845609 | N166: 1 | O166: 1 | P166: 1
B167: 135861 | C167: 4 | D167: All | E167: 1F | F167: All | G167: Financial | H167: 163300 | I167: 2020-05-25 | J167: 2021-05-25 | K167: 599371.99 | M167: 0.2448275862 | N167: 1 | O167: 1 | P167: 1
B168: 136345 | C168: 4 | D168: All | E168: 1F | F168: All | G168: Financial | H168: 66150 | I168: 2020-07-20 | J168: 2022-07-19 | K168: 1441368.144 | M168: 0 | N168: 0.9258671421 | O168: 1 | P168: 1
B169: 116286 | C169: 4 | D169: All | E169: 1F | F169: All | G169: Financial | H169: 909075.88 | I169: 2017-12-28 | J169: 2023-12-31 | K169: 1597618.401 | M169: 0.4454776813 | N169: 0.900393015 | O169: 0.9599389393 | P169: 1
B170: 116840 | C170: 4 | D170: All | E170: 1F | F170: All | G170: Financial | H170: 1060137.24 | I170: 2017-03-24 | J170: 2023-12-31 | K170: 1599240.021 | M170: 0.5240368014 | N170: 0.9136601245 | O170: 0.965690078 | P170: 1
B171: 116149 | C171: 4 | D171: All | E171: 1F | F171: All | G171: Financial | H171: 1216104.02 | I171: 2017-12-29 | J171: 2023-12-31 | K171: 1452993.13 | M171: 0.6019411276 | N171: 0.900393015 | O171: 0.9599389393 | P171: 1
B172: 116881 | C172: 4 | D172: All | E172: 1F | F172: All | G172: Financial | H172: 1062706.11 | I172: 2017-03-24 | J172: 2023-12-31 | K172: 1598763.121 | M172: 0.5591205523 | N172: 0.9136601245 | O172: 0.965690078 | P172: 1
B173: 117651 | C173: 4 | D173: All | E173: 1F | F173: All | G173: Financial | H173: 415797.26 | I173: 2017-06-30 | J173: 2023-12-31 | K173: 1302095.211 | M173: 0.2223730023 | N173: 0.9093599316 | O173: 0.965690078 | P173: 1
B174: 117607 | C174: 4 | D174: All | E174: 1F | F174: All | G174: Financial | H174: 699459.76 | I174: 2017-12-28 | J174: 2023-12-31 | K174: 1058105.755 | M174: 0.5057639391 | N174: 0.900393015 | O174: 0.9599389393 | P174: 1
B175: 116654 | C175: 4 | D175: All | E175: 1F | F175: All | G175: Financial | H175: 81344.64 | I175: 2017-12-28 | J175: 2023-12-31 | K175: 99727.59138 | M175: 0.7329666607 | N175: 0.900393015 | O175: 0.9599389393 | P175: 1
B176: 116627 | C176: 4 | D176: All | E176: 1F | F176: All | G176: Financial | H176: 81656.58 | I176: 2017-03-24 | J176: 2023-12-31 | K176: 81656.58 | M176: 0.9185217098 | N176: 0.9185217098 | O176: 0.965690078 | P176: 1
B177: 117174 | C177: 4 | D177: All | E177: 1F | F177: All | G177: Financial | H177: 928592.71 | I177: 2017-03-23 | J177: 2023-12-31 | K177: 1435992.002 | M177: 0.427507013 | N177: 0.9136601245 | O177: 0.965690078 | P177: 1
B178: 117265 | C178: 4 | D178: All | E178: 1F | F178: All | G178: Financial | H178: 1206996.66 | I178: 2017-03-27 | J178: 2023-12-31 | K178: 1600450.798 | M178: 0.6031383333 | N178: 0.9136601245 | O178: 0.965690078 | P178: 1
B179: 116923 | C179: 4 | D179: All | E179: 1F | F179: All | G179: Financial | H179: 1226093.47 | I179: 2017-03-27 | J179: 2023-12-31 | K179: 1712963.353 | M179: 0.5654454782 | N179: 0.9136601245 | O179: 0.965690078 | P179: 1
B180: 131608 | C180: 4 | D180: All | E180: 1F | F180: All | G180: Financial | H180: 17850 | I180: 2020-02-11 | J180: 2022-02-11 | K180: 394003.5937 | M180: 0.04071070723 | N180: 0.987960772 | O180: 1 | P180: 1
B181: 130438 | C181: 4 | D181: All | E181: 1F | F181: All | G181: Financial | H181: 359435.64 | I181: 2019-10-17 | J181: 2021-10-17 | K181: 523219.5412 | M181: 0.04866136352 | N181: 1 | O181: 1 | P181: 1
B182: 117006 | C182: 4 | D182: All | E182: 1F | F182: All | G182: Financial | H182: 4371943.27 | I182: 2017-03-24 | J182: 2023-12-31 | K182: 7596671.382 | M182: 0.4515504327 | N182: 0.9136601245 | O182: 0.965690078 | P182: 1
B183: 129128 | C183: 4 | D183: All | E183: 1F | F183: All | G183: Financial | H183: 0 | I183: 2019-05-06 | J183: 2021-07-05 | K183: 480528.6197 | M183: 0 | N183: 1 | O183: 1 | P183: 1
B184: 129239 | C184: 4 | D184: All | E184: 1F | F184: All | G184: Financial | H184: 38728.4 | I184: 2019-10-31 | J184: 2021-10-31 | K184: 365876.6208 | M184: 0.09511861226 | N184: 1 | O184: 1 | P184: 1
B185: 129997 | C185: 4 | D185: All | E185: 1F | F185: All | G185: Financial | H185: 846093.57 | I185: 2019-12-17 | J185: 2021-12-17 | K185: 846093.57 | M185: 0.9488598131 | N185: 1 | O185: 1 | P185: 1
B186: 129918 | C186: 4 | D186: All | E186: 1F | F186: All | G186: Financial | H186: 454989.44 | I186: 2019-05-07 | J186: 2021-05-07 | K186: 507887.2911 | M186: 0.4463564169 | N186: 1 | O186: 1 | P186: 1
B187: 134928 | C187: 4 | D187: All | E187: 1F | F187: All | G187: Financial | H187: 482495.95 | I187: 2020-04-01 | J187: 2021-02-28 | K187: 511934.9931 | M187: 0.7899119982 | N187: 1 | O187: 1 | P187: 1
B188: 131578 | C188: 4 | D188: All | E188: 1F | F188: All | G188: Financial | H188: 368725.58 | I188: 2019-12-23 | J188: 2021-02-23 | K188: 368725.58 | M188: 0.9206334922 | N188: 1 | O188: 1 | P188: 1
B189: 132988 | C189: 4 | D189: All | E189: 1F | F189: All | G189: Financial | H189: 770.08 | I189: 2020-03-30 | J189: 2021-09-30 | K189: 478059.8181 | M189: 0.001447518797 | N189: 1 | O189: 1 | P189: 1
B190: 136341 | C190: 4 | D190: All | E190: 1F | F190: All | G190: Financial | H190: 0 | I190: 2020-03-15 | J190: 2022-07-28 | K190: 471154.0104 | M190: 0 | N190: 0.9370987732 | O190: 1 | P190: 1
B191: 133328 | C191: 4 | D191: All | E191: 1F | F191: All | G191: Financial | H191: 337778.19 | I191: 2020-04-21 | J191: 2022-04-22 | K191: 800795.027 | M191: 0 | N191: 0.965690078 | O191: 1 | P191: 1
B192: 130216 | C192: 4 | D192: All | E192: 1F | F192: All | G192: Financial | H192: 306350.17 | I192: 2019-05-06 | J192: 2021-05-06 | K192: 1178662.403 | M192: 0.1440618434 | N192: 1 | O192: 1 | P192: 1
B193: 135103 | C193: 4 | D193: All | E193: 1F | F193: All | G193: Financial | H193: 0 | I193: 2020-06-17 | J193: 2021-05-17 | K193: 159952.3452 | M193: 0 | N193: 1 | O193: 1 | P193: 1
B194: 130609 | C194: 4 | D194: All | E194: 1F | F194: All | G194: Financial | H194: 192136.16 | I194: 2019-11-04 | J194: 2021-07-04 | K194: 531673.9302 | M194: 0.3247389263 | N194: 1 | O194: 1 | P194: 1
B195: 131170 | C195: 4 | D195: All | E195: 1F | F195: All | G195: Financial | H195: 360695.64 | I195: 2020-02-14 | J195: 2021-10-13 | K195: 415395.3598 | M195: 0.7802788972 | N195: 1 | O195: 1 | P195: 1
B196: 131109 | C196: 4 | D196: All | E196: 1F | F196: All | G196: Financial | H196: 1305287.55 | I196: 2019-09-30 | J196: 2021-09-30 | K196: 2382356.957 | M196: 0.003745840865 | N196: 1 | O196: 1 | P196: 1
B197: 131171 | C197: 4 | D197: All | E197: 1F | F197: All | G197: Financial | H197: 618124.19 | I197: 2020-03-12 | J197: 2021-11-11 | K197: 690767.6817 | M197: 0.02476232848 | N197: 1 | O197: 1 | P197: 1
B198: 133475 | C198: 4 | D198: All | E198: 1F | F198: All | G198: Financial | H198: 54936.66 | I198: 2020-03-23 | J198: 2021-09-23 | K198: 474221.6897 | M198: 0 | N198: 1 | O198: 1 | P198: 1
B199: 132216 | C199: 4 | D199: All | E199: 1F | F199: All | G199: Financial | H199: 556298.38 | I199: 2020-02-24 | J199: 2021-02-24 | K199: 561660.7984 | M199: 0.7403329548 | N199: 1 | O199: 1 | P199: 1
B200: 133430 | C200: 4 | D200: All | E200: 1F | F200: All | G200: Financial | H200: 0 | I200: 2020-04-30 | J200: 2022-04-30 | K200: 484796.1932 | M200: 0 | N200: 0.9628544176 | O200: 1 | P200: 1
B201: 133129 | C201: 4 | D201: All | E201: 1F | F201: All | G201: Financial | H201: 0 | I201: 2020-04-23 | J201: 2021-08-23 | K201: 784876.5246 | M201: 0 | N201: 1 | O201: 1 | P201: 1
... 143 more rows

Sheet Achievement_forecast_ongoing
G2: User calibrations | L2: Statistical projections
C4: Characteristics | G4: Year | L4: Year
B5: SMIS_CODE | C5: PA | D5: PI | E5: Indicator | F5: Region | G5: 2020 | H5: 2021 | I5: 2022 | J5: 2024 | L5: 2020 | M5: 2021 | N5: 2022 | O5: 2024
B6: =Achievement_to_date_ongoing!B4 -> 122162 | C6: =IF($B6>0, Achievement_to_date_ongoing!C4, "") -> 1 | D6: =IF($B6>0, Achievement_to_date_ongoing!D4, "") -> All | E6: =IF($B6>0, Achievement_to_date_ongoing!E4, "") -> 1.3 | F6: =IF($B6>0, Achievement_to_date_ongoing!F4, "") -> All | G6: 0 | H6: 1 | I6: 1 | J6: 1 | L6: =IF($B6>0,Achievement_to_date_ongoing!$K4*Achievement_to_date_ongoing!M4,"") -> 0 | M6: =IF($B6>0,Achievement_to_date_ongoing!$K4*Achievement_to_date_ongoing!N4,"") -> 1 | N6: =IF($B6>0,Achievement_to_date_ongoing!$K4*Achievement_to_date_ongoing!O4,"") -> 1 | O6: =IF($B6>0,Achievement_to_date_ongoing!$K4*Achievement_to_date_ongoing!P4,"") -> 1
B7: =Achievement_to_date_ongoing!B6 -> 129905 | C7: =IF($B7>0, Achievement_to_date_ongoing!C6, "") -> 1 | D7: =IF($B7>0, Achievement_to_date_ongoing!D6, "") -> All | E7: =IF($B7>0, Achievement_to_date_ongoing!E6, "") -> 1.3 | F7: =IF($B7>0, Achievement_to_date_ongoing!F6, "") -> All | G7: 0 | H7: 1 | I7: 1 | J7: 1 | L7: =IF($B7>0,Achievement_to_date_ongoing!$K6*Achievement_to_date_ongoing!M6,"") -> 0 | M7: =IF($B7>0,Achievement_to_date_ongoing!$K6*Achievement_to_date_ongoing!N6,"") -> 1 | N7: =IF($B7>0,Achievement_to_date_ongoing!$K6*Achievement_to_date_ongoing!O6,"") -> 1 | O7: =IF($B7>0,Achievement_to_date_ongoing!$K6*Achievement_to_date_ongoing!P6,"") -> 1
B8: =Achievement_to_date_ongoing!B7 -> 130062 | C8: =IF($B8>0, Achievement_to_date_ongoing!C7, "") -> 1 | D8: =IF($B8>0, Achievement_to_date_ongoing!D7, "") -> All | E8: =IF($B8>0, Achievement_to_date_ongoing!E7, "") -> 1.3 | F8: =IF($B8>0, Achievement_to_date_ongoing!F7, "") -> All | G8: 0 | H8: 1 | I8: 1 | J8: 1 | L8: =IF($B8>0,Achievement_to_date_ongoing!$K7*Achievement_to_date_ongoing!M7,"") -> 0 | M8: =IF($B8>0,Achievement_to_date_ongoing!$K7*Achievement_to_date_ongoing!N7,"") -> 1 | N8: =IF($B8>0,Achievement_to_date_ongoing!$K7*Achievement_to_date_ongoing!O7,"") -> 1 | O8: =IF($B8>0,Achievement_to_date_ongoing!$K7*Achievement_to_date_ongoing!P7,"") -> 1
B9: =Achievement_to_date_ongoing!B8 -> 129881 | C9: =IF($B9>0, Achievement_to_date_ongoing!C8, "") -> 1 | D9: =IF($B9>0, Achievement_to_date_ongoing!D8, "") -> All | E9: =IF($B9>0, Achievement_to_date_ongoing!E8, "") -> 1.3 | F9: =IF($B9>0, Achievement_to_date_ongoing!F8, "") -> All | G9: 0 | H9: 1 | I9: 1 | J9: 1 | L9: =IF($B9>0,Achievement_to_date_ongoing!$K8*Achievement_to_date_ongoing!M8,"") -> 0 | M9: =IF($B9>0,Achievement_to_date_ongoing!$K8*Achievement_to_date_ongoing!N8,"") -> 1 | N9: =IF($B9>0,Achievement_to_date_ongoing!$K8*Achievement_to_date_ongoing!O8,"") -> 1 | O9: =IF($B9>0,Achievement_to_date_ongoing!$K8*Achievement_to_date_ongoing!P8,"") -> 1
B10: =Achievement_to_date_ongoing!B9 -> 130131 | C10: =IF($B10>0, Achievement_to_date_ongoing!C9, "") -> 1 | D10: =IF($B10>0, Achievement_to_date_ongoing!D9, "") -> All | E10: =IF($B10>0, Achievement_to_date_ongoing!E9, "") -> 1.3 | F10: =IF($B10>0, Achievement_to_date_ongoing!F9, "") -> All | G10: 0 | H10: 1 | I10: 1 | J10: 1 | L10: =IF($B10>0,Achievement_to_date_ongoing!$K9*Achievement_to_date_ongoing!M9,"") -> 0 | M10: =IF($B10>0,Achievement_to_date_ongoing!$K9*Achievement_to_date_ongoing!N9,"") -> 1 | N10: =IF($B10>0,Achievement_to_date_ongoing!$K9*Achievement_to_date_ongoing!O9,"") -> 1 | O10: =IF($B10>0,Achievement_to_date_ongoing!$K9*Achievement_to_date_ongoing!P9,"") -> 1
B11: =Achievement_to_date_ongoing!B10 -> 130134 | C11: =IF($B11>0, Achievement_to_date_ongoing!C10, "") -> 1 | D11: =IF($B11>0, Achievement_to_date_ongoing!D10, "") -> All | E11: =IF($B11>0, Achievement_to_date_ongoing!E10, "") -> 1.3 | F11: =IF($B11>0, Achievement_to_date_ongoing!F10, "") -> All | G11: 0 | H11: 1 | I11: 1 | J11: 1 | L11: =IF($B11>0,Achievement_to_date_ongoing!$K10*Achievement_to_date_ongoing!M10,"") -> 0 | M11: =IF($B11>0,Achievement_to_date_ongoing!$K10*Achievement_to_date_ongoing!N10,"") -> 1 | N11: =IF($B11>0,Achievement_to_date_ongoing!$K10*Achievement_to_date_ongoing!O10,"") -> 1 | O11: =IF($B11>0,Achievement_to_date_ongoing!$K10*Achievement_to_date_ongoing!P10,"") -> 1
B12: =Achievement_to_date_ongoing!B11 -> 122162 | C12: =IF($B12>0, Achievement_to_date_ongoing!C11, "") -> 1 | D12: =IF($B12>0, Achievement_to_date_ongoing!D11, "") -> All | E12: =IF($B12>0, Achievement_to_date_ongoing!E11, "") -> 1F | F12: =IF($B12>0, Achievement_to_date_ongoing!F11, "") -> All | G12: 803525.7001 | H12: 1069585.1 | I12: 1069585.1 | J12: 1069585.1 | L12: =IF($B12>0,Achievement_to_date_ongoing!$K11*Achievement_to_date_ongoing!M11,"") -> 803525.7001 | M12: =IF($B12>0,Achievement_to_date_ongoing!$K11*Achievement_to_date_ongoing!N11,"") -> 1069585.1 | N12: =IF($B12>0,Achievement_to_date_ongoing!$K11*Achievement_to_date_ongoing!O11,"") -> 1069585.1 | O12: =IF($B12>0,Achievement_to_date_ongoing!$K11*Achievement_to_date_ongoing!P11,"") -> 1069585.1
B13: =Achievement_to_date_ongoing!B12 -> 129905 | C13: =IF($B13>0, Achievement_to_date_ongoing!C12, "") -> 1 | D13: =IF($B13>0, Achievement_to_date_ongoing!D12, "") -> All | E13: =IF($B13>0, Achievement_to_date_ongoing!E12, "") -> 1F | F13: =IF($B13>0, Achievement_to_date_ongoing!F12, "") -> All | G13: 0 | H13: 1116515.597 | I13: 1116515.597 | J13: 1116515.597 | L13: =IF($B13>0,Achievement_to_date_ongoing!$K12*Achievement_to_date_ongoing!M12,"") -> 0 | M13: =IF($B13>0,Achievement_to_date_ongoing!$K12*Achievement_to_date_ongoing!N12,"") -> 1116515.597 | N13: =IF($B13>0,Achievement_to_date_ongoing!$K12*Achievement_to_date_ongoing!O12,"") -> 1116515.597 | O13: =IF($B13>0,Achievement_to_date_ongoing!$K12*Achievement_to_date_ongoing!P12,"") -> 1116515.597
B14: =Achievement_to_date_ongoing!B13 -> 129528 | C14: =IF($B14>0, Achievement_to_date_ongoing!C13, "") -> 1 | D14: =IF($B14>0, Achievement_to_date_ongoing!D13, "") -> All | E14: =IF($B14>0, Achievement_to_date_ongoing!E13, "") -> 1F | F14: =IF($B14>0, Achievement_to_date_ongoing!F13, "") -> All | G14: 281646.5184 | H14: 282470.12 | I14: 282470.12 | J14: 282470.12 | L14: =IF($B14>0,Achievement_to_date_ongoing!$K13*Achievement_to_date_ongoing!M13,"") -> 281646.5184 | M14: =IF($B14>0,Achievement_to_date_ongoing!$K13*Achievement_to_date_ongoing!N13,"") -> 282470.12 | N14: =IF($B14>0,Achievement_to_date_ongoing!$K13*Achievement_to_date_ongoing!O13,"") -> 282470.12 | O14: =IF($B14>0,Achievement_to_date_ongoing!$K13*Achievement_to_date_ongoing!P13,"") -> 282470.12
B15: =Achievement_to_date_ongoing!B14 -> 130134 | C15: =IF($B15>0, Achievement_to_date_ongoing!C14, "") -> 1 | D15: =IF($B15>0, Achievement_to_date_ongoing!D14, "") -> All | E15: =IF($B15>0, Achievement_to_date_ongoing!E14, "") -> 1F | F15: =IF($B15>0, Achievement_to_date_ongoing!F14, "") -> All | G15: 3073698.326 | H15: 4726868.27 | I15: 4726868.27 | J15: 4726868.27 | L15: =IF($B15>0,Achievement_to_date_ongoing!$K14*Achievement_to_date_ongoing!M14,"") -> 3073698.326 | M15: =IF($B15>0,Achievement_to_date_ongoing!$K14*Achievement_to_date_ongoing!N14,"") -> 4726868.27 | N15: =IF($B15>0,Achievement_to_date_ongoing!$K14*Achievement_to_date_ongoing!O14,"") -> 4726868.27 | O15: =IF($B15>0,Achievement_to_date_ongoing!$K14*Achievement_to_date_ongoing!P14,"") -> 4726868.27
B16: =Achievement_to_date_ongoing!B15 -> 130062 | C16: =IF($B16>0, Achievement_to_date_ongoing!C15, "") -> 1 | D16: =IF($B16>0, Achievement_to_date_ongoing!D15, "") -> All | E16: =IF($B16>0, Achievement_to_date_ongoing!E15, "") -> 1F | F16: =IF($B16>0, Achievement_to_date_ongoing!F15, "") -> All | G16: 54787.1017 | H16: 866838.146 | I16: 866838.146 | J16: 866838.146 | L16: =IF($B16>0,Achievement_to_date_ongoing!$K15*Achievement_to_date_ongoing!M15,"") -> 54787.1017 | M16: =IF($B16>0,Achievement_to_date_ongoing!$K15*Achievement_to_date_ongoing!N15,"") -> 866838.146 | N16: =IF($B16>0,Achievement_to_date_ongoing!$K15*Achievement_to_date_ongoing!O15,"") -> 866838.146 | O16: =IF($B16>0,Achievement_to_date_ongoing!$K15*Achievement_to_date_ongoing!P15,"") -> 866838.146
B17: =Achievement_to_date_ongoing!B16 -> 129881 | C17: =IF($B17>0, Achievement_to_date_ongoing!C16, "") -> 1 | D17: =IF($B17>0, Achievement_to_date_ongoing!D16, "") -> All | E17: =IF($B17>0, Achievement_to_date_ongoing!E16, "") -> 1F | F17: =IF($B17>0, Achievement_to_date_ongoing!F16, "") -> All | G17: 0 | H17: 1116493.049 | I17: 1116493.049 | J17: 1116493.049 | L17: =IF($B17>0,Achievement_to_date_ongoing!$K16*Achievement_to_date_ongoing!M16,"") -> 0 | M17: =IF($B17>0,Achievement_to_date_ongoing!$K16*Achievement_to_date_ongoing!N16,"") -> 1116493.049 | N17: =IF($B17>0,Achievement_to_date_ongoing!$K16*Achievement_to_date_ongoing!O16,"") -> 1116493.049 | O17: =IF($B17>0,Achievement_to_date_ongoing!$K16*Achievement_to_date_ongoing!P16,"") -> 1116493.049
B18: =Achievement_to_date_ongoing!B17 -> 130131 | C18: =IF($B18>0, Achievement_to_date_ongoing!C17, "") -> 1 | D18: =IF($B18>0, Achievement_to_date_ongoing!D17, "") -> All | E18: =IF($B18>0, Achievement_to_date_ongoing!E17, "") -> 1F | F18: =IF($B18>0, Achievement_to_date_ongoing!F17, "") -> All | G18: 0 | H18: 1116495.417 | I18: 1116495.417 | J18: 1116495.417 | L18: =IF($B18>0,Achievement_to_date_ongoing!$K17*Achievement_to_date_ongoing!M17,"") -> 0 | M18: =IF($B18>0,Achievement_to_date_ongoing!$K17*Achievement_to_date_ongoing!N17,"") -> 1116495.417 | N18: =IF($B18>0,Achievement_to_date_ongoing!$K17*Achievement_to_date_ongoing!O17,"") -> 1116495.417 | O18: =IF($B18>0,Achievement_to_date_ongoing!$K17*Achievement_to_date_ongoing!P17,"") -> 1116495.417
B19: =Achievement_to_date_ongoing!B18 -> 127010 | C19: =IF($B19>0, Achievement_to_date_ongoing!C18, "") -> 2 | D19: =IF($B19>0, Achievement_to_date_ongoing!D18, "") -> All | E19: =IF($B19>0, Achievement_to_date_ongoing!E18, "") -> 1F | F19: =IF($B19>0, Achievement_to_date_ongoing!F18, "") -> All | G19: 451733.1394 | H19: 950166.06 | I19: 950166.06 | J19: 950166.06 | L19: =IF($B19>0,Achievement_to_date_ongoing!$K18*Achievement_to_date_ongoing!M18,"") -> 451733.1394 | M19: =IF($B19>0,Achievement_to_date_ongoing!$K18*Achievement_to_date_ongoing!N18,"") -> 950166.06 | N19: =IF($B19>0,Achievement_to_date_ongoing!$K18*Achievement_to_date_ongoing!O18,"") -> 950166.06 | O19: =IF($B19>0,Achievement_to_date_ongoing!$K18*Achievement_to_date_ongoing!P18,"") -> 950166.06
B20: =Achievement_to_date_ongoing!B19 -> 126591 | C20: =IF($B20>0, Achievement_to_date_ongoing!C19, "") -> 2 | D20: =IF($B20>0, Achievement_to_date_ongoing!D19, "") -> All | E20: =IF($B20>0, Achievement_to_date_ongoing!E19, "") -> 1F | F20: =IF($B20>0, Achievement_to_date_ongoing!F19, "") -> All | G20: 1217300.149 | H20: 3403211.275 | I20: 3403211.275 | J20: 3403211.275 | L20: =IF($B20>0,Achievement_to_date_ongoing!$K19*Achievement_to_date_ongoing!M19,"") -> 1217300.149 | M20: =IF($B20>0,Achievement_to_date_ongoing!$K19*Achievement_to_date_ongoing!N19,"") -> 3403211.275 | N20: =IF($B20>0,Achievement_to_date_ongoing!$K19*Achievement_to_date_ongoing!O19,"") -> 3403211.275 | O20: =IF($B20>0,Achievement_to_date_ongoing!$K19*Achievement_to_date_ongoing!P19,"") -> 3403211.275
B21: =Achievement_to_date_ongoing!B20 -> 129538 | C21: =IF($B21>0, Achievement_to_date_ongoing!C20, "") -> 2 | D21: =IF($B21>0, Achievement_to_date_ongoing!D20, "") -> All | E21: =IF($B21>0, Achievement_to_date_ongoing!E20, "") -> 1F | F21: =IF($B21>0, Achievement_to_date_ongoing!F20, "") -> All | G21: 235094.1598 | H21: 1138812.119 | I21: 1138812.119 | J21: 1138812.119 | L21: =IF($B21>0,Achievement_to_date_ongoing!$K20*Achievement_to_date_ongoing!M20,"") -> 235094.1598 | M21: =IF($B21>0,Achievement_to_date_ongoing!$K20*Achievement_to_date_ongoing!N20,"") -> 1138812.119 | N21: =IF($B21>0,Achievement_to_date_ongoing!$K20*Achievement_to_date_ongoing!O20,"") -> 1138812.119 | O21: =IF($B21>0,Achievement_to_date_ongoing!$K20*Achievement_to_date_ongoing!P20,"") -> 1138812.119
B22: =Achievement_to_date_ongoing!B21 -> 126962 | C22: =IF($B22>0, Achievement_to_date_ongoing!C21, "") -> 2 | D22: =IF($B22>0, Achievement_to_date_ongoing!D21, "") -> All | E22: =IF($B22>0, Achievement_to_date_ongoing!E21, "") -> 1F | F22: =IF($B22>0, Achievement_to_date_ongoing!F21, "") -> All | G22: 2211603.99 | H22: 6931211.591 | I22: 6931211.591 | J22: 6931211.591 | L22: =IF($B22>0,Achievement_to_date_ongoing!$K21*Achievement_to_date_ongoing!M21,"") -> 2211603.99 | M22: =IF($B22>0,Achievement_to_date_ongoing!$K21*Achievement_to_date_ongoing!N21,"") -> 6931211.591 | N22: =IF($B22>0,Achievement_to_date_ongoing!$K21*Achievement_to_date_ongoing!O21,"") -> 6931211.591 | O22: =IF($B22>0,Achievement_to_date_ongoing!$K21*Achievement_to_date_ongoing!P21,"") -> 6931211.591
B23: =Achievement_to_date_ongoing!B22 -> 129574 | C23: =IF($B23>0, Achievement_to_date_ongoing!C22, "") -> 2 | D23: =IF($B23>0, Achievement_to_date_ongoing!D22, "") -> All | E23: =IF($B23>0, Achievement_to_date_ongoing!E22, "") -> 1F | F23: =IF($B23>0, Achievement_to_date_ongoing!F22, "") -> All | G23: 0 | H23: 2820095.324 | I23: 2820095.324 | J23: 2820095.324 | L23: =IF($B23>0,Achievement_to_date_ongoing!$K22*Achievement_to_date_ongoing!M22,"") -> 0 | M23: =IF($B23>0,Achievement_to_date_ongoing!$K22*Achievement_to_date_ongoing!N22,"") -> 2820095.324 | N23: =IF($B23>0,Achievement_to_date_ongoing!$K22*Achievement_to_date_ongoing!O22,"") -> 2820095.324 | O23: =IF($B23>0,Achievement_to_date_ongoing!$K22*Achievement_to_date_ongoing!P22,"") -> 2820095.324
B24: =Achievement_to_date_ongoing!B23 -> 121910 | C24: =IF($B24>0, Achievement_to_date_ongoing!C23, "") -> 2 | D24: =IF($B24>0, Achievement_to_date_ongoing!D23, "") -> All | E24: =IF($B24>0, Achievement_to_date_ongoing!E23, "") -> 1F | F24: =IF($B24>0, Achievement_to_date_ongoing!F23, "") -> All | G24: 4494904.423 | H24: 4826294.03 | I24: 4826294.03 | J24: 4826294.03 | L24: =IF($B24>0,Achievement_to_date_ongoing!$K23*Achievement_to_date_ongoing!M23,"") -> 4494904.423 | M24: =IF($B24>0,Achievement_to_date_ongoing!$K23*Achievement_to_date_ongoing!N23,"") -> 4826294.03 | N24: =IF($B24>0,Achievement_to_date_ongoing!$K23*Achievement_to_date_ongoing!O23,"") -> 4826294.03 | O24: =IF($B24>0,Achievement_to_date_ongoing!$K23*Achievement_to_date_ongoing!P23,"") -> 4826294.03
B25: =Achievement_to_date_ongoing!B24 -> 127196 | C25: =IF($B25>0, Achievement_to_date_ongoing!C24, "") -> 2 | D25: =IF($B25>0, Achievement_to_date_ongoing!D24, "") -> All | E25: =IF($B25>0, Achievement_to_date_ongoing!E24, "") -> 1F | F25: =IF($B25>0, Achievement_to_date_ongoing!F24, "") -> All | G25: 3412559.354 | H25: 3683394.64 | I25: 3683394.64 | J25: 3683394.64 | L25: =IF($B25>0,Achievement_to_date_ongoing!$K24*Achievement_to_date_ongoing!M24,"") -> 3412559.354 | M25: =IF($B25>0,Achievement_to_date_ongoing!$K24*Achievement_to_date_ongoing!N24,"") -> 3683394.64 | N25: =IF($B25>0,Achievement_to_date_ongoing!$K24*Achievement_to_date_ongoing!O24,"") -> 3683394.64 | O25: =IF($B25>0,Achievement_to_date_ongoing!$K24*Achievement_to_date_ongoing!P24,"") -> 3683394.64
B26: =Achievement_to_date_ongoing!B25 -> 135468 | C26: =IF($B26>0, Achievement_to_date_ongoing!C25, "") -> 2 | D26: =IF($B26>0, Achievement_to_date_ongoing!D25, "") -> All | E26: =IF($B26>0, Achievement_to_date_ongoing!E25, "") -> 1F | F26: =IF($B26>0, Achievement_to_date_ongoing!F25, "") -> All | G26: 0 | H26: 724394.2371 | I26: 889221.0367 | J26: 889221.0367 | L26: =IF($B26>0,Achievement_to_date_ongoing!$K25*Achievement_to_date_ongoing!M25,"") -> 0 | M26: =IF($B26>0,Achievement_to_date_ongoing!$K25*Achievement_to_date_ongoing!N25,"") -> 724394.2371 | N26: =IF($B26>0,Achievement_to_date_ongoing!$K25*Achievement_to_date_ongoing!O25,"") -> 889221.0367 | O26: =IF($B26>0,Achievement_to_date_ongoing!$K25*Achievement_to_date_ongoing!P25,"") -> 889221.0367
B27: =Achievement_to_date_ongoing!B26 -> 121892 | C27: =IF($B27>0, Achievement_to_date_ongoing!C26, "") -> 2 | D27: =IF($B27>0, Achievement_to_date_ongoing!D26, "") -> All | E27: =IF($B27>0, Achievement_to_date_ongoing!E26, "") -> 1F | F27: =IF($B27>0, Achievement_to_date_ongoing!F26, "") -> All | G27: 2451138.713 | H27: 3107765.609 | I27: 3107765.609 | J27: 3107765.609 | L27: =IF($B27>0,Achievement_to_date_ongoing!$K26*Achievement_to_date_ongoing!M26,"") -> 2451138.713 | M27: =IF($B27>0,Achievement_to_date_ongoing!$K26*Achievement_to_date_ongoing!N26,"") -> 3107765.609 | N27: =IF($B27>0,Achievement_to_date_ongoing!$K26*Achievement_to_date_ongoing!O26,"") -> 3107765.609 | O27: =IF($B27>0,Achievement_to_date_ongoing!$K26*Achievement_to_date_ongoing!P26,"") -> 3107765.609
B28: =Achievement_to_date_ongoing!B27 -> 129853 | C28: =IF($B28>0, Achievement_to_date_ongoing!C27, "") -> 2 | D28: =IF($B28>0, Achievement_to_date_ongoing!D27, "") -> All | E28: =IF($B28>0, Achievement_to_date_ongoing!E27, "") -> 1F | F28: =IF($B28>0, Achievement_to_date_ongoing!F27, "") -> All | G28: 143748.416 | H28: 5100130.283 | I28: 5100130.283 | J28: 5100130.283 | L28: =IF($B28>0,Achievement_to_date_ongoing!$K27*Achievement_to_date_ongoing!M27,"") -> 143748.416 | M28: =IF($B28>0,Achievement_to_date_ongoing!$K27*Achievement_to_date_ongoing!N27,"") -> 5100130.283 | N28: =IF($B28>0,Achievement_to_date_ongoing!$K27*Achievement_to_date_ongoing!O27,"") -> 5100130.283 | O28: =IF($B28>0,Achievement_to_date_ongoing!$K27*Achievement_to_date_ongoing!P27,"") -> 5100130.283
B29: =Achievement_to_date_ongoing!B28 -> 126885 | C29: =IF($B29>0, Achievement_to_date_ongoing!C28, "") -> 2 | D29: =IF($B29>0, Achievement_to_date_ongoing!D28, "") -> All | E29: =IF($B29>0, Achievement_to_date_ongoing!E28, "") -> 1F | F29: =IF($B29>0, Achievement_to_date_ongoing!F28, "") -> All | G29: 224675.1547 | H29: 1371828.635 | I29: 1371828.635 | J29: 1371828.635 | L29: =IF($B29>0,Achievement_to_date_ongoing!$K28*Achievement_to_date_ongoing!M28,"") -> 224675.1547 | M29: =IF($B29>0,Achievement_to_date_ongoing!$K28*Achievement_to_date_ongoing!N28,"") -> 1371828.635 | N29: =IF($B29>0,Achievement_to_date_ongoing!$K28*Achievement_to_date_ongoing!O28,"") -> 1371828.635 | O29: =IF($B29>0,Achievement_to_date_ongoing!$K28*Achievement_to_date_ongoing!P28,"") -> 1371828.635
B30: =Achievement_to_date_ongoing!B29 -> 129742 | C30: =IF($B30>0, Achievement_to_date_ongoing!C29, "") -> 2 | D30: =IF($B30>0, Achievement_to_date_ongoing!D29, "") -> All | E30: =IF($B30>0, Achievement_to_date_ongoing!E29, "") -> 1F | F30: =IF($B30>0, Achievement_to_date_ongoing!F29, "") -> All | G30: 2953017.905 | H30: 7852039.489 | I30: 7852039.489 | J30: 7852039.489 | L30: =IF($B30>0,Achievement_to_date_ongoing!$K29*Achievement_to_date_ongoing!M29,"") -> 2953017.905 | M30: =IF($B30>0,Achievement_to_date_ongoing!$K29*Achievement_to_date_ongoing!N29,"") -> 7852039.489 | N30: =IF($B30>0,Achievement_to_date_ongoing!$K29*Achievement_to_date_ongoing!O29,"") -> 7852039.489 | O30: =IF($B30>0,Achievement_to_date_ongoing!$K29*Achievement_to_date_ongoing!P29,"") -> 7852039.489
B31: =Achievement_to_date_ongoing!B30 -> 129876 | C31: =IF($B31>0, Achievement_to_date_ongoing!C30, "") -> 2 | D31: =IF($B31>0, Achievement_to_date_ongoing!D30, "") -> All | E31: =IF($B31>0, Achievement_to_date_ongoing!E30, "") -> 1F | F31: =IF($B31>0, Achievement_to_date_ongoing!F30, "") -> All | G31: 346349.0599 | H31: 871749.0271 | I31: 871749.0271 | J31: 871749.0271 | L31: =IF($B31>0,Achievement_to_date_ongoing!$K30*Achievement_to_date_ongoing!M30,"") -> 346349.0599 | M31: =IF($B31>0,Achievement_to_date_ongoing!$K30*Achievement_to_date_ongoing!N30,"") -> 871749.0271 | N31: =IF($B31>0,Achievement_to_date_ongoing!$K30*Achievement_to_date_ongoing!O30,"") -> 871749.0271 | O31: =IF($B31>0,Achievement_to_date_ongoing!$K30*Achievement_to_date_ongoing!P30,"") -> 871749.0271
B32: =Achievement_to_date_ongoing!B31 -> 129910 | C32: =IF($B32>0, Achievement_to_date_ongoing!C31, "") -> 2 | D32: =IF($B32>0, Achievement_to_date_ongoing!D31, "") -> All | E32: =IF($B32>0, Achievement_to_date_ongoing!E31, "") -> 1F | F32: =IF($B32>0, Achievement_to_date_ongoing!F31, "") -> All | G32: 76322.39582 | H32: 683562.1066 | I32: 683562.1066 | J32: 683562.1066 | L32: =IF($B32>0,Achievement_to_date_ongoing!$K31*Achievement_to_date_ongoing!M31,"") -> 76322.39582 | M32: =IF($B32>0,Achievement_to_date_ongoing!$K31*Achievement_to_date_ongoing!N31,"") -> 683562.1066 | N32: =IF($B32>0,Achievement_to_date_ongoing!$K31*Achievement_to_date_ongoing!O31,"") -> 683562.1066 | O32: =IF($B32>0,Achievement_to_date_ongoing!$K31*Achievement_to_date_ongoing!P31,"") -> 683562.1066
B33: =Achievement_to_date_ongoing!B32 -> 135093 | C33: =IF($B33>0, Achievement_to_date_ongoing!C32, "") -> 2 | D33: =IF($B33>0, Achievement_to_date_ongoing!D32, "") -> All | E33: =IF($B33>0, Achievement_to_date_ongoing!E32, "") -> 1F | F33: =IF($B33>0, Achievement_to_date_ongoing!F32, "") -> All | G33: 0 | H33: 346579.0916 | I33: 346579.0916 | J33: 346579.0916 | L33: =IF($B33>0,Achievement_to_date_ongoing!$K32*Achievement_to_date_ongoing!M32,"") -> 0 | M33: =IF($B33>0,Achievement_to_date_ongoing!$K32*Achievement_to_date_ongoing!N32,"") -> 346579.0916 | N33: =IF($B33>0,Achievement_to_date_ongoing!$K32*Achievement_to_date_ongoing!O32,"") -> 346579.0916 | O33: =IF($B33>0,Achievement_to_date_ongoing!$K32*Achievement_to_date_ongoing!P32,"") -> 346579.0916
B34: =Achievement_to_date_ongoing!B33 -> 129886 | C34: =IF($B34>0, Achievement_to_date_ongoing!C33, "") -> 2 | D34: =IF($B34>0, Achievement_to_date_ongoing!D33, "") -> All | E34: =IF($B34>0, Achievement_to_date_ongoing!E33, "") -> 1F | F34: =IF($B34>0, Achievement_to_date_ongoing!F33, "") -> All | G34: 375130.5477 | H34: 2749693.339 | I34: 2749693.339 | J34: 2749693.339 | L34: =IF($B34>0,Achievement_to_date_ongoing!$K33*Achievement_to_date_ongoing!M33,"") -> 375130.5477 | M34: =IF($B34>0,Achievement_to_date_ongoing!$K33*Achievement_to_date_ongoing!N33,"") -> 2749693.339 | N34: =IF($B34>0,Achievement_to_date_ongoing!$K33*Achievement_to_date_ongoing!O33,"") -> 2749693.339 | O34: =IF($B34>0,Achievement_to_date_ongoing!$K33*Achievement_to_date_ongoing!P33,"") -> 2749693.339
B35: =Achievement_to_date_ongoing!B34 -> 122048 | C35: =IF($B35>0, Achievement_to_date_ongoing!C34, "") -> 2 | D35: =IF($B35>0, Achievement_to_date_ongoing!D34, "") -> All | E35: =IF($B35>0, Achievement_to_date_ongoing!E34, "") -> 1F | F35: =IF($B35>0, Achievement_to_date_ongoing!F34, "") -> All | G35: 1503759.143 | H35: 1951816.187 | I35: 1951816.187 | J35: 1951816.187 | L35: =IF($B35>0,Achievement_to_date_ongoing!$K34*Achievement_to_date_ongoing!M34,"") -> 1503759.143 | M35: =IF($B35>0,Achievement_to_date_ongoing!$K34*Achievement_to_date_ongoing!N34,"") -> 1951816.187 | N35: =IF($B35>0,Achievement_to_date_ongoing!$K34*Achievement_to_date_ongoing!O34,"") -> 1951816.187 | O35: =IF($B35>0,Achievement_to_date_ongoing!$K34*Achievement_to_date_ongoing!P34,"") -> 1951816.187
B36: =Achievement_to_date_ongoing!B35 -> 135051 | C36: =IF($B36>0, Achievement_to_date_ongoing!C35, "") -> 2 | D36: =IF($B36>0, Achievement_to_date_ongoing!D35, "") -> All | E36: =IF($B36>0, Achievement_to_date_ongoing!E35, "") -> 1F | F36: =IF($B36>0, Achievement_to_date_ongoing!F35, "") -> All | G36: 0 | H36: 1432987.714 | I36: 1848887.72 | J36: 1863425.06 | L36: =IF($B36>0,Achievement_to_date_ongoing!$K35*Achievement_to_date_ongoing!M35,"") -> 0 | M36: =IF($B36>0,Achievement_to_date_ongoing!$K35*Achievement_to_date_ongoing!N35,"") -> 1432987.714 | N36: =IF($B36>0,Achievement_to_date_ongoing!$K35*Achievement_to_date_ongoing!O35,"") -> 1848887.72 | O36: =IF($B36>0,Achievement_to_date_ongoing!$K35*Achievement_to_date_ongoing!P35,"") -> 1863425.06
B37: =Achievement_to_date_ongoing!B36 -> 135364 | C37: =IF($B37>0, Achievement_to_date_ongoing!C36, "") -> 2 | D37: =IF($B37>0, Achievement_to_date_ongoing!D36, "") -> All | E37: =IF($B37>0, Achievement_to_date_ongoing!E36, "") -> 1F | F37: =IF($B37>0, Achievement_to_date_ongoing!F36, "") -> All | G37: 0 | H37: 6803761.924 | I37: 7723698.897 | J37: 7723698.897 | L37: =IF($B37>0,Achievement_to_date_ongoing!$K36*Achievement_to_date_ongoing!M36,"") -> 0 | M37: =IF($B37>0,Achievement_to_date_ongoing!$K36*Achievement_to_date_ongoing!N36,"") -> 6803761.924 | N37: =IF($B37>0,Achievement_to_date_ongoing!$K36*Achievement_to_date_ongoing!O36,"") -> 7723698.897 | O37: =IF($B37>0,Achievement_to_date_ongoing!$K36*Achievement_to_date_ongoing!P36,"") -> 7723698.897
B38: =Achievement_to_date_ongoing!B37 -> 135011 | C38: =IF($B38>0, Achievement_to_date_ongoing!C37, "") -> 2 | D38: =IF($B38>0, Achievement_to_date_ongoing!D37, "") -> All | E38: =IF($B38>0, Achievement_to_date_ongoing!E37, "") -> 1F | F38: =IF($B38>0, Achievement_to_date_ongoing!F37, "") -> All | G38: 0 | H38: 1339106.419 | I38: 1759119.351 | J38: 1801864.333 | L38: =IF($B38>0,Achievement_to_date_ongoing!$K37*Achievement_to_date_ongoing!M37,"") -> 0 | M38: =IF($B38>0,Achievement_to_date_ongoing!$K37*Achievement_to_date_ongoing!N37,"") -> 1339106.419 | N38: =IF($B38>0,Achievement_to_date_ongoing!$K37*Achievement_to_date_ongoing!O37,"") -> 1759119.351 | O38: =IF($B38>0,Achievement_to_date_ongoing!$K37*Achievement_to_date_ongoing!P37,"") -> 1801864.333
B39: =Achievement_to_date_ongoing!B38 -> 127241 | C39: =IF($B39>0, Achievement_to_date_ongoing!C38, "") -> 2 | D39: =IF($B39>0, Achievement_to_date_ongoing!D38, "") -> All | E39: =IF($B39>0, Achievement_to_date_ongoing!E38, "") -> 1F | F39: =IF($B39>0, Achievement_to_date_ongoing!F38, "") -> All | G39: 21910.34249 | H39: 650580.0648 | I39: 650580.0648 | J39: 650580.0648 | L39: =IF($B39>0,Achievement_to_date_ongoing!$K38*Achievement_to_date_ongoing!M38,"") -> 21910.34249 | M39: =IF($B39>0,Achievement_to_date_ongoing!$K38*Achievement_to_date_ongoing!N38,"") -> 650580.0648 | N39: =IF($B39>0,Achievement_to_date_ongoing!$K38*Achievement_to_date_ongoing!O38,"") -> 650580.0648 | O39: =IF($B39>0,Achievement_to_date_ongoing!$K38*Achievement_to_date_ongoing!P38,"") -> 650580.0648
B40: =Achievement_to_date_ongoing!B39 -> 126941 | C40: =IF($B40>0, Achievement_to_date_ongoing!C39, "") -> 2 | D40: =IF($B40>0, Achievement_to_date_ongoing!D39, "") -> All | E40: =IF($B40>0, Achievement_to_date_ongoing!E39, "") -> 1F | F40: =IF($B40>0, Achievement_to_date_ongoing!F39, "") -> All | G40: 236280.4266 | H40: 1881174.758 | I40: 1881174.758 | J40: 1881174.758 | L40: =IF($B40>0,Achievement_to_date_ongoing!$K39*Achievement_to_date_ongoing!M39,"") -> 236280.4266 | M40: =IF($B40>0,Achievement_to_date_ongoing!$K39*Achievement_to_date_ongoing!N39,"") -> 1881174.758 | N40: =IF($B40>0,Achievement_to_date_ongoing!$K39*Achievement_to_date_ongoing!O39,"") -> 1881174.758 | O40: =IF($B40>0,Achievement_to_date_ongoing!$K39*Achievement_to_date_ongoing!P39,"") -> 1881174.758
B41: =Achievement_to_date_ongoing!B40 -> 135059 | C41: =IF($B41>0, Achievement_to_date_ongoing!C40, "") -> 2 | D41: =IF($B41>0, Achievement_to_date_ongoing!D40, "") -> All | E41: =IF($B41>0, Achievement_to_date_ongoing!E40, "") -> 1F | F41: =IF($B41>0, Achievement_to_date_ongoing!F40, "") -> All | G41: 0 | H41: 626822.2037 | I41: 720235.0472 | J41: 720235.0472 | L41: =IF($B41>0,Achievement_to_date_ongoing!$K40*Achievement_to_date_ongoing!M40,"") -> 0 | M41: =IF($B41>0,Achievement_to_date_ongoing!$K40*Achievement_to_date_ongoing!N40,"") -> 626822.2037 | N41: =IF($B41>0,Achievement_to_date_ongoing!$K40*Achievement_to_date_ongoing!O40,"") -> 720235.0472 | O41: =IF($B41>0,Achievement_to_date_ongoing!$K40*Achievement_to_date_ongoing!P40,"") -> 720235.0472
B42: =Achievement_to_date_ongoing!B41 -> 129733 | C42: =IF($B42>0, Achievement_to_date_ongoing!C41, "") -> 2 | D42: =IF($B42>0, Achievement_to_date_ongoing!D41, "") -> All | E42: =IF($B42>0, Achievement_to_date_ongoing!E41, "") -> 1F | F42: =IF($B42>0, Achievement_to_date_ongoing!F41, "") -> All | G42: 127372.0223 | H42: 1711250.377 | I42: 1711250.377 | J42: 1711250.377 | L42: =IF($B42>0,Achievement_to_date_ongoing!$K41*Achievement_to_date_ongoing!M41,"") -> 127372.0223 | M42: =IF($B42>0,Achievement_to_date_ongoing!$K41*Achievement_to_date_ongoing!N41,"") -> 1711250.377 | N42: =IF($B42>0,Achievement_to_date_ongoing!$K41*Achievement_to_date_ongoing!O41,"") -> 1711250.377 | O42: =IF($B42>0,Achievement_to_date_ongoing!$K41*Achievement_to_date_ongoing!P41,"") -> 1711250.377
B43: =Achievement_to_date_ongoing!B42 -> 126939 | C43: =IF($B43>0, Achievement_to_date_ongoing!C42, "") -> 2 | D43: =IF($B43>0, Achievement_to_date_ongoing!D42, "") -> All | E43: =IF($B43>0, Achievement_to_date_ongoing!E42, "") -> 1F | F43: =IF($B43>0, Achievement_to_date_ongoing!F42, "") -> All | G43: 2469973.202 | H43: 2538223.32 | I43: 2538223.32 | J43: 2538223.32 | L43: =IF($B43>0,Achievement_to_date_ongoing!$K42*Achievement_to_date_ongoing!M42,"") -> 2469973.202 | M43: =IF($B43>0,Achievement_to_date_ongoing!$K42*Achievement_to_date_ongoing!N42,"") -> 2538223.32 | N43: =IF($B43>0,Achievement_to_date_ongoing!$K42*Achievement_to_date_ongoing!O42,"") -> 2538223.32 | O43: =IF($B43>0,Achievement_to_date_ongoing!$K42*Achievement_to_date_ongoing!P42,"") -> 2538223.32
B44: =Achievement_to_date_ongoing!B43 -> 126959 | C44: =IF($B44>0, Achievement_to_date_ongoing!C43, "") -> 2 | D44: =IF($B44>0, Achievement_to_date_ongoing!D43, "") -> All | E44: =IF($B44>0, Achievement_to_date_ongoing!E43, "") -> 1F | F44: =IF($B44>0, Achievement_to_date_ongoing!F43, "") -> All | G44: 533970.718 | H44: 2239221.059 | I44: 2239221.059 | J44: 2239221.059 | L44: =IF($B44>0,Achievement_to_date_ongoing!$K43*Achievement_to_date_ongoing!M43,"") -> 533970.718 | M44: =IF($B44>0,Achievement_to_date_ongoing!$K43*Achievement_to_date_ongoing!N43,"") -> 2239221.059 | N44: =IF($B44>0,Achievement_to_date_ongoing!$K43*Achievement_to_date_ongoing!O43,"") -> 2239221.059 | O44: =IF($B44>0,Achievement_to_date_ongoing!$K43*Achievement_to_date_ongoing!P43,"") -> 2239221.059
B45: =Achievement_to_date_ongoing!B44 -> 127280 | C45: =IF($B45>0, Achievement_to_date_ongoing!C44, "") -> 2 | D45: =IF($B45>0, Achievement_to_date_ongoing!D44, "") -> All | E45: =IF($B45>0, Achievement_to_date_ongoing!E44, "") -> 1F | F45: =IF($B45>0, Achievement_to_date_ongoing!F44, "") -> All | G45: 1398805.606 | H45: 5808532.958 | I45: 5808532.958 | J45: 5808532.958 | L45: =IF($B45>0,Achievement_to_date_ongoing!$K44*Achievement_to_date_ongoing!M44,"") -> 1398805.606 | M45: =IF($B45>0,Achievement_to_date_ongoing!$K44*Achievement_to_date_ongoing!N44,"") -> 5808532.958 | N45: =IF($B45>0,Achievement_to_date_ongoing!$K44*Achievement_to_date_ongoing!O44,"") -> 5808532.958 | O45: =IF($B45>0,Achievement_to_date_ongoing!$K44*Achievement_to_date_ongoing!P44,"") -> 5808532.958
B46: =Achievement_to_date_ongoing!B45 -> 129904 | C46: =IF($B46>0, Achievement_to_date_ongoing!C45, "") -> 2 | D46: =IF($B46>0, Achievement_to_date_ongoing!D45, "") -> All | E46: =IF($B46>0, Achievement_to_date_ongoing!E45, "") -> 1F | F46: =IF($B46>0, Achievement_to_date_ongoing!F45, "") -> All | G46: 57353.18627 | H46: 2975118.646 | I46: 2980692.27 | J46: 2980692.27 | L46: =IF($B46>0,Achievement_to_date_ongoing!$K45*Achievement_to_date_ongoing!M45,"") -> 57353.18627 | M46: =IF($B46>0,Achievement_to_date_ongoing!$K45*Achievement_to_date_ongoing!N45,"") -> 2975118.646 | N46: =IF($B46>0,Achievement_to_date_ongoing!$K45*Achievement_to_date_ongoing!O45,"") -> 2980692.27 | O46: =IF($B46>0,Achievement_to_date_ongoing!$K45*Achievement_to_date_ongoing!P45,"") -> 2980692.27
B47: =Achievement_to_date_ongoing!B46 -> 134339 | C47: =IF($B47>0, Achievement_to_date_ongoing!C46, "") -> 2 | D47: =IF($B47>0, Achievement_to_date_ongoing!D46, "") -> All | E47: =IF($B47>0, Achievement_to_date_ongoing!E46, "") -> 1F | F47: =IF($B47>0, Achievement_to_date_ongoing!F46, "") -> All | G47: 0 | H47: 6947949.484 | I47: 7983375.022 | J47: 7983375.022 | L47: =IF($B47>0,Achievement_to_date_ongoing!$K46*Achievement_to_date_ongoing!M46,"") -> 0 | M47: =IF($B47>0,Achievement_to_date_ongoing!$K46*Achievement_to_date_ongoing!N46,"") -> 6947949.484 | N47: =IF($B47>0,Achievement_to_date_ongoing!$K46*Achievement_to_date_ongoing!O46,"") -> 7983375.022 | O47: =IF($B47>0,Achievement_to_date_ongoing!$K46*Achievement_to_date_ongoing!P46,"") -> 7983375.022
B48: =Achievement_to_date_ongoing!B47 -> 135077 | C48: =IF($B48>0, Achievement_to_date_ongoing!C47, "") -> 2 | D48: =IF($B48>0, Achievement_to_date_ongoing!D47, "") -> All | E48: =IF($B48>0, Achievement_to_date_ongoing!E47, "") -> 1F | F48: =IF($B48>0, Achievement_to_date_ongoing!F47, "") -> All | G48: 0 | H48: 1921740.632 | I48: 2222226.406 | J48: 2222226.406 | L48: =IF($B48>0,Achievement_to_date_ongoing!$K47*Achievement_to_date_ongoing!M47,"") -> 0 | M48: =IF($B48>0,Achievement_to_date_ongoing!$K47*Achievement_to_date_ongoing!N47,"") -> 1921740.632 | N48: =IF($B48>0,Achievement_to_date_ongoing!$K47*Achievement_to_date_ongoing!O47,"") -> 2222226.406 | O48: =IF($B48>0,Achievement_to_date_ongoing!$K47*Achievement_to_date_ongoing!P47,"") -> 2222226.406
B49: =Achievement_to_date_ongoing!B48 -> 129366 | C49: =IF($B49>0, Achievement_to_date_ongoing!C48, "") -> 2 | D49: =IF($B49>0, Achievement_to_date_ongoing!D48, "") -> All | E49: =IF($B49>0, Achievement_to_date_ongoing!E48, "") -> 1F | F49: =IF($B49>0, Achievement_to_date_ongoing!F48, "") -> All | G49: 1697238.026 | H49: 8005992.111 | I49: 8005992.111 | J49: 8005992.111 | L49: =IF($B49>0,Achievement_to_date_ongoing!$K48*Achievement_to_date_ongoing!M48,"") -> 1697238.026 | M49: =IF($B49>0,Achievement_to_date_ongoing!$K48*Achievement_to_date_ongoing!N48,"") -> 8005992.111 | N49: =IF($B49>0,Achievement_to_date_ongoing!$K48*Achievement_to_date_ongoing!O48,"") -> 8005992.111 | O49: =IF($B49>0,Achievement_to_date_ongoing!$K48*Achievement_to_date_ongoing!P48,"") -> 8005992.111
B50: =Achievement_to_date_ongoing!B49 -> 129800 | C50: =IF($B50>0, Achievement_to_date_ongoing!C49, "") -> 2 | D50: =IF($B50>0, Achievement_to_date_ongoing!D49, "") -> All | E50: =IF($B50>0, Achievement_to_date_ongoing!E49, "") -> 1F | F50: =IF($B50>0, Achievement_to_date_ongoing!F49, "") -> All | G50: 111102.5763 | H50: 1709270.404 | I50: 1709270.404 | J50: 1709270.404 | L50: =IF($B50>0,Achievement_to_date_ongoing!$K49*Achievement_to_date_ongoing!M49,"") -> 111102.5763 | M50: =IF($B50>0,Achievement_to_date_ongoing!$K49*Achievement_to_date_ongoing!N49,"") -> 1709270.404 | N50: =IF($B50>0,Achievement_to_date_ongoing!$K49*Achievement_to_date_ongoing!O49,"") -> 1709270.404 | O50: =IF($B50>0,Achievement_to_date_ongoing!$K49*Achievement_to_date_ongoing!P49,"") -> 1709270.404
B51: =Achievement_to_date_ongoing!B50 -> 129925 | C51: =IF($B51>0, Achievement_to_date_ongoing!C50, "") -> 2 | D51: =IF($B51>0, Achievement_to_date_ongoing!D50, "") -> All | E51: =IF($B51>0, Achievement_to_date_ongoing!E50, "") -> 1F | F51: =IF($B51>0, Achievement_to_date_ongoing!F50, "") -> All | G51: 81980.01158 | H51: 1558654.653 | I51: 1558654.653 | J51: 1558654.653 | L51: =IF($B51>0,Achievement_to_date_ongoing!$K50*Achievement_to_date_ongoing!M50,"") -> 81980.01158 | M51: =IF($B51>0,Achievement_to_date_ongoing!$K50*Achievement_to_date_ongoing!N50,"") -> 1558654.653 | N51: =IF($B51>0,Achievement_to_date_ongoing!$K50*Achievement_to_date_ongoing!O50,"") -> 1558654.653 | O51: =IF($B51>0,Achievement_to_date_ongoing!$K50*Achievement_to_date_ongoing!P50,"") -> 1558654.653
B52: =Achievement_to_date_ongoing!B51 -> 135394 | C52: =IF($B52>0, Achievement_to_date_ongoing!C51, "") -> 2 | D52: =IF($B52>0, Achievement_to_date_ongoing!D51, "") -> All | E52: =IF($B52>0, Achievement_to_date_ongoing!E51, "") -> 1F | F52: =IF($B52>0, Achievement_to_date_ongoing!F51, "") -> All | G52: 0 | H52: 718967.1563 | I52: 831385.7622 | J52: 831385.7622 | L52: =IF($B52>0,Achievement_to_date_ongoing!$K51*Achievement_to_date_ongoing!M51,"") -> 0 | M52: =IF($B52>0,Achievement_to_date_ongoing!$K51*Achievement_to_date_ongoing!N51,"") -> 718967.1563 | N52: =IF($B52>0,Achievement_to_date_ongoing!$K51*Achievement_to_date_ongoing!O51,"") -> 831385.7622 | O52: =IF($B52>0,Achievement_to_date_ongoing!$K51*Achievement_to_date_ongoing!P51,"") -> 831385.7622
B53: =Achievement_to_date_ongoing!B52 -> 129805 | C53: =IF($B53>0, Achievement_to_date_ongoing!C52, "") -> 2 | D53: =IF($B53>0, Achievement_to_date_ongoing!D52, "") -> All | E53: =IF($B53>0, Achievement_to_date_ongoing!E52, "") -> 1F | F53: =IF($B53>0, Achievement_to_date_ongoing!F52, "") -> All | G53: 617207.7682 | H53: 2049002.682 | I53: 2049002.682 | J53: 2049002.682 | L53: =IF($B53>0,Achievement_to_date_ongoing!$K52*Achievement_to_date_ongoing!M52,"") -> 617207.7682 | M53: =IF($B53>0,Achievement_to_date_ongoing!$K52*Achievement_to_date_ongoing!N52,"") -> 2049002.682 | N53: =IF($B53>0,Achievement_to_date_ongoing!$K52*Achievement_to_date_ongoing!O52,"") -> 2049002.682 | O53: =IF($B53>0,Achievement_to_date_ongoing!$K52*Achievement_to_date_ongoing!P52,"") -> 2049002.682
B54: =Achievement_to_date_ongoing!B53 -> 129879 | C54: =IF($B54>0, Achievement_to_date_ongoing!C53, "") -> 2 | D54: =IF($B54>0, Achievement_to_date_ongoing!D53, "") -> All | E54: =IF($B54>0, Achievement_to_date_ongoing!E53, "") -> 1F | F54: =IF($B54>0, Achievement_to_date_ongoing!F53, "") -> All | G54: 221402.6014 | H54: 5582986.72 | I54: 5582986.72 | J54: 5582986.72 | L54: =IF($B54>0,Achievement_to_date_ongoing!$K53*Achievement_to_date_ongoing!M53,"") -> 221402.6014 | M54: =IF($B54>0,Achievement_to_date_ongoing!$K53*Achievement_to_date_ongoing!N53,"") -> 5582986.72 | N54: =IF($B54>0,Achievement_to_date_ongoing!$K53*Achievement_to_date_ongoing!O53,"") -> 5582986.72 | O54: =IF($B54>0,Achievement_to_date_ongoing!$K53*Achievement_to_date_ongoing!P53,"") -> 5582986.72
B55: =Achievement_to_date_ongoing!B54 -> 129450 | C55: =IF($B55>0, Achievement_to_date_ongoing!C54, "") -> 2 | D55: =IF($B55>0, Achievement_to_date_ongoing!D54, "") -> All | E55: =IF($B55>0, Achievement_to_date_ongoing!E54, "") -> 1F | F55: =IF($B55>0, Achievement_to_date_ongoing!F54, "") -> All | G55: 46901.86623 | H55: 529240.4271 | I55: 529240.4271 | J55: 529240.4271 | L55: =IF($B55>0,Achievement_to_date_ongoing!$K54*Achievement_to_date_ongoing!M54,"") -> 46901.86623 | M55: =IF($B55>0,Achievement_to_date_ongoing!$K54*Achievement_to_date_ongoing!N54,"") -> 529240.4271 | N55: =IF($B55>0,Achievement_to_date_ongoing!$K54*Achievement_to_date_ongoing!O54,"") -> 529240.4271 | O55: =IF($B55>0,Achievement_to_date_ongoing!$K54*Achievement_to_date_ongoing!P54,"") -> 529240.4271
B56: =Achievement_to_date_ongoing!B55 -> 129778 | C56: =IF($B56>0, Achievement_to_date_ongoing!C55, "") -> 2 | D56: =IF($B56>0, Achievement_to_date_ongoing!D55, "") -> All | E56: =IF($B56>0, Achievement_to_date_ongoing!E55, "") -> 1F | F56: =IF($B56>0, Achievement_to_date_ongoing!F55, "") -> All | G56: 0 | H56: 7997088.385 | I56: 7997088.385 | J56: 7997088.385 | L56: =IF($B56>0,Achievement_to_date_ongoing!$K55*Achievement_to_date_ongoing!M55,"") -> 0 | M56: =IF($B56>0,Achievement_to_date_ongoing!$K55*Achievement_to_date_ongoing!N55,"") -> 7997088.385 | N56: =IF($B56>0,Achievement_to_date_ongoing!$K55*Achievement_to_date_ongoing!O55,"") -> 7997088.385 | O56: =IF($B56>0,Achievement_to_date_ongoing!$K55*Achievement_to_date_ongoing!P55,"") -> 7997088.385
B57: =Achievement_to_date_ongoing!B56 -> 135055 | C57: =IF($B57>0, Achievement_to_date_ongoing!C56, "") -> 2 | D57: =IF($B57>0, Achievement_to_date_ongoing!D56, "") -> All | E57: =IF($B57>0, Achievement_to_date_ongoing!E56, "") -> 1F | F57: =IF($B57>0, Achievement_to_date_ongoing!F56, "") -> All | G57: 0 | H57: 1668501.428 | I57: 2171865.862 | J57: 2193562.19 | L57: =IF($B57>0,Achievement_to_date_ongoing!$K56*Achievement_to_date_ongoing!M56,"") -> 0 | M57: =IF($B57>0,Achievement_to_date_ongoing!$K56*Achievement_to_date_ongoing!N56,"") -> 1668501.428 | N57: =IF($B57>0,Achievement_to_date_ongoing!$K56*Achievement_to_date_ongoing!O56,"") -> 2171865.862 | O57: =IF($B57>0,Achievement_to_date_ongoing!$K56*Achievement_to_date_ongoing!P56,"") -> 2193562.19
B58: =Achievement_to_date_ongoing!B57 -> 135320 | C58: =IF($B58>0, Achievement_to_date_ongoing!C57, "") -> 2 | D58: =IF($B58>0, Achievement_to_date_ongoing!D57, "") -> All | E58: =IF($B58>0, Achievement_to_date_ongoing!E57, "") -> 1F | F58: =IF($B58>0, Achievement_to_date_ongoing!F57, "") -> All | G58: 0 | H58: 2185578.287 | I58: 2341377.456 | J58: 2341377.456 | L58: =IF($B58>0,Achievement_to_date_ongoing!$K57*Achievement_to_date_ongoing!M57,"") -> 0 | M58: =IF($B58>0,Achievement_to_date_ongoing!$K57*Achievement_to_date_ongoing!N57,"") -> 2185578.287 | N58: =IF($B58>0,Achievement_to_date_ongoing!$K57*Achievement_to_date_ongoing!O57,"") -> 2341377.456 | O58: =IF($B58>0,Achievement_to_date_ongoing!$K57*Achievement_to_date_ongoing!P57,"") -> 2341377.456
B59: =Achievement_to_date_ongoing!B58 -> 135516 | C59: =IF($B59>0, Achievement_to_date_ongoing!C58, "") -> 2 | D59: =IF($B59>0, Achievement_to_date_ongoing!D58, "") -> All | E59: =IF($B59>0, Achievement_to_date_ongoing!E58, "") -> 1F | F59: =IF($B59>0, Achievement_to_date_ongoing!F58, "") -> All | G59: 0 | H59: 661809.9057 | I59: 672925.9536 | J59: 672925.9536 | L59: =IF($B59>0,Achievement_to_date_ongoing!$K58*Achievement_to_date_ongoing!M58,"") -> 0 | M59: =IF($B59>0,Achievement_to_date_ongoing!$K58*Achievement_to_date_ongoing!N58,"") -> 661809.9057 | N59: =IF($B59>0,Achievement_to_date_ongoing!$K58*Achievement_to_date_ongoing!O58,"") -> 672925.9536 | O59: =IF($B59>0,Achievement_to_date_ongoing!$K58*Achievement_to_date_ongoing!P58,"") -> 672925.9536
B60: =Achievement_to_date_ongoing!B59 -> 135249 | C60: =IF($B60>0, Achievement_to_date_ongoing!C59, "") -> 2 | D60: =IF($B60>0, Achievement_to_date_ongoing!D59, "") -> All | E60: =IF($B60>0, Achievement_to_date_ongoing!E59, "") -> 1F | F60: =IF($B60>0, Achievement_to_date_ongoing!F59, "") -> All | G60: 0 | H60: 351464.4275 | I60: 461701.8233 | J60: 472920.753 | L60: =IF($B60>0,Achievement_to_date_ongoing!$K59*Achievement_to_date_ongoing!M59,"") -> 0 | M60: =IF($B60>0,Achievement_to_date_ongoing!$K59*Achievement_to_date_ongoing!N59,"") -> 351464.4275 | N60: =IF($B60>0,Achievement_to_date_ongoing!$K59*Achievement_to_date_ongoing!O59,"") -> 461701.8233 | O60: =IF($B60>0,Achievement_to_date_ongoing!$K59*Achievement_to_date_ongoing!P59,"") -> 472920.753
B61: =Achievement_to_date_ongoing!B60 -> 134374 | C61: =IF($B61>0, Achievement_to_date_ongoing!C60, "") -> 2 | D61: =IF($B61>0, Achievement_to_date_ongoing!D60, "") -> All | E61: =IF($B61>0, Achievement_to_date_ongoing!E60, "") -> 1F | F61: =IF($B61>0, Achievement_to_date_ongoing!F60, "") -> All | G61: 0 | H61: 7867191.002 | I61: 7980903.034 | J61: 7980903.034 | L61: =IF($B61>0,Achievement_to_date_ongoing!$K60*Achievement_to_date_ongoing!M60,"") -> 0 | M61: =IF($B61>0,Achievement_to_date_ongoing!$K60*Achievement_to_date_ongoing!N60,"") -> 7867191.002 | N61: =IF($B61>0,Achievement_to_date_ongoing!$K60*Achievement_to_date_ongoing!O60,"") -> 7980903.034 | O61: =IF($B61>0,Achievement_to_date_ongoing!$K60*Achievement_to_date_ongoing!P60,"") -> 7980903.034
B62: =Achievement_to_date_ongoing!B61 -> 135379 | C62: =IF($B62>0, Achievement_to_date_ongoing!C61, "") -> 2 | D62: =IF($B62>0, Achievement_to_date_ongoing!D61, "") -> All | E62: =IF($B62>0, Achievement_to_date_ongoing!E61, "") -> 1F | F62: =IF($B62>0, Achievement_to_date_ongoing!F61, "") -> All | G62: 0 | H62: 2595412.011 | I62: 2963909.671 | J62: 2963909.671 | L62: =IF($B62>0,Achievement_to_date_ongoing!$K61*Achievement_to_date_ongoing!M61,"") -> 0 | M62: =IF($B62>0,Achievement_to_date_ongoing!$K61*Achievement_to_date_ongoing!N61,"") -> 2595412.011 | N62: =IF($B62>0,Achievement_to_date_ongoing!$K61*Achievement_to_date_ongoing!O61,"") -> 2963909.671 | O62: =IF($B62>0,Achievement_to_date_ongoing!$K61*Achievement_to_date_ongoing!P61,"") -> 2963909.671
B63: =Achievement_to_date_ongoing!B62 -> 129835 | C63: =IF($B63>0, Achievement_to_date_ongoing!C62, "") -> 2 | D63: =IF($B63>0, Achievement_to_date_ongoing!D62, "") -> All | E63: =IF($B63>0, Achievement_to_date_ongoing!E62, "") -> 1F | F63: =IF($B63>0, Achievement_to_date_ongoing!F62, "") -> All | G63: 66379.47222 | H63: 1138994.705 | I63: 1138994.705 | J63: 1138994.705 | L63: =IF($B63>0,Achievement_to_date_ongoing!$K62*Achievement_to_date_ongoing!M62,"") -> 66379.47222 | M63: =IF($B63>0,Achievement_to_date_ongoing!$K62*Achievement_to_date_ongoing!N62,"") -> 1138994.705 | N63: =IF($B63>0,Achievement_to_date_ongoing!$K62*Achievement_to_date_ongoing!O62,"") -> 1138994.705 | O63: =IF($B63>0,Achievement_to_date_ongoing!$K62*Achievement_to_date_ongoing!P62,"") -> 1138994.705
B64: =Achievement_to_date_ongoing!B63 -> 129941 | C64: =IF($B64>0, Achievement_to_date_ongoing!C63, "") -> 2 | D64: =IF($B64>0, Achievement_to_date_ongoing!D63, "") -> All | E64: =IF($B64>0, Achievement_to_date_ongoing!E63, "") -> 1F | F64: =IF($B64>0, Achievement_to_date_ongoing!F63, "") -> All | G64: 6579414.519 | H64: 7999861.742 | I64: 7999861.742 | J64: 7999861.742 | L64: =IF($B64>0,Achievement_to_date_ongoing!$K63*Achievement_to_date_ongoing!M63,"") -> 6579414.519 | M64: =IF($B64>0,Achievement_to_date_ongoing!$K63*Achievement_to_date_ongoing!N63,"") -> 7999861.742 | N64: =IF($B64>0,Achievement_to_date_ongoing!$K63*Achievement_to_date_ongoing!O63,"") -> 7999861.742 | O64: =IF($B64>0,Achievement_to_date_ongoing!$K63*Achievement_to_date_ongoing!P63,"") -> 7999861.742
B65: =Achievement_to_date_ongoing!B64 -> 129858 | C65: =IF($B65>0, Achievement_to_date_ongoing!C64, "") -> 2 | D65: =IF($B65>0, Achievement_to_date_ongoing!D64, "") -> All | E65: =IF($B65>0, Achievement_to_date_ongoing!E64, "") -> 1F | F65: =IF($B65>0, Achievement_to_date_ongoing!F64, "") -> All | G65: 440270.8564 | H65: 562003.25 | I65: 562003.25 | J65: 562003.25 | L65: =IF($B65>0,Achievement_to_date_ongoing!$K64*Achievement_to_date_ongoing!M64,"") -> 440270.8564 | M65: =IF($B65>0,Achievement_to_date_ongoing!$K64*Achievement_to_date_ongoing!N64,"") -> 562003.25 | N65: =IF($B65>0,Achievement_to_date_ongoing!$K64*Achievement_to_date_ongoing!O64,"") -> 562003.25 | O65: =IF($B65>0,Achievement_to_date_ongoing!$K64*Achievement_to_date_ongoing!P64,"") -> 562003.25
B66: =Achievement_to_date_ongoing!B65 -> 126808 | C66: =IF($B66>0, Achievement_to_date_ongoing!C65, "") -> 2 | D66: =IF($B66>0, Achievement_to_date_ongoing!D65, "") -> All | E66: =IF($B66>0, Achievement_to_date_ongoing!E65, "") -> 1F | F66: =IF($B66>0, Achievement_to_date_ongoing!F65, "") -> All | G66: 1303903.572 | H66: 1751315.14 | I66: 1751315.14 | J66: 1751315.14 | L66: =IF($B66>0,Achievement_to_date_ongoing!$K65*Achievement_to_date_ongoing!M65,"") -> 1303903.572 | M66: =IF($B66>0,Achievement_to_date_ongoing!$K65*Achievement_to_date_ongoing!N65,"") -> 1751315.14 | N66: =IF($B66>0,Achievement_to_date_ongoing!$K65*Achievement_to_date_ongoing!O65,"") -> 1751315.14 | O66: =IF($B66>0,Achievement_to_date_ongoing!$K65*Achievement_to_date_ongoing!P65,"") -> 1751315.14
B67: =Achievement_to_date_ongoing!B66 -> 127210 | C67: =IF($B67>0, Achievement_to_date_ongoing!C66, "") -> 2 | D67: =IF($B67>0, Achievement_to_date_ongoing!D66, "") -> All | E67: =IF($B67>0, Achievement_to_date_ongoing!E66, "") -> 1F | F67: =IF($B67>0, Achievement_to_date_ongoing!F66, "") -> All | G67: 434612.389 | H67: 1108746.22 | I67: 1108746.22 | J67: 1108746.22 | L67: =IF($B67>0,Achievement_to_date_ongoing!$K66*Achievement_to_date_ongoing!M66,"") -> 434612.389 | M67: =IF($B67>0,Achievement_to_date_ongoing!$K66*Achievement_to_date_ongoing!N66,"") -> 1108746.22 | N67: =IF($B67>0,Achievement_to_date_ongoing!$K66*Achievement_to_date_ongoing!O66,"") -> 1108746.22 | O67: =IF($B67>0,Achievement_to_date_ongoing!$K66*Achievement_to_date_ongoing!P66,"") -> 1108746.22
B68: =Achievement_to_date_ongoing!B67 -> 135229 | C68: =IF($B68>0, Achievement_to_date_ongoing!C67, "") -> 2 | D68: =IF($B68>0, Achievement_to_date_ongoing!D67, "") -> All | E68: =IF($B68>0, Achievement_to_date_ongoing!E67, "") -> 1F | F68: =IF($B68>0, Achievement_to_date_ongoing!F67, "") -> All | G68: 0 | H68: 2136166.998 | I68: 2470180.748 | J68: 2470180.748 | L68: =IF($B68>0,Achievement_to_date_ongoing!$K67*Achievement_to_date_ongoing!M67,"") -> 0 | M68: =IF($B68>0,Achievement_to_date_ongoing!$K67*Achievement_to_date_ongoing!N67,"") -> 2136166.998 | N68: =IF($B68>0,Achievement_to_date_ongoing!$K67*Achievement_to_date_ongoing!O67,"") -> 2470180.748 | O68: =IF($B68>0,Achievement_to_date_ongoing!$K67*Achievement_to_date_ongoing!P67,"") -> 2470180.748
B69: =Achievement_to_date_ongoing!B68 -> 135250 | C69: =IF($B69>0, Achievement_to_date_ongoing!C68, "") -> 2 | D69: =IF($B69>0, Achievement_to_date_ongoing!D68, "") -> All | E69: =IF($B69>0, Achievement_to_date_ongoing!E68, "") -> 1F | F69: =IF($B69>0, Achievement_to_date_ongoing!F68, "") -> All | G69: 0 | H69: 977279.2906 | I69: 1042877.569 | J69: 1042877.569 | L69: =IF($B69>0,Achievement_to_date_ongoing!$K68*Achievement_to_date_ongoing!M68,"") -> 0 | M69: =IF($B69>0,Achievement_to_date_ongoing!$K68*Achievement_to_date_ongoing!N68,"") -> 977279.2906 | N69: =IF($B69>0,Achievement_to_date_ongoing!$K68*Achievement_to_date_ongoing!O68,"") -> 1042877.569 | O69: =IF($B69>0,Achievement_to_date_ongoing!$K68*Achievement_to_date_ongoing!P68,"") -> 1042877.569
B70: =Achievement_to_date_ongoing!B69 -> 135030 | C70: =IF($B70>0, Achievement_to_date_ongoing!C69, "") -> 2 | D70: =IF($B70>0, Achievement_to_date_ongoing!D69, "") -> All | E70: =IF($B70>0, Achievement_to_date_ongoing!E69, "") -> 1F | F70: =IF($B70>0, Achievement_to_date_ongoing!F69, "") -> All | G70: 0 | H70: 581775.1632 | I70: 708158.4249 | J70: 708158.4249 | L70: =IF($B70>0,Achievement_to_date_ongoing!$K69*Achievement_to_date_ongoing!M69,"") -> 0 | M70: =IF($B70>0,Achievement_to_date_ongoing!$K69*Achievement_to_date_ongoing!N69,"") -> 581775.1632 | N70: =IF($B70>0,Achievement_to_date_ongoing!$K69*Achievement_to_date_ongoing!O69,"") -> 708158.4249 | O70: =IF($B70>0,Achievement_to_date_ongoing!$K69*Achievement_to_date_ongoing!P69,"") -> 708158.4249
B71: =Achievement_to_date_ongoing!B70 -> 135361 | C71: =IF($B71>0, Achievement_to_date_ongoing!C70, "") -> 2 | D71: =IF($B71>0, Achievement_to_date_ongoing!D70, "") -> All | E71: =IF($B71>0, Achievement_to_date_ongoing!E70, "") -> 1F | F71: =IF($B71>0, Achievement_to_date_ongoing!F70, "") -> All | G71: 0 | H71: 3304544.114 | I71: 4227600.151 | J71: 4252131.168 | L71: =IF($B71>0,Achievement_to_date_ongoing!$K70*Achievement_to_date_ongoing!M70,"") -> 0 | M71: =IF($B71>0,Achievement_to_date_ongoing!$K70*Achievement_to_date_ongoing!N70,"") -> 3304544.114 | N71: =IF($B71>0,Achievement_to_date_ongoing!$K70*Achievement_to_date_ongoing!O70,"") -> 4227600.151 | O71: =IF($B71>0,Achievement_to_date_ongoing!$K70*Achievement_to_date_ongoing!P70,"") -> 4252131.168
B72: =Achievement_to_date_ongoing!B71 -> 135165 | C72: =IF($B72>0, Achievement_to_date_ongoing!C71, "") -> 2 | D72: =IF($B72>0, Achievement_to_date_ongoing!D71, "") -> All | E72: =IF($B72>0, Achievement_to_date_ongoing!E71, "") -> 1F | F72: =IF($B72>0, Achievement_to_date_ongoing!F71, "") -> All | G72: 0 | H72: 3504608.948 | I72: 3686381.419 | J72: 3686381.419 | L72: =IF($B72>0,Achievement_to_date_ongoing!$K71*Achievement_to_date_ongoing!M71,"") -> 0 | M72: =IF($B72>0,Achievement_to_date_ongoing!$K71*Achievement_to_date_ongoing!N71,"") -> 3504608.948 | N72: =IF($B72>0,Achievement_to_date_ongoing!$K71*Achievement_to_date_ongoing!O71,"") -> 3686381.419 | O72: =IF($B72>0,Achievement_to_date_ongoing!$K71*Achievement_to_date_ongoing!P71,"") -> 3686381.419
B73: =Achievement_to_date_ongoing!B72 -> 135328 | C73: =IF($B73>0, Achievement_to_date_ongoing!C72, "") -> 2 | D73: =IF($B73>0, Achievement_to_date_ongoing!D72, "") -> All | E73: =IF($B73>0, Achievement_to_date_ongoing!E72, "") -> 1F | F73: =IF($B73>0, Achievement_to_date_ongoing!F72, "") -> All | G73: 0 | H73: 707895.2197 | I73: 854701.0993 | J73: 854701.0993 | L73: =IF($B73>0,Achievement_to_date_ongoing!$K72*Achievement_to_date_ongoing!M72,"") -> 0 | M73: =IF($B73>0,Achievement_to_date_ongoing!$K72*Achievement_to_date_ongoing!N72,"") -> 707895.2197 | N73: =IF($B73>0,Achievement_to_date_ongoing!$K72*Achievement_to_date_ongoing!O72,"") -> 854701.0993 | O73: =IF($B73>0,Achievement_to_date_ongoing!$K72*Achievement_to_date_ongoing!P72,"") -> 854701.0993
B74: =Achievement_to_date_ongoing!B73 -> 135305 | C74: =IF($B74>0, Achievement_to_date_ongoing!C73, "") -> 2 | D74: =IF($B74>0, Achievement_to_date_ongoing!D73, "") -> All | E74: =IF($B74>0, Achievement_to_date_ongoing!E73, "") -> 1F | F74: =IF($B74>0, Achievement_to_date_ongoing!F73, "") -> All | G74: 0 | H74: 2106761.877 | I74: 2718213.23 | J74: 2739585.858 | L74: =IF($B74>0,Achievement_to_date_ongoing!$K73*Achievement_to_date_ongoing!M73,"") -> 0 | M74: =IF($B74>0,Achievement_to_date_ongoing!$K73*Achievement_to_date_ongoing!N73,"") -> 2106761.877 | N74: =IF($B74>0,Achievement_to_date_ongoing!$K73*Achievement_to_date_ongoing!O73,"") -> 2718213.23 | O74: =IF($B74>0,Achievement_to_date_ongoing!$K73*Achievement_to_date_ongoing!P73,"") -> 2739585.858
B75: =Achievement_to_date_ongoing!B74 -> 135245 | C75: =IF($B75>0, Achievement_to_date_ongoing!C74, "") -> 2 | D75: =IF($B75>0, Achievement_to_date_ongoing!D74, "") -> All | E75: =IF($B75>0, Achievement_to_date_ongoing!E74, "") -> 1F | F75: =IF($B75>0, Achievement_to_date_ongoing!F74, "") -> All | G75: 0 | H75: 1816770.164 | I75: 2211440.397 | J75: 2211440.397 | L75: =IF($B75>0,Achievement_to_date_ongoing!$K74*Achievement_to_date_ongoing!M74,"") -> 0 | M75: =IF($B75>0,Achievement_to_date_ongoing!$K74*Achievement_to_date_ongoing!N74,"") -> 1816770.164 | N75: =IF($B75>0,Achievement_to_date_ongoing!$K74*Achievement_to_date_ongoing!O74,"") -> 2211440.397 | O75: =IF($B75>0,Achievement_to_date_ongoing!$K74*Achievement_to_date_ongoing!P74,"") -> 2211440.397
B76: =Achievement_to_date_ongoing!B75 -> 135349 | C76: =IF($B76>0, Achievement_to_date_ongoing!C75, "") -> 2 | D76: =IF($B76>0, Achievement_to_date_ongoing!D75, "") -> All | E76: =IF($B76>0, Achievement_to_date_ongoing!E75, "") -> 1F | F76: =IF($B76>0, Achievement_to_date_ongoing!F75, "") -> All | G76: 0 | H76: 4231285.556 | I76: 4861857.372 | J76: 4861857.372 | L76: =IF($B76>0,Achievement_to_date_ongoing!$K75*Achievement_to_date_ongoing!M75,"") -> 0 | M76: =IF($B76>0,Achievement_to_date_ongoing!$K75*Achievement_to_date_ongoing!N75,"") -> 4231285.556 | N76: =IF($B76>0,Achievement_to_date_ongoing!$K75*Achievement_to_date_ongoing!O75,"") -> 4861857.372 | O76: =IF($B76>0,Achievement_to_date_ongoing!$K75*Achievement_to_date_ongoing!P75,"") -> 4861857.372
B77: =Achievement_to_date_ongoing!B76 -> 129866 | C77: =IF($B77>0, Achievement_to_date_ongoing!C76, "") -> 2 | D77: =IF($B77>0, Achievement_to_date_ongoing!D76, "") -> All | E77: =IF($B77>0, Achievement_to_date_ongoing!E76, "") -> 1F | F77: =IF($B77>0, Achievement_to_date_ongoing!F76, "") -> All | G77: 1477804.127 | H77: 7003949.301 | I77: 7003949.301 | J77: 7003949.301 | L77: =IF($B77>0,Achievement_to_date_ongoing!$K76*Achievement_to_date_ongoing!M76,"") -> 1477804.127 | M77: =IF($B77>0,Achievement_to_date_ongoing!$K76*Achievement_to_date_ongoing!N76,"") -> 7003949.301 | N77: =IF($B77>0,Achievement_to_date_ongoing!$K76*Achievement_to_date_ongoing!O76,"") -> 7003949.301 | O77: =IF($B77>0,Achievement_to_date_ongoing!$K76*Achievement_to_date_ongoing!P76,"") -> 7003949.301
B78: =Achievement_to_date_ongoing!B77 -> 135418 | C78: =IF($B78>0, Achievement_to_date_ongoing!C77, "") -> 2 | D78: =IF($B78>0, Achievement_to_date_ongoing!D77, "") -> All | E78: =IF($B78>0, Achievement_to_date_ongoing!E77, "") -> 1F | F78: =IF($B78>0, Achievement_to_date_ongoing!F77, "") -> All | G78: 0 | H78: 334480.4994 | I78: 397669.9038 | J78: 397669.9038 | L78: =IF($B78>0,Achievement_to_date_ongoing!$K77*Achievement_to_date_ongoing!M77,"") -> 0 | M78: =IF($B78>0,Achievement_to_date_ongoing!$K77*Achievement_to_date_ongoing!N77,"") -> 334480.4994 | N78: =IF($B78>0,Achievement_to_date_ongoing!$K77*Achievement_to_date_ongoing!O77,"") -> 397669.9038 | O78: =IF($B78>0,Achievement_to_date_ongoing!$K77*Achievement_to_date_ongoing!P77,"") -> 397669.9038
B79: =Achievement_to_date_ongoing!B78 -> 134982 | C79: =IF($B79>0, Achievement_to_date_ongoing!C78, "") -> 2 | D79: =IF($B79>0, Achievement_to_date_ongoing!D78, "") -> All | E79: =IF($B79>0, Achievement_to_date_ongoing!E78, "") -> 1F | F79: =IF($B79>0, Achievement_to_date_ongoing!F78, "") -> All | G79: 0 | H79: 1405422.815 | I79: 1635913.853 | J79: 1635913.853 | L79: =IF($B79>0,Achievement_to_date_ongoing!$K78*Achievement_to_date_ongoing!M78,"") -> 0 | M79: =IF($B79>0,Achievement_to_date_ongoing!$K78*Achievement_to_date_ongoing!N78,"") -> 1405422.815 | N79: =IF($B79>0,Achievement_to_date_ongoing!$K78*Achievement_to_date_ongoing!O78,"") -> 1635913.853 | O79: =IF($B79>0,Achievement_to_date_ongoing!$K78*Achievement_to_date_ongoing!P78,"") -> 1635913.853
B80: =Achievement_to_date_ongoing!B79 -> 135031 | C80: =IF($B80>0, Achievement_to_date_ongoing!C79, "") -> 2 | D80: =IF($B80>0, Achievement_to_date_ongoing!D79, "") -> All | E80: =IF($B80>0, Achievement_to_date_ongoing!E79, "") -> 1F | F80: =IF($B80>0, Achievement_to_date_ongoing!F79, "") -> All | G80: 0 | H80: 157476.1776 | I80: 200588.7535 | J80: 200588.7535 | L80: =IF($B80>0,Achievement_to_date_ongoing!$K79*Achievement_to_date_ongoing!M79,"") -> 0 | M80: =IF($B80>0,Achievement_to_date_ongoing!$K79*Achievement_to_date_ongoing!N79,"") -> 157476.1776 | N80: =IF($B80>0,Achievement_to_date_ongoing!$K79*Achievement_to_date_ongoing!O79,"") -> 200588.7535 | O80: =IF($B80>0,Achievement_to_date_ongoing!$K79*Achievement_to_date_ongoing!P79,"") -> 200588.7535
B81: =Achievement_to_date_ongoing!B80 -> 135318 | C81: =IF($B81>0, Achievement_to_date_ongoing!C80, "") -> 2 | D81: =IF($B81>0, Achievement_to_date_ongoing!D80, "") -> All | E81: =IF($B81>0, Achievement_to_date_ongoing!E80, "") -> 1F | F81: =IF($B81>0, Achievement_to_date_ongoing!F80, "") -> All | G81: 0 | H81: 1497511.688 | I81: 1710129.01 | J81: 1710129.01 | L81: =IF($B81>0,Achievement_to_date_ongoing!$K80*Achievement_to_date_ongoing!M80,"") -> 0 | M81: =IF($B81>0,Achievement_to_date_ongoing!$K80*Achievement_to_date_ongoing!N80,"") -> 1497511.688 | N81: =IF($B81>0,Achievement_to_date_ongoing!$K80*Achievement_to_date_ongoing!O80,"") -> 1710129.01 | O81: =IF($B81>0,Achievement_to_date_ongoing!$K80*Achievement_to_date_ongoing!P80,"") -> 1710129.01
B82: =Achievement_to_date_ongoing!B81 -> 135483 | C82: =IF($B82>0, Achievement_to_date_ongoing!C81, "") -> 2 | D82: =IF($B82>0, Achievement_to_date_ongoing!D81, "") -> All | E82: =IF($B82>0, Achievement_to_date_ongoing!E81, "") -> 1F | F82: =IF($B82>0, Achievement_to_date_ongoing!F81, "") -> All | G82: 0 | H82: 4016551.047 | I82: 4644584.004 | J82: 4644584.004 | L82: =IF($B82>0,Achievement_to_date_ongoing!$K81*Achievement_to_date_ongoing!M81,"") -> 0 | M82: =IF($B82>0,Achievement_to_date_ongoing!$K81*Achievement_to_date_ongoing!N81,"") -> 4016551.047 | N82: =IF($B82>0,Achievement_to_date_ongoing!$K81*Achievement_to_date_ongoing!O81,"") -> 4644584.004 | O82: =IF($B82>0,Achievement_to_date_ongoing!$K81*Achievement_to_date_ongoing!P81,"") -> 4644584.004
B83: =Achievement_to_date_ongoing!B82 -> 135476 | C83: =IF($B83>0, Achievement_to_date_ongoing!C82, "") -> 2 | D83: =IF($B83>0, Achievement_to_date_ongoing!D82, "") -> All | E83: =IF($B83>0, Achievement_to_date_ongoing!E82, "") -> 1F | F83: =IF($B83>0, Achievement_to_date_ongoing!F82, "") -> All | G83: 0 | H83: 2437395.924 | I83: 3144808.115 | J83: 3169534.952 | L83: =IF($B83>0,Achievement_to_date_ongoing!$K82*Achievement_to_date_ongoing!M82,"") -> 0 | M83: =IF($B83>0,Achievement_to_date_ongoing!$K82*Achievement_to_date_ongoing!N82,"") -> 2437395.924 | N83: =IF($B83>0,Achievement_to_date_ongoing!$K82*Achievement_to_date_ongoing!O82,"") -> 3144808.115 | O83: =IF($B83>0,Achievement_to_date_ongoing!$K82*Achievement_to_date_ongoing!P82,"") -> 3169534.952
B84: =Achievement_to_date_ongoing!B83 -> 135347 | C84: =IF($B84>0, Achievement_to_date_ongoing!C83, "") -> 2 | D84: =IF($B84>0, Achievement_to_date_ongoing!D83, "") -> All | E84: =IF($B84>0, Achievement_to_date_ongoing!E83, "") -> 1F | F84: =IF($B84>0, Achievement_to_date_ongoing!F83, "") -> All | G84: 0 | H84: 661125.1892 | I84: 853005.3898 | J84: 859712.357 | L84: =IF($B84>0,Achievement_to_date_ongoing!$K83*Achievement_to_date_ongoing!M83,"") -> 0 | M84: =IF($B84>0,Achievement_to_date_ongoing!$K83*Achievement_to_date_ongoing!N83,"") -> 661125.1892 | N84: =IF($B84>0,Achievement_to_date_ongoing!$K83*Achievement_to_date_ongoing!O83,"") -> 853005.3898 | O84: =IF($B84>0,Achievement_to_date_ongoing!$K83*Achievement_to_date_ongoing!P83,"") -> 859712.357
B85: =Achievement_to_date_ongoing!B84 -> 135360 | C85: =IF($B85>0, Achievement_to_date_ongoing!C84, "") -> 2 | D85: =IF($B85>0, Achievement_to_date_ongoing!D84, "") -> All | E85: =IF($B85>0, Achievement_to_date_ongoing!E84, "") -> 1F | F85: =IF($B85>0, Achievement_to_date_ongoing!F84, "") -> All | G85: 0 | H85: 2066184.588 | I85: 2389255.8 | J85: 2389255.8 | L85: =IF($B85>0,Achievement_to_date_ongoing!$K84*Achievement_to_date_ongoing!M84,"") -> 0 | M85: =IF($B85>0,Achievement_to_date_ongoing!$K84*Achievement_to_date_ongoing!N84,"") -> 2066184.588 | N85: =IF($B85>0,Achievement_to_date_ongoing!$K84*Achievement_to_date_ongoing!O84,"") -> 2389255.8 | O85: =IF($B85>0,Achievement_to_date_ongoing!$K84*Achievement_to_date_ongoing!P84,"") -> 2389255.8
B86: =Achievement_to_date_ongoing!B85 -> 135439 | C86: =IF($B86>0, Achievement_to_date_ongoing!C85, "") -> 2 | D86: =IF($B86>0, Achievement_to_date_ongoing!D85, "") -> All | E86: =IF($B86>0, Achievement_to_date_ongoing!E85, "") -> 1F | F86: =IF($B86>0, Achievement_to_date_ongoing!F85, "") -> All | G86: 0 | H86: 1030532.256 | I86: 1329626.497 | J86: 1340081.016 | L86: =IF($B86>0,Achievement_to_date_ongoing!$K85*Achievement_to_date_ongoing!M85,"") -> 0 | M86: =IF($B86>0,Achievement_to_date_ongoing!$K85*Achievement_to_date_ongoing!N85,"") -> 1030532.256 | N86: =IF($B86>0,Achievement_to_date_ongoing!$K85*Achievement_to_date_ongoing!O85,"") -> 1329626.497 | O86: =IF($B86>0,Achievement_to_date_ongoing!$K85*Achievement_to_date_ongoing!P85,"") -> 1340081.016
B87: =Achievement_to_date_ongoing!B86 -> 121892 | C87: =IF($B87>0, Achievement_to_date_ongoing!C86, "") -> 2 | D87: =IF($B87>0, Achievement_to_date_ongoing!D86, "") -> All | E87: =IF($B87>0, Achievement_to_date_ongoing!E86, "") -> 2.2 | F87: =IF($B87>0, Achievement_to_date_ongoing!F86, "") -> All | G87: 0 | H87: 1 | I87: 1 | J87: 1 | L87: =IF($B87>0,Achievement_to_date_ongoing!$K86*Achievement_to_date_ongoing!M86,"") -> 0 | M87: =IF($B87>0,Achievement_to_date_ongoing!$K86*Achievement_to_date_ongoing!N86,"") -> 1 | N87: =IF($B87>0,Achievement_to_date_ongoing!$K86*Achievement_to_date_ongoing!O86,"") -> 1 | O87: =IF($B87>0,Achievement_to_date_ongoing!$K86*Achievement_to_date_ongoing!P86,"") -> 1
B88: =Achievement_to_date_ongoing!B87 -> 121910 | C88: =IF($B88>0, Achievement_to_date_ongoing!C87, "") -> 2 | D88: =IF($B88>0, Achievement_to_date_ongoing!D87, "") -> All | E88: =IF($B88>0, Achievement_to_date_ongoing!E87, "") -> 2.2 | F88: =IF($B88>0, Achievement_to_date_ongoing!F87, "") -> All | G88: 0 | H88: 1 | I88: 1 | J88: 1 | L88: =IF($B88>0,Achievement_to_date_ongoing!$K87*Achievement_to_date_ongoing!M87,"") -> 0 | M88: =IF($B88>0,Achievement_to_date_ongoing!$K87*Achievement_to_date_ongoing!N87,"") -> 1 | N88: =IF($B88>0,Achievement_to_date_ongoing!$K87*Achievement_to_date_ongoing!O87,"") -> 1 | O88: =IF($B88>0,Achievement_to_date_ongoing!$K87*Achievement_to_date_ongoing!P87,"") -> 1
B89: =Achievement_to_date_ongoing!B88 -> 127210 | C89: =IF($B89>0, Achievement_to_date_ongoing!C88, "") -> 2 | D89: =IF($B89>0, Achievement_to_date_ongoing!D88, "") -> All | E89: =IF($B89>0, Achievement_to_date_ongoing!E88, "") -> 2.2 | F89: =IF($B89>0, Achievement_to_date_ongoing!F88, "") -> All | G89: 0 | H89: 1 | I89: 1 | J89: 1 | L89: =IF($B89>0,Achievement_to_date_ongoing!$K88*Achievement_to_date_ongoing!M88,"") -> 0 | M89: =IF($B89>0,Achievement_to_date_ongoing!$K88*Achievement_to_date_ongoing!N88,"") -> 1 | N89: =IF($B89>0,Achievement_to_date_ongoing!$K88*Achievement_to_date_ongoing!O88,"") -> 1 | O89: =IF($B89>0,Achievement_to_date_ongoing!$K88*Achievement_to_date_ongoing!P88,"") -> 1
B90: =Achievement_to_date_ongoing!B89 -> 122048 | C90: =IF($B90>0, Achievement_to_date_ongoing!C89, "") -> 2 | D90: =IF($B90>0, Achievement_to_date_ongoing!D89, "") -> All | E90: =IF($B90>0, Achievement_to_date_ongoing!E89, "") -> 2.2 | F90: =IF($B90>0, Achievement_to_date_ongoing!F89, "") -> All | G90: 0 | H90: 1 | I90: 1 | J90: 1 | L90: =IF($B90>0,Achievement_to_date_ongoing!$K89*Achievement_to_date_ongoing!M89,"") -> 0 | M90: =IF($B90>0,Achievement_to_date_ongoing!$K89*Achievement_to_date_ongoing!N89,"") -> 1 | N90: =IF($B90>0,Achievement_to_date_ongoing!$K89*Achievement_to_date_ongoing!O89,"") -> 1 | O90: =IF($B90>0,Achievement_to_date_ongoing!$K89*Achievement_to_date_ongoing!P89,"") -> 1
B91: =Achievement_to_date_ongoing!B90 -> 126808 | C91: =IF($B91>0, Achievement_to_date_ongoing!C90, "") -> 2 | D91: =IF($B91>0, Achievement_to_date_ongoing!D90, "") -> All | E91: =IF($B91>0, Achievement_to_date_ongoing!E90, "") -> 2.2 | F91: =IF($B91>0, Achievement_to_date_ongoing!F90, "") -> All | G91: 0 | H91: 1 | I91: 1 | J91: 1 | L91: =IF($B91>0,Achievement_to_date_ongoing!$K90*Achievement_to_date_ongoing!M90,"") -> 0 | M91: =IF($B91>0,Achievement_to_date_ongoing!$K90*Achievement_to_date_ongoing!N90,"") -> 1 | N91: =IF($B91>0,Achievement_to_date_ongoing!$K90*Achievement_to_date_ongoing!O90,"") -> 1 | O91: =IF($B91>0,Achievement_to_date_ongoing!$K90*Achievement_to_date_ongoing!P90,"") -> 1
B92: =Achievement_to_date_ongoing!B91 -> 127280 | C92: =IF($B92>0, Achievement_to_date_ongoing!C91, "") -> 2 | D92: =IF($B92>0, Achievement_to_date_ongoing!D91, "") -> All | E92: =IF($B92>0, Achievement_to_date_ongoing!E91, "") -> 2.2 | F92: =IF($B92>0, Achievement_to_date_ongoing!F91, "") -> All | G92: 0 | H92: 1 | I92: 1 | J92: 1 | L92: =IF($B92>0,Achievement_to_date_ongoing!$K91*Achievement_to_date_ongoing!M91,"") -> 0 | M92: =IF($B92>0,Achievement_to_date_ongoing!$K91*Achievement_to_date_ongoing!N91,"") -> 1 | N92: =IF($B92>0,Achievement_to_date_ongoing!$K91*Achievement_to_date_ongoing!O91,"") -> 1 | O92: =IF($B92>0,Achievement_to_date_ongoing!$K91*Achievement_to_date_ongoing!P91,"") -> 1
B93: =Achievement_to_date_ongoing!B92 -> 127241 | C93: =IF($B93>0, Achievement_to_date_ongoing!C92, "") -> 2 | D93: =IF($B93>0, Achievement_to_date_ongoing!D92, "") -> All | E93: =IF($B93>0, Achievement_to_date_ongoing!E92, "") -> 2.2 | F93: =IF($B93>0, Achievement_to_date_ongoing!F92, "") -> All | G93: 0 | H93: 1 | I93: 1 | J93: 1 | L93: =IF($B93>0,Achievement_to_date_ongoing!$K92*Achievement_to_date_ongoing!M92,"") -> 0 | M93: =IF($B93>0,Achievement_to_date_ongoing!$K92*Achievement_to_date_ongoing!N92,"") -> 1 | N93: =IF($B93>0,Achievement_to_date_ongoing!$K92*Achievement_to_date_ongoing!O92,"") -> 1 | O93: =IF($B93>0,Achievement_to_date_ongoing!$K92*Achievement_to_date_ongoing!P92,"") -> 1
B94: =Achievement_to_date_ongoing!B93 -> 129835 | C94: =IF($B94>0, Achievement_to_date_ongoing!C93, "") -> 2 | D94: =IF($B94>0, Achievement_to_date_ongoing!D93, "") -> All | E94: =IF($B94>0, Achievement_to_date_ongoing!E93, "") -> 2.2 | F94: =IF($B94>0, Achievement_to_date_ongoing!F93, "") -> All | G94: 0 | H94: 1 | I94: 1 | J94: 1 | L94: =IF($B94>0,Achievement_to_date_ongoing!$K93*Achievement_to_date_ongoing!M93,"") -> 0 | M94: =IF($B94>0,Achievement_to_date_ongoing!$K93*Achievement_to_date_ongoing!N93,"") -> 1 | N94: =IF($B94>0,Achievement_to_date_ongoing!$K93*Achievement_to_date_ongoing!O93,"") -> 1 | O94: =IF($B94>0,Achievement_to_date_ongoing!$K93*Achievement_to_date_ongoing!P93,"") -> 1
B95: =Achievement_to_date_ongoing!B94 -> 129853 | C95: =IF($B95>0, Achievement_to_date_ongoing!C94, "") -> 2 | D95: =IF($B95>0, Achievement_to_date_ongoing!D94, "") -> All | E95: =IF($B95>0, Achievement_to_date_ongoing!E94, "") -> 2.2 | F95: =IF($B95>0, Achievement_to_date_ongoing!F94, "") -> All | G95: 0 | H95: 1 | I95: 1 | J95: 1 | L95: =IF($B95>0,Achievement_to_date_ongoing!$K94*Achievement_to_date_ongoing!M94,"") -> 0 | M95: =IF($B95>0,Achievement_to_date_ongoing!$K94*Achievement_to_date_ongoing!N94,"") -> 1 | N95: =IF($B95>0,Achievement_to_date_ongoing!$K94*Achievement_to_date_ongoing!O94,"") -> 1 | O95: =IF($B95>0,Achievement_to_date_ongoing!$K94*Achievement_to_date_ongoing!P94,"") -> 1
B96: =Achievement_to_date_ongoing!B95 -> 129858 | C96: =IF($B96>0, Achievement_to_date_ongoing!C95, "") -> 2 | D96: =IF($B96>0, Achievement_to_date_ongoing!D95, "") -> All | E96: =IF($B96>0, Achievement_to_date_ongoing!E95, "") -> 2.2 | F96: =IF($B96>0, Achievement_to_date_ongoing!F95, "") -> All | G96: 0 | H96: 1 | I96: 1 | J96: 1 | L96: =IF($B96>0,Achievement_to_date_ongoing!$K95*Achievement_to_date_ongoing!M95,"") -> 0 | M96: =IF($B96>0,Achievement_to_date_ongoing!$K95*Achievement_to_date_ongoing!N95,"") -> 1 | N96: =IF($B96>0,Achievement_to_date_ongoing!$K95*Achievement_to_date_ongoing!O95,"") -> 1 | O96: =IF($B96>0,Achievement_to_date_ongoing!$K95*Achievement_to_date_ongoing!P95,"") -> 1
B97: =Achievement_to_date_ongoing!B96 -> 129366 | C97: =IF($B97>0, Achievement_to_date_ongoing!C96, "") -> 2 | D97: =IF($B97>0, Achievement_to_date_ongoing!D96, "") -> All | E97: =IF($B97>0, Achievement_to_date_ongoing!E96, "") -> 2.2 | F97: =IF($B97>0, Achievement_to_date_ongoing!F96, "") -> All | G97: 0 | H97: 1 | I97: 1 | J97: 1 | L97: =IF($B97>0,Achievement_to_date_ongoing!$K96*Achievement_to_date_ongoing!M96,"") -> 0 | M97: =IF($B97>0,Achievement_to_date_ongoing!$K96*Achievement_to_date_ongoing!N96,"") -> 1 | N97: =IF($B97>0,Achievement_to_date_ongoing!$K96*Achievement_to_date_ongoing!O96,"") -> 1 | O97: =IF($B97>0,Achievement_to_date_ongoing!$K96*Achievement_to_date_ongoing!P96,"") -> 1
B98: =Achievement_to_date_ongoing!B97 -> 129742 | C98: =IF($B98>0, Achievement_to_date_ongoing!C97, "") -> 2 | D98: =IF($B98>0, Achievement_to_date_ongoing!D97, "") -> All | E98: =IF($B98>0, Achievement_to_date_ongoing!E97, "") -> 2.2 | F98: =IF($B98>0, Achievement_to_date_ongoing!F97, "") -> All | G98: 0 | H98: 1 | I98: 1 | J98: 1 | L98: =IF($B98>0,Achievement_to_date_ongoing!$K97*Achievement_to_date_ongoing!M97,"") -> 0 | M98: =IF($B98>0,Achievement_to_date_ongoing!$K97*Achievement_to_date_ongoing!N97,"") -> 1 | N98: =IF($B98>0,Achievement_to_date_ongoing!$K97*Achievement_to_date_ongoing!O97,"") -> 1 | O98: =IF($B98>0,Achievement_to_date_ongoing!$K97*Achievement_to_date_ongoing!P97,"") -> 1
B99: =Achievement_to_date_ongoing!B98 -> 129925 | C99: =IF($B99>0, Achievement_to_date_ongoing!C98, "") -> 2 | D99: =IF($B99>0, Achievement_to_date_ongoing!D98, "") -> All | E99: =IF($B99>0, Achievement_to_date_ongoing!E98, "") -> 2.2 | F99: =IF($B99>0, Achievement_to_date_ongoing!F98, "") -> All | G99: 0 | H99: 1 | I99: 1 | J99: 1 | L99: =IF($B99>0,Achievement_to_date_ongoing!$K98*Achievement_to_date_ongoing!M98,"") -> 0 | M99: =IF($B99>0,Achievement_to_date_ongoing!$K98*Achievement_to_date_ongoing!N98,"") -> 1 | N99: =IF($B99>0,Achievement_to_date_ongoing!$K98*Achievement_to_date_ongoing!O98,"") -> 1 | O99: =IF($B99>0,Achievement_to_date_ongoing!$K98*Achievement_to_date_ongoing!P98,"") -> 1
B100: =Achievement_to_date_ongoing!B99 -> 126885 | C100: =IF($B100>0, Achievement_to_date_ongoing!C99, "") -> 2 | D100: =IF($B100>0, Achievement_to_date_ongoing!D99, "") -> All | E100: =IF($B100>0, Achievement_to_date_ongoing!E99, "") -> 2.2 | F100: =IF($B100>0, Achievement_to_date_ongoing!F99, "") -> All | G100: 0 | H100: 1 | I100: 1 | J100: 1 | L100: =IF($B100>0,Achievement_to_date_ongoing!$K99*Achievement_to_date_ongoing!M99,"") -> 0 | M100: =IF($B100>0,Achievement_to_date_ongoing!$K99*Achievement_to_date_ongoing!N99,"") -> 1 | N100: =IF($B100>0,Achievement_to_date_ongoing!$K99*Achievement_to_date_ongoing!O99,"") -> 1 | O100: =IF($B100>0,Achievement_to_date_ongoing!$K99*Achievement_to_date_ongoing!P99,"") -> 1
B101: =Achievement_to_date_ongoing!B100 -> 126591 | C101: =IF($B101>0, Achievement_to_date_ongoing!C100, "") -> 2 | D101: =IF($B101>0, Achievement_to_date_ongoing!D100, "") -> All | E101: =IF($B101>0, Achievement_to_date_ongoing!E100, "") -> 2.2 | F101: =IF($B101>0, Achievement_to_date_ongoing!F100, "") -> All | G101: 0 | H101: 1 | I101: 1 | J101: 1 | L101: =IF($B101>0,Achievement_to_date_ongoing!$K100*Achievement_to_date_ongoing!M100,"") -> 0 | M101: =IF($B101>0,Achievement_to_date_ongoing!$K100*Achievement_to_date_ongoing!N100,"") -> 1 | N101: =IF($B101>0,Achievement_to_date_ongoing!$K100*Achievement_to_date_ongoing!O100,"") -> 1 | O101: =IF($B101>0,Achievement_to_date_ongoing!$K100*Achievement_to_date_ongoing!P100,"") -> 1
B102: =Achievement_to_date_ongoing!B101 -> 129538 | C102: =IF($B102>0, Achievement_to_date_ongoing!C101, "") -> 2 | D102: =IF($B102>0, Achievement_to_date_ongoing!D101, "") -> All | E102: =IF($B102>0, Achievement_to_date_ongoing!E101, "") -> 2.2 | F102: =IF($B102>0, Achievement_to_date_ongoing!F101, "") -> All | G102: 0 | H102: 1 | I102: 1 | J102: 1 | L102: =IF($B102>0,Achievement_to_date_ongoing!$K101*Achievement_to_date_ongoing!M101,"") -> 0 | M102: =IF($B102>0,Achievement_to_date_ongoing!$K101*Achievement_to_date_ongoing!N101,"") -> 1 | N102: =IF($B102>0,Achievement_to_date_ongoing!$K101*Achievement_to_date_ongoing!O101,"") -> 1 | O102: =IF($B102>0,Achievement_to_date_ongoing!$K101*Achievement_to_date_ongoing!P101,"") -> 1
B103: =Achievement_to_date_ongoing!B102 -> 129904 | C103: =IF($B103>0, Achievement_to_date_ongoing!C102, "") -> 2 | D103: =IF($B103>0, Achievement_to_date_ongoing!D102, "") -> All | E103: =IF($B103>0, Achievement_to_date_ongoing!E102, "") -> 2.2 | F103: =IF($B103>0, Achievement_to_date_ongoing!F102, "") -> All | G103: 0 | H103: 0 | I103: 1 | J103: 1 | L103: =IF($B103>0,Achievement_to_date_ongoing!$K102*Achievement_to_date_ongoing!M102,"") -> 0 | M103: =IF($B103>0,Achievement_to_date_ongoing!$K102*Achievement_to_date_ongoing!N102,"") -> 0 | N103: =IF($B103>0,Achievement_to_date_ongoing!$K102*Achievement_to_date_ongoing!O102,"") -> 1 | O103: =IF($B103>0,Achievement_to_date_ongoing!$K102*Achievement_to_date_ongoing!P102,"") -> 1
B104: =Achievement_to_date_ongoing!B103 -> 129574 | C104: =IF($B104>0, Achievement_to_date_ongoing!C103, "") -> 2 | D104: =IF($B104>0, Achievement_to_date_ongoing!D103, "") -> All | E104: =IF($B104>0, Achievement_to_date_ongoing!E103, "") -> 2.2 | F104: =IF($B104>0, Achievement_to_date_ongoing!F103, "") -> All | G104: 0 | H104: 1 | I104: 1 | J104: 1 | L104: =IF($B104>0,Achievement_to_date_ongoing!$K103*Achievement_to_date_ongoing!M103,"") -> 0 | M104: =IF($B104>0,Achievement_to_date_ongoing!$K103*Achievement_to_date_ongoing!N103,"") -> 1 | N104: =IF($B104>0,Achievement_to_date_ongoing!$K103*Achievement_to_date_ongoing!O103,"") -> 1 | O104: =IF($B104>0,Achievement_to_date_ongoing!$K103*Achievement_to_date_ongoing!P103,"") -> 1
B105: =Achievement_to_date_ongoing!B104 -> 129778 | C105: =IF($B105>0, Achievement_to_date_ongoing!C104, "") -> 2 | D105: =IF($B105>0, Achievement_to_date_ongoing!D104, "") -> All | E105: =IF($B105>0, Achievement_to_date_ongoing!E104, "") -> 2.2 | F105: =IF($B105>0, Achievement_to_date_ongoing!F104, "") -> All | G105: 0 | H105: 1 | I105: 1 | J105: 1 | L105: =IF($B105>0,Achievement_to_date_ongoing!$K104*Achievement_to_date_ongoing!M104,"") -> 0 | M105: =IF($B105>0,Achievement_to_date_ongoing!$K104*Achievement_to_date_ongoing!N104,"") -> 1 | N105: =IF($B105>0,Achievement_to_date_ongoing!$K104*Achievement_to_date_ongoing!O104,"") -> 1 | O105: =IF($B105>0,Achievement_to_date_ongoing!$K104*Achievement_to_date_ongoing!P104,"") -> 1
B106: =Achievement_to_date_ongoing!B105 -> 126939 | C106: =IF($B106>0, Achievement_to_date_ongoing!C105, "") -> 2 | D106: =IF($B106>0, Achievement_to_date_ongoing!D105, "") -> All | E106: =IF($B106>0, Achievement_to_date_ongoing!E105, "") -> 2.2 | F106: =IF($B106>0, Achievement_to_date_ongoing!F105, "") -> All | G106: 0 | H106: 1 | I106: 1 | J106: 1 | L106: =IF($B106>0,Achievement_to_date_ongoing!$K105*Achievement_to_date_ongoing!M105,"") -> 0 | M106: =IF($B106>0,Achievement_to_date_ongoing!$K105*Achievement_to_date_ongoing!N105,"") -> 1 | N106: =IF($B106>0,Achievement_to_date_ongoing!$K105*Achievement_to_date_ongoing!O105,"") -> 1 | O106: =IF($B106>0,Achievement_to_date_ongoing!$K105*Achievement_to_date_ongoing!P105,"") -> 1
B107: =Achievement_to_date_ongoing!B106 -> 135011 | C107: =IF($B107>0, Achievement_to_date_ongoing!C106, "") -> 2 | D107: =IF($B107>0, Achievement_to_date_ongoing!D106, "") -> All | E107: =IF($B107>0, Achievement_to_date_ongoing!E106, "") -> 2.2 | F107: =IF($B107>0, Achievement_to_date_ongoing!F106, "") -> All | G107: 0 | H107: 0 | I107: 0 | J107: 1 | L107: =IF($B107>0,Achievement_to_date_ongoing!$K106*Achievement_to_date_ongoing!M106,"") -> 0 | M107: =IF($B107>0,Achievement_to_date_ongoing!$K106*Achievement_to_date_ongoing!N106,"") -> 0 | N107: =IF($B107>0,Achievement_to_date_ongoing!$K106*Achievement_to_date_ongoing!O106,"") -> 0 | O107: =IF($B107>0,Achievement_to_date_ongoing!$K106*Achievement_to_date_ongoing!P106,"") -> 1
B108: =Achievement_to_date_ongoing!B107 -> 134339 | C108: =IF($B108>0, Achievement_to_date_ongoing!C107, "") -> 2 | D108: =IF($B108>0, Achievement_to_date_ongoing!D107, "") -> All | E108: =IF($B108>0, Achievement_to_date_ongoing!E107, "") -> 2.2 | F108: =IF($B108>0, Achievement_to_date_ongoing!F107, "") -> All | G108: 0 | H108: 0 | I108: 1 | J108: 1 | L108: =IF($B108>0,Achievement_to_date_ongoing!$K107*Achievement_to_date_ongoing!M107,"") -> 0 | M108: =IF($B108>0,Achievement_to_date_ongoing!$K107*Achievement_to_date_ongoing!N107,"") -> 0 | N108: =IF($B108>0,Achievement_to_date_ongoing!$K107*Achievement_to_date_ongoing!O107,"") -> 1 | O108: =IF($B108>0,Achievement_to_date_ongoing!$K107*Achievement_to_date_ongoing!P107,"") -> 1
B109: =Achievement_to_date_ongoing!B108 -> 135347 | C109: =IF($B109>0, Achievement_to_date_ongoing!C108, "") -> 2 | D109: =IF($B109>0, Achievement_to_date_ongoing!D108, "") -> All | E109: =IF($B109>0, Achievement_to_date_ongoing!E108, "") -> 2.2 | F109: =IF($B109>0, Achievement_to_date_ongoing!F108, "") -> All | G109: 0 | H109: 0 | I109: 0 | J109: 1 | L109: =IF($B109>0,Achievement_to_date_ongoing!$K108*Achievement_to_date_ongoing!M108,"") -> 0 | M109: =IF($B109>0,Achievement_to_date_ongoing!$K108*Achievement_to_date_ongoing!N108,"") -> 0 | N109: =IF($B109>0,Achievement_to_date_ongoing!$K108*Achievement_to_date_ongoing!O108,"") -> 0 | O109: =IF($B109>0,Achievement_to_date_ongoing!$K108*Achievement_to_date_ongoing!P108,"") -> 1
B110: =Achievement_to_date_ongoing!B109 -> 135349 | C110: =IF($B110>0, Achievement_to_date_ongoing!C109, "") -> 2 | D110: =IF($B110>0, Achievement_to_date_ongoing!D109, "") -> All | E110: =IF($B110>0, Achievement_to_date_ongoing!E109, "") -> 2.2 | F110: =IF($B110>0, Achievement_to_date_ongoing!F109, "") -> All | G110: 0 | H110: 0 | I110: 1 | J110: 1 | L110: =IF($B110>0,Achievement_to_date_ongoing!$K109*Achievement_to_date_ongoing!M109,"") -> 0 | M110: =IF($B110>0,Achievement_to_date_ongoing!$K109*Achievement_to_date_ongoing!N109,"") -> 0 | N110: =IF($B110>0,Achievement_to_date_ongoing!$K109*Achievement_to_date_ongoing!O109,"") -> 1 | O110: =IF($B110>0,Achievement_to_date_ongoing!$K109*Achievement_to_date_ongoing!P109,"") -> 1
B111: =Achievement_to_date_ongoing!B110 -> 134374 | C111: =IF($B111>0, Achievement_to_date_ongoing!C110, "") -> 2 | D111: =IF($B111>0, Achievement_to_date_ongoing!D110, "") -> All | E111: =IF($B111>0, Achievement_to_date_ongoing!E110, "") -> 2.2 | F111: =IF($B111>0, Achievement_to_date_ongoing!F110, "") -> All | G111: 0 | H111: 0 | I111: 1 | J111: 1 | L111: =IF($B111>0,Achievement_to_date_ongoing!$K110*Achievement_to_date_ongoing!M110,"") -> 0 | M111: =IF($B111>0,Achievement_to_date_ongoing!$K110*Achievement_to_date_ongoing!N110,"") -> 0 | N111: =IF($B111>0,Achievement_to_date_ongoing!$K110*Achievement_to_date_ongoing!O110,"") -> 1 | O111: =IF($B111>0,Achievement_to_date_ongoing!$K110*Achievement_to_date_ongoing!P110,"") -> 1
B112: =Achievement_to_date_ongoing!B111 -> 135031 | C112: =IF($B112>0, Achievement_to_date_ongoing!C111, "") -> 2 | D112: =IF($B112>0, Achievement_to_date_ongoing!D111, "") -> All | E112: =IF($B112>0, Achievement_to_date_ongoing!E111, "") -> 2.2 | F112: =IF($B112>0, Achievement_to_date_ongoing!F111, "") -> All | G112: 0 | H112: 0 | I112: 1 | J112: 1 | L112: =IF($B112>0,Achievement_to_date_ongoing!$K111*Achievement_to_date_ongoing!M111,"") -> 0 | M112: =IF($B112>0,Achievement_to_date_ongoing!$K111*Achievement_to_date_ongoing!N111,"") -> 0 | N112: =IF($B112>0,Achievement_to_date_ongoing!$K111*Achievement_to_date_ongoing!O111,"") -> 1 | O112: =IF($B112>0,Achievement_to_date_ongoing!$K111*Achievement_to_date_ongoing!P111,"") -> 1
B113: =Achievement_to_date_ongoing!B112 -> 135051 | C113: =IF($B113>0, Achievement_to_date_ongoing!C112, "") -> 2 | D113: =IF($B113>0, Achievement_to_date_ongoing!D112, "") -> All | E113: =IF($B113>0, Achievement_to_date_ongoing!E112, "") -> 2.2 | F113: =IF($B113>0, Achievement_to_date_ongoing!F112, "") -> All | G113: 0 | H113: 0 | I113: 0 | J113: 1 | L113: =IF($B113>0,Achievement_to_date_ongoing!$K112*Achievement_to_date_ongoing!M112,"") -> 0 | M113: =IF($B113>0,Achievement_to_date_ongoing!$K112*Achievement_to_date_ongoing!N112,"") -> 0 | N113: =IF($B113>0,Achievement_to_date_ongoing!$K112*Achievement_to_date_ongoing!O112,"") -> 0 | O113: =IF($B113>0,Achievement_to_date_ongoing!$K112*Achievement_to_date_ongoing!P112,"") -> 1
B114: =Achievement_to_date_ongoing!B113 -> 135249 | C114: =IF($B114>0, Achievement_to_date_ongoing!C113, "") -> 2 | D114: =IF($B114>0, Achievement_to_date_ongoing!D113, "") -> All | E114: =IF($B114>0, Achievement_to_date_ongoing!E113, "") -> 2.2 | F114: =IF($B114>0, Achievement_to_date_ongoing!F113, "") -> All | G114: 0 | H114: 0 | I114: 0 | J114: 1 | L114: =IF($B114>0,Achievement_to_date_ongoing!$K113*Achievement_to_date_ongoing!M113,"") -> 0 | M114: =IF($B114>0,Achievement_to_date_ongoing!$K113*Achievement_to_date_ongoing!N113,"") -> 0 | N114: =IF($B114>0,Achievement_to_date_ongoing!$K113*Achievement_to_date_ongoing!O113,"") -> 0 | O114: =IF($B114>0,Achievement_to_date_ongoing!$K113*Achievement_to_date_ongoing!P113,"") -> 1
B115: =Achievement_to_date_ongoing!B114 -> 135250 | C115: =IF($B115>0, Achievement_to_date_ongoing!C114, "") -> 2 | D115: =IF($B115>0, Achievement_to_date_ongoing!D114, "") -> All | E115: =IF($B115>0, Achievement_to_date_ongoing!E114, "") -> 2.2 | F115: =IF($B115>0, Achievement_to_date_ongoing!F114, "") -> All | G115: 0 | H115: 0 | I115: 1 | J115: 1 | L115: =IF($B115>0,Achievement_to_date_ongoing!$K114*Achievement_to_date_ongoing!M114,"") -> 0 | M115: =IF($B115>0,Achievement_to_date_ongoing!$K114*Achievement_to_date_ongoing!N114,"") -> 0 | N115: =IF($B115>0,Achievement_to_date_ongoing!$K114*Achievement_to_date_ongoing!O114,"") -> 1 | O115: =IF($B115>0,Achievement_to_date_ongoing!$K114*Achievement_to_date_ongoing!P114,"") -> 1
B116: =Achievement_to_date_ongoing!B115 -> 126941 | C116: =IF($B116>0, Achievement_to_date_ongoing!C115, "") -> 2 | D116: =IF($B116>0, Achievement_to_date_ongoing!D115, "") -> All | E116: =IF($B116>0, Achievement_to_date_ongoing!E115, "") -> 2.2 | F116: =IF($B116>0, Achievement_to_date_ongoing!F115, "") -> All | G116: 0 | H116: 1 | I116: 1 | J116: 1 | L116: =IF($B116>0,Achievement_to_date_ongoing!$K115*Achievement_to_date_ongoing!M115,"") -> 0 | M116: =IF($B116>0,Achievement_to_date_ongoing!$K115*Achievement_to_date_ongoing!N115,"") -> 1 | N116: =IF($B116>0,Achievement_to_date_ongoing!$K115*Achievement_to_date_ongoing!O115,"") -> 1 | O116: =IF($B116>0,Achievement_to_date_ongoing!$K115*Achievement_to_date_ongoing!P115,"") -> 1
B117: =Achievement_to_date_ongoing!B116 -> 127196 | C117: =IF($B117>0, Achievement_to_date_ongoing!C116, "") -> 2 | D117: =IF($B117>0, Achievement_to_date_ongoing!D116, "") -> All | E117: =IF($B117>0, Achievement_to_date_ongoing!E116, "") -> 2.2 | F117: =IF($B117>0, Achievement_to_date_ongoing!F116, "") -> All | G117: 0 | H117: 1 | I117: 1 | J117: 1 | L117: =IF($B117>0,Achievement_to_date_ongoing!$K116*Achievement_to_date_ongoing!M116,"") -> 0 | M117: =IF($B117>0,Achievement_to_date_ongoing!$K116*Achievement_to_date_ongoing!N116,"") -> 1 | N117: =IF($B117>0,Achievement_to_date_ongoing!$K116*Achievement_to_date_ongoing!O116,"") -> 1 | O117: =IF($B117>0,Achievement_to_date_ongoing!$K116*Achievement_to_date_ongoing!P116,"") -> 1
B118: =Achievement_to_date_ongoing!B117 -> 127010 | C118: =IF($B118>0, Achievement_to_date_ongoing!C117, "") -> 2 | D118: =IF($B118>0, Achievement_to_date_ongoing!D117, "") -> All | E118: =IF($B118>0, Achievement_to_date_ongoing!E117, "") -> 2.2 | F118: =IF($B118>0, Achievement_to_date_ongoing!F117, "") -> All | G118: 0 | H118: 1 | I118: 1 | J118: 1 | L118: =IF($B118>0,Achievement_to_date_ongoing!$K117*Achievement_to_date_ongoing!M117,"") -> 0 | M118: =IF($B118>0,Achievement_to_date_ongoing!$K117*Achievement_to_date_ongoing!N117,"") -> 1 | N118: =IF($B118>0,Achievement_to_date_ongoing!$K117*Achievement_to_date_ongoing!O117,"") -> 1 | O118: =IF($B118>0,Achievement_to_date_ongoing!$K117*Achievement_to_date_ongoing!P117,"") -> 1
B119: =Achievement_to_date_ongoing!B118 -> 129866 | C119: =IF($B119>0, Achievement_to_date_ongoing!C118, "") -> 2 | D119: =IF($B119>0, Achievement_to_date_ongoing!D118, "") -> All | E119: =IF($B119>0, Achievement_to_date_ongoing!E118, "") -> 2.2 | F119: =IF($B119>0, Achievement_to_date_ongoing!F118, "") -> All | G119: 0 | H119: 1 | I119: 1 | J119: 1 | L119: =IF($B119>0,Achievement_to_date_ongoing!$K118*Achievement_to_date_ongoing!M118,"") -> 0 | M119: =IF($B119>0,Achievement_to_date_ongoing!$K118*Achievement_to_date_ongoing!N118,"") -> 1 | N119: =IF($B119>0,Achievement_to_date_ongoing!$K118*Achievement_to_date_ongoing!O118,"") -> 1 | O119: =IF($B119>0,Achievement_to_date_ongoing!$K118*Achievement_to_date_ongoing!P118,"") -> 1
B120: =Achievement_to_date_ongoing!B119 -> 126962 | C120: =IF($B120>0, Achievement_to_date_ongoing!C119, "") -> 2 | D120: =IF($B120>0, Achievement_to_date_ongoing!D119, "") -> All | E120: =IF($B120>0, Achievement_to_date_ongoing!E119, "") -> 2.2 | F120: =IF($B120>0, Achievement_to_date_ongoing!F119, "") -> All | G120: 0 | H120: 1 | I120: 1 | J120: 1 | L120: =IF($B120>0,Achievement_to_date_ongoing!$K119*Achievement_to_date_ongoing!M119,"") -> 0 | M120: =IF($B120>0,Achievement_to_date_ongoing!$K119*Achievement_to_date_ongoing!N119,"") -> 1 | N120: =IF($B120>0,Achievement_to_date_ongoing!$K119*Achievement_to_date_ongoing!O119,"") -> 1 | O120: =IF($B120>0,Achievement_to_date_ongoing!$K119*Achievement_to_date_ongoing!P119,"") -> 1
B121: =Achievement_to_date_ongoing!B120 -> 135516 | C121: =IF($B121>0, Achievement_to_date_ongoing!C120, "") -> 2 | D121: =IF($B121>0, Achievement_to_date_ongoing!D120, "") -> All | E121: =IF($B121>0, Achievement_to_date_ongoing!E120, "") -> 2.2 | F121: =IF($B121>0, Achievement_to_date_ongoing!F120, "") -> All | G121: 0 | H121: 0 | I121: 1 | J121: 1 | L121: =IF($B121>0,Achievement_to_date_ongoing!$K120*Achievement_to_date_ongoing!M120,"") -> 0 | M121: =IF($B121>0,Achievement_to_date_ongoing!$K120*Achievement_to_date_ongoing!N120,"") -> 0 | N121: =IF($B121>0,Achievement_to_date_ongoing!$K120*Achievement_to_date_ongoing!O120,"") -> 1 | O121: =IF($B121>0,Achievement_to_date_ongoing!$K120*Achievement_to_date_ongoing!P120,"") -> 1
B122: =Achievement_to_date_ongoing!B121 -> 126959 | C122: =IF($B122>0, Achievement_to_date_ongoing!C121, "") -> 2 | D122: =IF($B122>0, Achievement_to_date_ongoing!D121, "") -> All | E122: =IF($B122>0, Achievement_to_date_ongoing!E121, "") -> 2.2 | F122: =IF($B122>0, Achievement_to_date_ongoing!F121, "") -> All | G122: 0 | H122: 1 | I122: 1 | J122: 1 | L122: =IF($B122>0,Achievement_to_date_ongoing!$K121*Achievement_to_date_ongoing!M121,"") -> 0 | M122: =IF($B122>0,Achievement_to_date_ongoing!$K121*Achievement_to_date_ongoing!N121,"") -> 1 | N122: =IF($B122>0,Achievement_to_date_ongoing!$K121*Achievement_to_date_ongoing!O121,"") -> 1 | O122: =IF($B122>0,Achievement_to_date_ongoing!$K121*Achievement_to_date_ongoing!P121,"") -> 1
B123: =Achievement_to_date_ongoing!B122 -> 135245 | C123: =IF($B123>0, Achievement_to_date_ongoing!C122, "") -> 2 | D123: =IF($B123>0, Achievement_to_date_ongoing!D122, "") -> All | E123: =IF($B123>0, Achievement_to_date_ongoing!E122, "") -> 2.2 | F123: =IF($B123>0, Achievement_to_date_ongoing!F122, "") -> All | G123: 0 | H123: 0 | I123: 1 | J123: 1 | L123: =IF($B123>0,Achievement_to_date_ongoing!$K122*Achievement_to_date_ongoing!M122,"") -> 0 | M123: =IF($B123>0,Achievement_to_date_ongoing!$K122*Achievement_to_date_ongoing!N122,"") -> 0 | N123: =IF($B123>0,Achievement_to_date_ongoing!$K122*Achievement_to_date_ongoing!O122,"") -> 1 | O123: =IF($B123>0,Achievement_to_date_ongoing!$K122*Achievement_to_date_ongoing!P122,"") -> 1
B124: =Achievement_to_date_ongoing!B123 -> 135360 | C124: =IF($B124>0, Achievement_to_date_ongoing!C123, "") -> 2 | D124: =IF($B124>0, Achievement_to_date_ongoing!D123, "") -> All | E124: =IF($B124>0, Achievement_to_date_ongoing!E123, "") -> 2.2 | F124: =IF($B124>0, Achievement_to_date_ongoing!F123, "") -> All | G124: 0 | H124: 0 | I124: 1 | J124: 1 | L124: =IF($B124>0,Achievement_to_date_ongoing!$K123*Achievement_to_date_ongoing!M123,"") -> 0 | M124: =IF($B124>0,Achievement_to_date_ongoing!$K123*Achievement_to_date_ongoing!N123,"") -> 0 | N124: =IF($B124>0,Achievement_to_date_ongoing!$K123*Achievement_to_date_ongoing!O123,"") -> 1 | O124: =IF($B124>0,Achievement_to_date_ongoing!$K123*Achievement_to_date_ongoing!P123,"") -> 1
B125: =Achievement_to_date_ongoing!B124 -> 135361 | C125: =IF($B125>0, Achievement_to_date_ongoing!C124, "") -> 2 | D125: =IF($B125>0, Achievement_to_date_ongoing!D124, "") -> All | E125: =IF($B125>0, Achievement_to_date_ongoing!E124, "") -> 2.2 | F125: =IF($B125>0, Achievement_to_date_ongoing!F124, "") -> All | G125: 0 | H125: 0 | I125: 0 | J125: 1 | L125: =IF($B125>0,Achievement_to_date_ongoing!$K124*Achievement_to_date_ongoing!M124,"") -> 0 | M125: =IF($B125>0,Achievement_to_date_ongoing!$K124*Achievement_to_date_ongoing!N124,"") -> 0 | N125: =IF($B125>0,Achievement_to_date_ongoing!$K124*Achievement_to_date_ongoing!O124,"") -> 0 | O125: =IF($B125>0,Achievement_to_date_ongoing!$K124*Achievement_to_date_ongoing!P124,"") -> 1
B126: =Achievement_to_date_ongoing!B125 -> 129800 | C126: =IF($B126>0, Achievement_to_date_ongoing!C125, "") -> 2 | D126: =IF($B126>0, Achievement_to_date_ongoing!D125, "") -> All | E126: =IF($B126>0, Achievement_to_date_ongoing!E125, "") -> 2.2 | F126: =IF($B126>0, Achievement_to_date_ongoing!F125, "") -> All | G126: 0 | H126: 1 | I126: 1 | J126: 1 | L126: =IF($B126>0,Achievement_to_date_ongoing!$K125*Achievement_to_date_ongoing!M125,"") -> 0 | M126: =IF($B126>0,Achievement_to_date_ongoing!$K125*Achievement_to_date_ongoing!N125,"") -> 1 | N126: =IF($B126>0,Achievement_to_date_ongoing!$K125*Achievement_to_date_ongoing!O125,"") -> 1 | O126: =IF($B126>0,Achievement_to_date_ongoing!$K125*Achievement_to_date_ongoing!P125,"") -> 1
B127: =Achievement_to_date_ongoing!B126 -> 129910 | C127: =IF($B127>0, Achievement_to_date_ongoing!C126, "") -> 2 | D127: =IF($B127>0, Achievement_to_date_ongoing!D126, "") -> All | E127: =IF($B127>0, Achievement_to_date_ongoing!E126, "") -> 2.2 | F127: =IF($B127>0, Achievement_to_date_ongoing!F126, "") -> All | G127: 0 | H127: 1 | I127: 1 | J127: 1 | L127: =IF($B127>0,Achievement_to_date_ongoing!$K126*Achievement_to_date_ongoing!M126,"") -> 0 | M127: =IF($B127>0,Achievement_to_date_ongoing!$K126*Achievement_to_date_ongoing!N126,"") -> 1 | N127: =IF($B127>0,Achievement_to_date_ongoing!$K126*Achievement_to_date_ongoing!O126,"") -> 1 | O127: =IF($B127>0,Achievement_to_date_ongoing!$K126*Achievement_to_date_ongoing!P126,"") -> 1
B128: =Achievement_to_date_ongoing!B127 -> 129733 | C128: =IF($B128>0, Achievement_to_date_ongoing!C127, "") -> 2 | D128: =IF($B128>0, Achievement_to_date_ongoing!D127, "") -> All | E128: =IF($B128>0, Achievement_to_date_ongoing!E127, "") -> 2.2 | F128: =IF($B128>0, Achievement_to_date_ongoing!F127, "") -> All | G128: 0 | H128: 1 | I128: 1 | J128: 1 | L128: =IF($B128>0,Achievement_to_date_ongoing!$K127*Achievement_to_date_ongoing!M127,"") -> 0 | M128: =IF($B128>0,Achievement_to_date_ongoing!$K127*Achievement_to_date_ongoing!N127,"") -> 1 | N128: =IF($B128>0,Achievement_to_date_ongoing!$K127*Achievement_to_date_ongoing!O127,"") -> 1 | O128: =IF($B128>0,Achievement_to_date_ongoing!$K127*Achievement_to_date_ongoing!P127,"") -> 1
B129: =Achievement_to_date_ongoing!B128 -> 135030 | C129: =IF($B129>0, Achievement_to_date_ongoing!C128, "") -> 2 | D129: =IF($B129>0, Achievement_to_date_ongoing!D128, "") -> All | E129: =IF($B129>0, Achievement_to_date_ongoing!E128, "") -> 2.2 | F129: =IF($B129>0, Achievement_to_date_ongoing!F128, "") -> All | G129: 0 | H129: 0 | I129: 1 | J129: 1 | L129: =IF($B129>0,Achievement_to_date_ongoing!$K128*Achievement_to_date_ongoing!M128,"") -> 0 | M129: =IF($B129>0,Achievement_to_date_ongoing!$K128*Achievement_to_date_ongoing!N128,"") -> 0 | N129: =IF($B129>0,Achievement_to_date_ongoing!$K128*Achievement_to_date_ongoing!O128,"") -> 1 | O129: =IF($B129>0,Achievement_to_date_ongoing!$K128*Achievement_to_date_ongoing!P128,"") -> 1
B130: =Achievement_to_date_ongoing!B129 -> 135055 | C130: =IF($B130>0, Achievement_to_date_ongoing!C129, "") -> 2 | D130: =IF($B130>0, Achievement_to_date_ongoing!D129, "") -> All | E130: =IF($B130>0, Achievement_to_date_ongoing!E129, "") -> 2.2 | F130: =IF($B130>0, Achievement_to_date_ongoing!F129, "") -> All | G130: 0 | H130: 0 | I130: 0 | J130: 1 | L130: =IF($B130>0,Achievement_to_date_ongoing!$K129*Achievement_to_date_ongoing!M129,"") -> 0 | M130: =IF($B130>0,Achievement_to_date_ongoing!$K129*Achievement_to_date_ongoing!N129,"") -> 0 | N130: =IF($B130>0,Achievement_to_date_ongoing!$K129*Achievement_to_date_ongoing!O129,"") -> 0 | O130: =IF($B130>0,Achievement_to_date_ongoing!$K129*Achievement_to_date_ongoing!P129,"") -> 1
B131: =Achievement_to_date_ongoing!B130 -> 135229 | C131: =IF($B131>0, Achievement_to_date_ongoing!C130, "") -> 2 | D131: =IF($B131>0, Achievement_to_date_ongoing!D130, "") -> All | E131: =IF($B131>0, Achievement_to_date_ongoing!E130, "") -> 2.2 | F131: =IF($B131>0, Achievement_to_date_ongoing!F130, "") -> All | G131: 0 | H131: 0 | I131: 1 | J131: 1 | L131: =IF($B131>0,Achievement_to_date_ongoing!$K130*Achievement_to_date_ongoing!M130,"") -> 0 | M131: =IF($B131>0,Achievement_to_date_ongoing!$K130*Achievement_to_date_ongoing!N130,"") -> 0 | N131: =IF($B131>0,Achievement_to_date_ongoing!$K130*Achievement_to_date_ongoing!O130,"") -> 1 | O131: =IF($B131>0,Achievement_to_date_ongoing!$K130*Achievement_to_date_ongoing!P130,"") -> 1
B132: =Achievement_to_date_ongoing!B131 -> 134982 | C132: =IF($B132>0, Achievement_to_date_ongoing!C131, "") -> 2 | D132: =IF($B132>0, Achievement_to_date_ongoing!D131, "") -> All | E132: =IF($B132>0, Achievement_to_date_ongoing!E131, "") -> 2.2 | F132: =IF($B132>0, Achievement_to_date_ongoing!F131, "") -> All | G132: 0 | H132: 0 | I132: 1 | J132: 1 | L132: =IF($B132>0,Achievement_to_date_ongoing!$K131*Achievement_to_date_ongoing!M131,"") -> 0 | M132: =IF($B132>0,Achievement_to_date_ongoing!$K131*Achievement_to_date_ongoing!N131,"") -> 0 | N132: =IF($B132>0,Achievement_to_date_ongoing!$K131*Achievement_to_date_ongoing!O131,"") -> 1 | O132: =IF($B132>0,Achievement_to_date_ongoing!$K131*Achievement_to_date_ongoing!P131,"") -> 1
B133: =Achievement_to_date_ongoing!B132 -> 135059 | C133: =IF($B133>0, Achievement_to_date_ongoing!C132, "") -> 2 | D133: =IF($B133>0, Achievement_to_date_ongoing!D132, "") -> All | E133: =IF($B133>0, Achievement_to_date_ongoing!E132, "") -> 2.2 | F133: =IF($B133>0, Achievement_to_date_ongoing!F132, "") -> All | G133: 0 | H133: 0 | I133: 1 | J133: 1 | L133: =IF($B133>0,Achievement_to_date_ongoing!$K132*Achievement_to_date_ongoing!M132,"") -> 0 | M133: =IF($B133>0,Achievement_to_date_ongoing!$K132*Achievement_to_date_ongoing!N132,"") -> 0 | N133: =IF($B133>0,Achievement_to_date_ongoing!$K132*Achievement_to_date_ongoing!O132,"") -> 1 | O133: =IF($B133>0,Achievement_to_date_ongoing!$K132*Achievement_to_date_ongoing!P132,"") -> 1
B134: =Achievement_to_date_ongoing!B133 -> 135418 | C134: =IF($B134>0, Achievement_to_date_ongoing!C133, "") -> 2 | D134: =IF($B134>0, Achievement_to_date_ongoing!D133, "") -> All | E134: =IF($B134>0, Achievement_to_date_ongoing!E133, "") -> 2.2 | F134: =IF($B134>0, Achievement_to_date_ongoing!F133, "") -> All | G134: 0 | H134: 0 | I134: 1 | J134: 1 | L134: =IF($B134>0,Achievement_to_date_ongoing!$K133*Achievement_to_date_ongoing!M133,"") -> 0 | M134: =IF($B134>0,Achievement_to_date_ongoing!$K133*Achievement_to_date_ongoing!N133,"") -> 0 | N134: =IF($B134>0,Achievement_to_date_ongoing!$K133*Achievement_to_date_ongoing!O133,"") -> 1 | O134: =IF($B134>0,Achievement_to_date_ongoing!$K133*Achievement_to_date_ongoing!P133,"") -> 1
B135: =Achievement_to_date_ongoing!B134 -> 135077 | C135: =IF($B135>0, Achievement_to_date_ongoing!C134, "") -> 2 | D135: =IF($B135>0, Achievement_to_date_ongoing!D134, "") -> All | E135: =IF($B135>0, Achievement_to_date_ongoing!E134, "") -> 2.2 | F135: =IF($B135>0, Achievement_to_date_ongoing!F134, "") -> All | G135: 0 | H135: 0 | I135: 1 | J135: 1 | L135: =IF($B135>0,Achievement_to_date_ongoing!$K134*Achievement_to_date_ongoing!M134,"") -> 0 | M135: =IF($B135>0,Achievement_to_date_ongoing!$K134*Achievement_to_date_ongoing!N134,"") -> 0 | N135: =IF($B135>0,Achievement_to_date_ongoing!$K134*Achievement_to_date_ongoing!O134,"") -> 1 | O135: =IF($B135>0,Achievement_to_date_ongoing!$K134*Achievement_to_date_ongoing!P134,"") -> 1
B136: =Achievement_to_date_ongoing!B135 -> 129805 | C136: =IF($B136>0, Achievement_to_date_ongoing!C135, "") -> 2 | D136: =IF($B136>0, Achievement_to_date_ongoing!D135, "") -> All | E136: =IF($B136>0, Achievement_to_date_ongoing!E135, "") -> 2.2 | F136: =IF($B136>0, Achievement_to_date_ongoing!F135, "") -> All | G136: 0 | H136: 1 | I136: 1 | J136: 1 | L136: =IF($B136>0,Achievement_to_date_ongoing!$K135*Achievement_to_date_ongoing!M135,"") -> 0 | M136: =IF($B136>0,Achievement_to_date_ongoing!$K135*Achievement_to_date_ongoing!N135,"") -> 1 | N136: =IF($B136>0,Achievement_to_date_ongoing!$K135*Achievement_to_date_ongoing!O135,"") -> 1 | O136: =IF($B136>0,Achievement_to_date_ongoing!$K135*Achievement_to_date_ongoing!P135,"") -> 1
B137: =Achievement_to_date_ongoing!B136 -> 129876 | C137: =IF($B137>0, Achievement_to_date_ongoing!C136, "") -> 2 | D137: =IF($B137>0, Achievement_to_date_ongoing!D136, "") -> All | E137: =IF($B137>0, Achievement_to_date_ongoing!E136, "") -> 2.2 | F137: =IF($B137>0, Achievement_to_date_ongoing!F136, "") -> All | G137: 0 | H137: 1 | I137: 1 | J137: 1 | L137: =IF($B137>0,Achievement_to_date_ongoing!$K136*Achievement_to_date_ongoing!M136,"") -> 0 | M137: =IF($B137>0,Achievement_to_date_ongoing!$K136*Achievement_to_date_ongoing!N136,"") -> 1 | N137: =IF($B137>0,Achievement_to_date_ongoing!$K136*Achievement_to_date_ongoing!O136,"") -> 1 | O137: =IF($B137>0,Achievement_to_date_ongoing!$K136*Achievement_to_date_ongoing!P136,"") -> 1
B138: =Achievement_to_date_ongoing!B137 -> 135328 | C138: =IF($B138>0, Achievement_to_date_ongoing!C137, "") -> 2 | D138: =IF($B138>0, Achievement_to_date_ongoing!D137, "") -> All | E138: =IF($B138>0, Achievement_to_date_ongoing!E137, "") -> 2.2 | F138: =IF($B138>0, Achievement_to_date_ongoing!F137, "") -> All | G138: 0 | H138: 0 | I138: 1 | J138: 1 | L138: =IF($B138>0,Achievement_to_date_ongoing!$K137*Achievement_to_date_ongoing!M137,"") -> 0 | M138: =IF($B138>0,Achievement_to_date_ongoing!$K137*Achievement_to_date_ongoing!N137,"") -> 0 | N138: =IF($B138>0,Achievement_to_date_ongoing!$K137*Achievement_to_date_ongoing!O137,"") -> 1 | O138: =IF($B138>0,Achievement_to_date_ongoing!$K137*Achievement_to_date_ongoing!P137,"") -> 1
B139: =Achievement_to_date_ongoing!B138 -> 129886 | C139: =IF($B139>0, Achievement_to_date_ongoing!C138, "") -> 2 | D139: =IF($B139>0, Achievement_to_date_ongoing!D138, "") -> All | E139: =IF($B139>0, Achievement_to_date_ongoing!E138, "") -> 2.2 | F139: =IF($B139>0, Achievement_to_date_ongoing!F138, "") -> All | G139: 0 | H139: 3 | I139: 3 | J139: 3 | L139: =IF($B139>0,Achievement_to_date_ongoing!$K138*Achievement_to_date_ongoing!M138,"") -> 0 | M139: =IF($B139>0,Achievement_to_date_ongoing!$K138*Achievement_to_date_ongoing!N138,"") -> 3 | N139: =IF($B139>0,Achievement_to_date_ongoing!$K138*Achievement_to_date_ongoing!O138,"") -> 3 | O139: =IF($B139>0,Achievement_to_date_ongoing!$K138*Achievement_to_date_ongoing!P138,"") -> 3
B140: =Achievement_to_date_ongoing!B139 -> 129941 | C140: =IF($B140>0, Achievement_to_date_ongoing!C139, "") -> 2 | D140: =IF($B140>0, Achievement_to_date_ongoing!D139, "") -> All | E140: =IF($B140>0, Achievement_to_date_ongoing!E139, "") -> 2.2 | F140: =IF($B140>0, Achievement_to_date_ongoing!F139, "") -> All | G140: 0 | H140: 1 | I140: 1 | J140: 1 | L140: =IF($B140>0,Achievement_to_date_ongoing!$K139*Achievement_to_date_ongoing!M139,"") -> 0 | M140: =IF($B140>0,Achievement_to_date_ongoing!$K139*Achievement_to_date_ongoing!N139,"") -> 1 | N140: =IF($B140>0,Achievement_to_date_ongoing!$K139*Achievement_to_date_ongoing!O139,"") -> 1 | O140: =IF($B140>0,Achievement_to_date_ongoing!$K139*Achievement_to_date_ongoing!P139,"") -> 1
B141: =Achievement_to_date_ongoing!B140 -> 135165 | C141: =IF($B141>0, Achievement_to_date_ongoing!C140, "") -> 2 | D141: =IF($B141>0, Achievement_to_date_ongoing!D140, "") -> All | E141: =IF($B141>0, Achievement_to_date_ongoing!E140, "") -> 2.2 | F141: =IF($B141>0, Achievement_to_date_ongoing!F140, "") -> All | G141: 0 | H141: 0 | I141: 1 | J141: 1 | L141: =IF($B141>0,Achievement_to_date_ongoing!$K140*Achievement_to_date_ongoing!M140,"") -> 0 | M141: =IF($B141>0,Achievement_to_date_ongoing!$K140*Achievement_to_date_ongoing!N140,"") -> 0 | N141: =IF($B141>0,Achievement_to_date_ongoing!$K140*Achievement_to_date_ongoing!O140,"") -> 1 | O141: =IF($B141>0,Achievement_to_date_ongoing!$K140*Achievement_to_date_ongoing!P140,"") -> 1
B142: =Achievement_to_date_ongoing!B141 -> 129450 | C142: =IF($B142>0, Achievement_to_date_ongoing!C141, "") -> 2 | D142: =IF($B142>0, Achievement_to_date_ongoing!D141, "") -> All | E142: =IF($B142>0, Achievement_to_date_ongoing!E141, "") -> 2.2 | F142: =IF($B142>0, Achievement_to_date_ongoing!F141, "") -> All | G142: 0 | H142: 1 | I142: 1 | J142: 1 | L142: =IF($B142>0,Achievement_to_date_ongoing!$K141*Achievement_to_date_ongoing!M141,"") -> 0 | M142: =IF($B142>0,Achievement_to_date_ongoing!$K141*Achievement_to_date_ongoing!N141,"") -> 1 | N142: =IF($B142>0,Achievement_to_date_ongoing!$K141*Achievement_to_date_ongoing!O141,"") -> 1 | O142: =IF($B142>0,Achievement_to_date_ongoing!$K141*Achievement_to_date_ongoing!P141,"") -> 1
B143: =Achievement_to_date_ongoing!B142 -> 135305 | C143: =IF($B143>0, Achievement_to_date_ongoing!C142, "") -> 2 | D143: =IF($B143>0, Achievement_to_date_ongoing!D142, "") -> All | E143: =IF($B143>0, Achievement_to_date_ongoing!E142, "") -> 2.2 | F143: =IF($B143>0, Achievement_to_date_ongoing!F142, "") -> All | G143: 0 | H143: 0 | I143: 0 | J143: 1 | L143: =IF($B143>0,Achievement_to_date_ongoing!$K142*Achievement_to_date_ongoing!M142,"") -> 0 | M143: =IF($B143>0,Achievement_to_date_ongoing!$K142*Achievement_to_date_ongoing!N142,"") -> 0 | N143: =IF($B143>0,Achievement_to_date_ongoing!$K142*Achievement_to_date_ongoing!O142,"") -> 0 | O143: =IF($B143>0,Achievement_to_date_ongoing!$K142*Achievement_to_date_ongoing!P142,"") -> 1
B144: =Achievement_to_date_ongoing!B143 -> 135318 | C144: =IF($B144>0, Achievement_to_date_ongoing!C143, "") -> 2 | D144: =IF($B144>0, Achievement_to_date_ongoing!D143, "") -> All | E144: =IF($B144>0, Achievement_to_date_ongoing!E143, "") -> 2.2 | F144: =IF($B144>0, Achievement_to_date_ongoing!F143, "") -> All | G144: 0 | H144: 0 | I144: 1 | J144: 1 | L144: =IF($B144>0,Achievement_to_date_ongoing!$K143*Achievement_to_date_ongoing!M143,"") -> 0 | M144: =IF($B144>0,Achievement_to_date_ongoing!$K143*Achievement_to_date_ongoing!N143,"") -> 0 | N144: =IF($B144>0,Achievement_to_date_ongoing!$K143*Achievement_to_date_ongoing!O143,"") -> 1 | O144: =IF($B144>0,Achievement_to_date_ongoing!$K143*Achievement_to_date_ongoing!P143,"") -> 1
B145: =Achievement_to_date_ongoing!B144 -> 135320 | C145: =IF($B145>0, Achievement_to_date_ongoing!C144, "") -> 2 | D145: =IF($B145>0, Achievement_to_date_ongoing!D144, "") -> All | E145: =IF($B145>0, Achievement_to_date_ongoing!E144, "") -> 2.2 | F145: =IF($B145>0, Achievement_to_date_ongoing!F144, "") -> All | G145: 0 | H145: 0 | I145: 1 | J145: 1 | L145: =IF($B145>0,Achievement_to_date_ongoing!$K144*Achievement_to_date_ongoing!M144,"") -> 0 | M145: =IF($B145>0,Achievement_to_date_ongoing!$K144*Achievement_to_date_ongoing!N144,"") -> 0 | N145: =IF($B145>0,Achievement_to_date_ongoing!$K144*Achievement_to_date_ongoing!O144,"") -> 1 | O145: =IF($B145>0,Achievement_to_date_ongoing!$K144*Achievement_to_date_ongoing!P144,"") -> 1
B146: =Achievement_to_date_ongoing!B145 -> 135379 | C146: =IF($B146>0, Achievement_to_date_ongoing!C145, "") -> 2 | D146: =IF($B146>0, Achievement_to_date_ongoing!D145, "") -> All | E146: =IF($B146>0, Achievement_to_date_ongoing!E145, "") -> 2.2 | F146: =IF($B146>0, Achievement_to_date_ongoing!F145, "") -> All | G146: 0 | H146: 0 | I146: 1 | J146: 1 | L146: =IF($B146>0,Achievement_to_date_ongoing!$K145*Achievement_to_date_ongoing!M145,"") -> 0 | M146: =IF($B146>0,Achievement_to_date_ongoing!$K145*Achievement_to_date_ongoing!N145,"") -> 0 | N146: =IF($B146>0,Achievement_to_date_ongoing!$K145*Achievement_to_date_ongoing!O145,"") -> 1 | O146: =IF($B146>0,Achievement_to_date_ongoing!$K145*Achievement_to_date_ongoing!P145,"") -> 1
B147: =Achievement_to_date_ongoing!B146 -> 135476 | C147: =IF($B147>0, Achievement_to_date_ongoing!C146, "") -> 2 | D147: =IF($B147>0, Achievement_to_date_ongoing!D146, "") -> All | E147: =IF($B147>0, Achievement_to_date_ongoing!E146, "") -> 2.2 | F147: =IF($B147>0, Achievement_to_date_ongoing!F146, "") -> All | G147: 0 | H147: 0 | I147: 0 | J147: 1 | L147: =IF($B147>0,Achievement_to_date_ongoing!$K146*Achievement_to_date_ongoing!M146,"") -> 0 | M147: =IF($B147>0,Achievement_to_date_ongoing!$K146*Achievement_to_date_ongoing!N146,"") -> 0 | N147: =IF($B147>0,Achievement_to_date_ongoing!$K146*Achievement_to_date_ongoing!O146,"") -> 0 | O147: =IF($B147>0,Achievement_to_date_ongoing!$K146*Achievement_to_date_ongoing!P146,"") -> 1
B148: =Achievement_to_date_ongoing!B147 -> 135468 | C148: =IF($B148>0, Achievement_to_date_ongoing!C147, "") -> 2 | D148: =IF($B148>0, Achievement_to_date_ongoing!D147, "") -> All | E148: =IF($B148>0, Achievement_to_date_ongoing!E147, "") -> 2.2 | F148: =IF($B148>0, Achievement_to_date_ongoing!F147, "") -> All | G148: 0 | H148: 0 | I148: 1 | J148: 1 | L148: =IF($B148>0,Achievement_to_date_ongoing!$K147*Achievement_to_date_ongoing!M147,"") -> 0 | M148: =IF($B148>0,Achievement_to_date_ongoing!$K147*Achievement_to_date_ongoing!N147,"") -> 0 | N148: =IF($B148>0,Achievement_to_date_ongoing!$K147*Achievement_to_date_ongoing!O147,"") -> 1 | O148: =IF($B148>0,Achievement_to_date_ongoing!$K147*Achievement_to_date_ongoing!P147,"") -> 1
B149: =Achievement_to_date_ongoing!B148 -> 135093 | C149: =IF($B149>0, Achievement_to_date_ongoing!C148, "") -> 2 | D149: =IF($B149>0, Achievement_to_date_ongoing!D148, "") -> All | E149: =IF($B149>0, Achievement_to_date_ongoing!E148, "") -> 2.2 | F149: =IF($B149>0, Achievement_to_date_ongoing!F148, "") -> All | G149: 0 | H149: 1 | I149: 1 | J149: 1 | L149: =IF($B149>0,Achievement_to_date_ongoing!$K148*Achievement_to_date_ongoing!M148,"") -> 0 | M149: =IF($B149>0,Achievement_to_date_ongoing!$K148*Achievement_to_date_ongoing!N148,"") -> 1 | N149: =IF($B149>0,Achievement_to_date_ongoing!$K148*Achievement_to_date_ongoing!O148,"") -> 1 | O149: =IF($B149>0,Achievement_to_date_ongoing!$K148*Achievement_to_date_ongoing!P148,"") -> 1
B150: =Achievement_to_date_ongoing!B149 -> 135394 | C150: =IF($B150>0, Achievement_to_date_ongoing!C149, "") -> 2 | D150: =IF($B150>0, Achievement_to_date_ongoing!D149, "") -> All | E150: =IF($B150>0, Achievement_to_date_ongoing!E149, "") -> 2.2 | F150: =IF($B150>0, Achievement_to_date_ongoing!F149, "") -> All | G150: 0 | H150: 0 | I150: 1 | J150: 1 | L150: =IF($B150>0,Achievement_to_date_ongoing!$K149*Achievement_to_date_ongoing!M149,"") -> 0 | M150: =IF($B150>0,Achievement_to_date_ongoing!$K149*Achievement_to_date_ongoing!N149,"") -> 0 | N150: =IF($B150>0,Achievement_to_date_ongoing!$K149*Achievement_to_date_ongoing!O149,"") -> 1 | O150: =IF($B150>0,Achievement_to_date_ongoing!$K149*Achievement_to_date_ongoing!P149,"") -> 1
B151: =Achievement_to_date_ongoing!B150 -> 135439 | C151: =IF($B151>0, Achievement_to_date_ongoing!C150, "") -> 2 | D151: =IF($B151>0, Achievement_to_date_ongoing!D150, "") -> All | E151: =IF($B151>0, Achievement_to_date_ongoing!E150, "") -> 2.2 | F151: =IF($B151>0, Achievement_to_date_ongoing!F150, "") -> All | G151: 0 | H151: 0 | I151: 0 | J151: 1 | L151: =IF($B151>0,Achievement_to_date_ongoing!$K150*Achievement_to_date_ongoing!M150,"") -> 0 | M151: =IF($B151>0,Achievement_to_date_ongoing!$K150*Achievement_to_date_ongoing!N150,"") -> 0 | N151: =IF($B151>0,Achievement_to_date_ongoing!$K150*Achievement_to_date_ongoing!O150,"") -> 0 | O151: =IF($B151>0,Achievement_to_date_ongoing!$K150*Achievement_to_date_ongoing!P150,"") -> 1
B152: =Achievement_to_date_ongoing!B151 -> 117756 | C152: =IF($B152>0, Achievement_to_date_ongoing!C151, "") -> 4 | D152: =IF($B152>0, Achievement_to_date_ongoing!D151, "") -> All | E152: =IF($B152>0, Achievement_to_date_ongoing!E151, "") -> 1F | F152: =IF($B152>0, Achievement_to_date_ongoing!F151, "") -> All | G152: 102911.5665 | H152: 102911.5665 | I152: 102911.5665 | J152: 106300 | L152: =IF($B152>0,Achievement_to_date_ongoing!$K151*Achievement_to_date_ongoing!M151,"") -> 102911.5665 | M152: =IF($B152>0,Achievement_to_date_ongoing!$K151*Achievement_to_date_ongoing!N151,"") -> 102911.5665 | N152: =IF($B152>0,Achievement_to_date_ongoing!$K151*Achievement_to_date_ongoing!O151,"") -> 102911.5665 | O152: =IF($B152>0,Achievement_to_date_ongoing!$K151*Achievement_to_date_ongoing!P151,"") -> 106300
B153: =Achievement_to_date_ongoing!B152 -> 133079 | C153: =IF($B153>0, Achievement_to_date_ongoing!C152, "") -> 4 | D153: =IF($B153>0, Achievement_to_date_ongoing!D152, "") -> All | E153: =IF($B153>0, Achievement_to_date_ongoing!E152, "") -> 1F | F153: =IF($B153>0, Achievement_to_date_ongoing!F152, "") -> All | G153: 258212.895 | H153: 794415.0491 | I153: 794415.0491 | J153: 794415.0491 | L153: =IF($B153>0,Achievement_to_date_ongoing!$K152*Achievement_to_date_ongoing!M152,"") -> 258212.895 | M153: =IF($B153>0,Achievement_to_date_ongoing!$K152*Achievement_to_date_ongoing!N152,"") -> 794415.0491 | N153: =IF($B153>0,Achievement_to_date_ongoing!$K152*Achievement_to_date_ongoing!O152,"") -> 794415.0491 | O153: =IF($B153>0,Achievement_to_date_ongoing!$K152*Achievement_to_date_ongoing!P152,"") -> 794415.0491
B154: =Achievement_to_date_ongoing!B153 -> 128237 | C154: =IF($B154>0, Achievement_to_date_ongoing!C153, "") -> 4 | D154: =IF($B154>0, Achievement_to_date_ongoing!D153, "") -> All | E154: =IF($B154>0, Achievement_to_date_ongoing!E153, "") -> 1F | F154: =IF($B154>0, Achievement_to_date_ongoing!F153, "") -> All | G154: 32989.27258 | H154: 558124.2521 | I154: 558124.2521 | J154: 558124.2521 | L154: =IF($B154>0,Achievement_to_date_ongoing!$K153*Achievement_to_date_ongoing!M153,"") -> 32989.27258 | M154: =IF($B154>0,Achievement_to_date_ongoing!$K153*Achievement_to_date_ongoing!N153,"") -> 558124.2521 | N154: =IF($B154>0,Achievement_to_date_ongoing!$K153*Achievement_to_date_ongoing!O153,"") -> 558124.2521 | O154: =IF($B154>0,Achievement_to_date_ongoing!$K153*Achievement_to_date_ongoing!P153,"") -> 558124.2521
B155: =Achievement_to_date_ongoing!B154 -> 129631 | C155: =IF($B155>0, Achievement_to_date_ongoing!C154, "") -> 4 | D155: =IF($B155>0, Achievement_to_date_ongoing!D154, "") -> All | E155: =IF($B155>0, Achievement_to_date_ongoing!E154, "") -> 1F | F155: =IF($B155>0, Achievement_to_date_ongoing!F154, "") -> All | G155: 0 | H155: 199363.5966 | I155: 199363.5966 | J155: 199363.5966 | L155: =IF($B155>0,Achievement_to_date_ongoing!$K154*Achievement_to_date_ongoing!M154,"") -> 0 | M155: =IF($B155>0,Achievement_to_date_ongoing!$K154*Achievement_to_date_ongoing!N154,"") -> 199363.5966 | N155: =IF($B155>0,Achievement_to_date_ongoing!$K154*Achievement_to_date_ongoing!O154,"") -> 199363.5966 | O155: =IF($B155>0,Achievement_to_date_ongoing!$K154*Achievement_to_date_ongoing!P154,"") -> 199363.5966
B156: =Achievement_to_date_ongoing!B155 -> 129437 | C156: =IF($B156>0, Achievement_to_date_ongoing!C155, "") -> 4 | D156: =IF($B156>0, Achievement_to_date_ongoing!D155, "") -> All | E156: =IF($B156>0, Achievement_to_date_ongoing!E155, "") -> 1F | F156: =IF($B156>0, Achievement_to_date_ongoing!F155, "") -> All | G156: 0 | H156: 410664.1671 | I156: 410664.1671 | J156: 410664.1671 | L156: =IF($B156>0,Achievement_to_date_ongoing!$K155*Achievement_to_date_ongoing!M155,"") -> 0 | M156: =IF($B156>0,Achievement_to_date_ongoing!$K155*Achievement_to_date_ongoing!N155,"") -> 410664.1671 | N156: =IF($B156>0,Achievement_to_date_ongoing!$K155*Achievement_to_date_ongoing!O155,"") -> 410664.1671 | O156: =IF($B156>0,Achievement_to_date_ongoing!$K155*Achievement_to_date_ongoing!P155,"") -> 410664.1671
B157: =Achievement_to_date_ongoing!B156 -> 131550 | C157: =IF($B157>0, Achievement_to_date_ongoing!C156, "") -> 4 | D157: =IF($B157>0, Achievement_to_date_ongoing!D156, "") -> All | E157: =IF($B157>0, Achievement_to_date_ongoing!E156, "") -> 1F | F157: =IF($B157>0, Achievement_to_date_ongoing!F156, "") -> All | G157: 18251.04783 | H157: 731714.7812 | I157: 731714.7812 | J157: 731714.7812 | L157: =IF($B157>0,Achievement_to_date_ongoing!$K156*Achievement_to_date_ongoing!M156,"") -> 18251.04783 | M157: =IF($B157>0,Achievement_to_date_ongoing!$K156*Achievement_to_date_ongoing!N156,"") -> 731714.7812 | N157: =IF($B157>0,Achievement_to_date_ongoing!$K156*Achievement_to_date_ongoing!O156,"") -> 731714.7812 | O157: =IF($B157>0,Achievement_to_date_ongoing!$K156*Achievement_to_date_ongoing!P156,"") -> 731714.7812
B158: =Achievement_to_date_ongoing!B157 -> 129840 | C158: =IF($B158>0, Achievement_to_date_ongoing!C157, "") -> 4 | D158: =IF($B158>0, Achievement_to_date_ongoing!D157, "") -> All | E158: =IF($B158>0, Achievement_to_date_ongoing!E157, "") -> 1F | F158: =IF($B158>0, Achievement_to_date_ongoing!F157, "") -> All | G158: 1797.217361 | H158: 801289.3606 | I158: 801289.3606 | J158: 801289.3606 | L158: =IF($B158>0,Achievement_to_date_ongoing!$K157*Achievement_to_date_ongoing!M157,"") -> 1797.217361 | M158: =IF($B158>0,Achievement_to_date_ongoing!$K157*Achievement_to_date_ongoing!N157,"") -> 801289.3606 | N158: =IF($B158>0,Achievement_to_date_ongoing!$K157*Achievement_to_date_ongoing!O157,"") -> 801289.3606 | O158: =IF($B158>0,Achievement_to_date_ongoing!$K157*Achievement_to_date_ongoing!P157,"") -> 801289.3606
B159: =Achievement_to_date_ongoing!B158 -> 116842 | C159: =IF($B159>0, Achievement_to_date_ongoing!C158, "") -> 4 | D159: =IF($B159>0, Achievement_to_date_ongoing!D158, "") -> All | E159: =IF($B159>0, Achievement_to_date_ongoing!E158, "") -> 1F | F159: =IF($B159>0, Achievement_to_date_ongoing!F158, "") -> All | G159: 1790528.963 | H159: 2945076.625 | I159: 3112789.099 | J159: 3223383.122 | L159: =IF($B159>0,Achievement_to_date_ongoing!$K158*Achievement_to_date_ongoing!M158,"") -> 1790528.963 | M159: =IF($B159>0,Achievement_to_date_ongoing!$K158*Achievement_to_date_ongoing!N158,"") -> 2945076.625 | N159: =IF($B159>0,Achievement_to_date_ongoing!$K158*Achievement_to_date_ongoing!O158,"") -> 3112789.099 | O159: =IF($B159>0,Achievement_to_date_ongoing!$K158*Achievement_to_date_ongoing!P158,"") -> 3223383.122
B160: =Achievement_to_date_ongoing!B159 -> 130392 | C160: =IF($B160>0, Achievement_to_date_ongoing!C159, "") -> 4 | D160: =IF($B160>0, Achievement_to_date_ongoing!D159, "") -> All | E160: =IF($B160>0, Achievement_to_date_ongoing!E159, "") -> 1F | F160: =IF($B160>0, Achievement_to_date_ongoing!F159, "") -> All | G160: 21664.55374 | H160: 400693.63 | I160: 400693.63 | J160: 400693.63 | L160: =IF($B160>0,Achievement_to_date_ongoing!$K159*Achievement_to_date_ongoing!M159,"") -> 21664.55374 | M160: =IF($B160>0,Achievement_to_date_ongoing!$K159*Achievement_to_date_ongoing!N159,"") -> 400693.63 | N160: =IF($B160>0,Achievement_to_date_ongoing!$K159*Achievement_to_date_ongoing!O159,"") -> 400693.63 | O160: =IF($B160>0,Achievement_to_date_ongoing!$K159*Achievement_to_date_ongoing!P159,"") -> 400693.63
B161: =Achievement_to_date_ongoing!B160 -> 131817 | C161: =IF($B161>0, Achievement_to_date_ongoing!C160, "") -> 4 | D161: =IF($B161>0, Achievement_to_date_ongoing!D160, "") -> All | E161: =IF($B161>0, Achievement_to_date_ongoing!E160, "") -> 1F | F161: =IF($B161>0, Achievement_to_date_ongoing!F160, "") -> All | G161: 0 | H161: 801288.5518 | I161: 801288.5518 | J161: 801288.5518 | L161: =IF($B161>0,Achievement_to_date_ongoing!$K160*Achievement_to_date_ongoing!M160,"") -> 0 | M161: =IF($B161>0,Achievement_to_date_ongoing!$K160*Achievement_to_date_ongoing!N160,"") -> 801288.5518 | N161: =IF($B161>0,Achievement_to_date_ongoing!$K160*Achievement_to_date_ongoing!O160,"") -> 801288.5518 | O161: =IF($B161>0,Achievement_to_date_ongoing!$K160*Achievement_to_date_ongoing!P160,"") -> 801288.5518
B162: =Achievement_to_date_ongoing!B161 -> 128308 | C162: =IF($B162>0, Achievement_to_date_ongoing!C161, "") -> 4 | D162: =IF($B162>0, Achievement_to_date_ongoing!D161, "") -> All | E162: =IF($B162>0, Achievement_to_date_ongoing!E161, "") -> 1F | F162: =IF($B162>0, Achievement_to_date_ongoing!F161, "") -> All | G162: 273982.7764 | H162: 786480.6 | I162: 794337.3194 | J162: 794337.3194 | L162: =IF($B162>0,Achievement_to_date_ongoing!$K161*Achievement_to_date_ongoing!M161,"") -> 273982.7764 | M162: =IF($B162>0,Achievement_to_date_ongoing!$K161*Achievement_to_date_ongoing!N161,"") -> 786480.6 | N162: =IF($B162>0,Achievement_to_date_ongoing!$K161*Achievement_to_date_ongoing!O161,"") -> 794337.3194 | O162: =IF($B162>0,Achievement_to_date_ongoing!$K161*Achievement_to_date_ongoing!P161,"") -> 794337.3194
B163: =Achievement_to_date_ongoing!B162 -> 132513 | C163: =IF($B163>0, Achievement_to_date_ongoing!C162, "") -> 4 | D163: =IF($B163>0, Achievement_to_date_ongoing!D162, "") -> All | E163: =IF($B163>0, Achievement_to_date_ongoing!E162, "") -> 1F | F163: =IF($B163>0, Achievement_to_date_ongoing!F162, "") -> All | G163: 322211.2405 | H163: 652707.44 | I163: 652707.44 | J163: 652707.44 | L163: =IF($B163>0,Achievement_to_date_ongoing!$K162*Achievement_to_date_ongoing!M162,"") -> 322211.2405 | M163: =IF($B163>0,Achievement_to_date_ongoing!$K162*Achievement_to_date_ongoing!N162,"") -> 652707.44 | N163: =IF($B163>0,Achievement_to_date_ongoing!$K162*Achievement_to_date_ongoing!O162,"") -> 652707.44 | O163: =IF($B163>0,Achievement_to_date_ongoing!$K162*Achievement_to_date_ongoing!P162,"") -> 652707.44
B164: =Achievement_to_date_ongoing!B163 -> 132133 | C164: =IF($B164>0, Achievement_to_date_ongoing!C163, "") -> 4 | D164: =IF($B164>0, Achievement_to_date_ongoing!D163, "") -> All | E164: =IF($B164>0, Achievement_to_date_ongoing!E163, "") -> 1F | F164: =IF($B164>0, Achievement_to_date_ongoing!F163, "") -> All | G164: 4932.714659 | H164: 329486.2851 | I164: 329486.2851 | J164: 329486.2851 | L164: =IF($B164>0,Achievement_to_date_ongoing!$K163*Achievement_to_date_ongoing!M163,"") -> 4932.714659 | M164: =IF($B164>0,Achievement_to_date_ongoing!$K163*Achievement_to_date_ongoing!N163,"") -> 329486.2851 | N164: =IF($B164>0,Achievement_to_date_ongoing!$K163*Achievement_to_date_ongoing!O163,"") -> 329486.2851 | O164: =IF($B164>0,Achievement_to_date_ongoing!$K163*Achievement_to_date_ongoing!P163,"") -> 329486.2851
B165: =Achievement_to_date_ongoing!B164 -> 116912 | C165: =IF($B165>0, Achievement_to_date_ongoing!C164, "") -> 4 | D165: =IF($B165>0, Achievement_to_date_ongoing!D164, "") -> All | E165: =IF($B165>0, Achievement_to_date_ongoing!E164, "") -> 1F | F165: =IF($B165>0, Achievement_to_date_ongoing!F164, "") -> All | G165: 70530.89674 | H165: 72988.9375 | I165: 77145.41859 | J165: 79886.31171 | L165: =IF($B165>0,Achievement_to_date_ongoing!$K164*Achievement_to_date_ongoing!M164,"") -> 70530.89674 | M165: =IF($B165>0,Achievement_to_date_ongoing!$K164*Achievement_to_date_ongoing!N164,"") -> 72988.9375 | N165: =IF($B165>0,Achievement_to_date_ongoing!$K164*Achievement_to_date_ongoing!O164,"") -> 77145.41859 | O165: =IF($B165>0,Achievement_to_date_ongoing!$K164*Achievement_to_date_ongoing!P164,"") -> 79886.31171
B166: =Achievement_to_date_ongoing!B165 -> 128316 | C166: =IF($B166>0, Achievement_to_date_ongoing!C165, "") -> 4 | D166: =IF($B166>0, Achievement_to_date_ongoing!D165, "") -> All | E166: =IF($B166>0, Achievement_to_date_ongoing!E165, "") -> 1F | F166: =IF($B166>0, Achievement_to_date_ongoing!F165, "") -> All | G166: 560516.6195 | H166: 865628.46 | I166: 865628.46 | J166: 865628.46 | L166: =IF($B166>0,Achievement_to_date_ongoing!$K165*Achievement_to_date_ongoing!M165,"") -> 560516.6195 | M166: =IF($B166>0,Achievement_to_date_ongoing!$K165*Achievement_to_date_ongoing!N165,"") -> 865628.46 | N166: =IF($B166>0,Achievement_to_date_ongoing!$K165*Achievement_to_date_ongoing!O165,"") -> 865628.46 | O166: =IF($B166>0,Achievement_to_date_ongoing!$K165*Achievement_to_date_ongoing!P165,"") -> 865628.46
B167: =Achievement_to_date_ongoing!B166 -> 134005 | C167: =IF($B167>0, Achievement_to_date_ongoing!C166, "") -> 4 | D167: =IF($B167>0, Achievement_to_date_ongoing!D166, "") -> All | E167: =IF($B167>0, Achievement_to_date_ongoing!E166, "") -> 1F | F167: =IF($B167>0, Achievement_to_date_ongoing!F166, "") -> All | G167: 987.8579024 | H167: 81382.5 | I167: 81382.5 | J167: 81382.5 | L167: =IF($B167>0,Achievement_to_date_ongoing!$K166*Achievement_to_date_ongoing!M166,"") -> 987.8579024 | M167: =IF($B167>0,Achievement_to_date_ongoing!$K166*Achievement_to_date_ongoing!N166,"") -> 81382.5 | N167: =IF($B167>0,Achievement_to_date_ongoing!$K166*Achievement_to_date_ongoing!O166,"") -> 81382.5 | O167: =IF($B167>0,Achievement_to_date_ongoing!$K166*Achievement_to_date_ongoing!P166,"") -> 81382.5
B168: =Achievement_to_date_ongoing!B167 -> 135861 | C168: =IF($B168>0, Achievement_to_date_ongoing!C167, "") -> 4 | D168: =IF($B168>0, Achievement_to_date_ongoing!D167, "") -> All | E168: =IF($B168>0, Achievement_to_date_ongoing!E167, "") -> 1F | F168: =IF($B168>0, Achievement_to_date_ongoing!F167, "") -> All | G168: 146742.7976 | H168: 599371.99 | I168: 599371.99 | J168: 599371.99 | L168: =IF($B168>0,Achievement_to_date_ongoing!$K167*Achievement_to_date_ongoing!M167,"") -> 146742.7976 | M168: =IF($B168>0,Achievement_to_date_ongoing!$K167*Achievement_to_date_ongoing!N167,"") -> 599371.99 | N168: =IF($B168>0,Achievement_to_date_ongoing!$K167*Achievement_to_date_ongoing!O167,"") -> 599371.99 | O168: =IF($B168>0,Achievement_to_date_ongoing!$K167*Achievement_to_date_ongoing!P167,"") -> 599371.99
B169: =Achievement_to_date_ongoing!B168 -> 136345 | C169: =IF($B169>0, Achievement_to_date_ongoing!C168, "") -> 4 | D169: =IF($B169>0, Achievement_to_date_ongoing!D168, "") -> All | E169: =IF($B169>0, Achievement_to_date_ongoing!E168, "") -> 1F | F169: =IF($B169>0, Achievement_to_date_ongoing!F168, "") -> All | G169: 0 | H169: 1334515.404 | I169: 1441368.144 | J169: 1441368.144 | L169: =IF($B169>0,Achievement_to_date_ongoing!$K168*Achievement_to_date_ongoing!M168,"") -> 0 | M169: =IF($B169>0,Achievement_to_date_ongoing!$K168*Achievement_to_date_ongoing!N168,"") -> 1334515.404 | N169: =IF($B169>0,Achievement_to_date_ongoing!$K168*Achievement_to_date_ongoing!O168,"") -> 1441368.144 | O169: =IF($B169>0,Achievement_to_date_ongoing!$K168*Achievement_to_date_ongoing!P168,"") -> 1441368.144
B170: =Achievement_to_date_ongoing!B169 -> 116286 | C170: =IF($B170>0, Achievement_to_date_ongoing!C169, "") -> 4 | D170: =IF($B170>0, Achievement_to_date_ongoing!D169, "") -> All | E170: =IF($B170>0, Achievement_to_date_ongoing!E169, "") -> 1F | F170: =IF($B170>0, Achievement_to_date_ongoing!F169, "") -> All | G170: 711703.341 | H170: 1438484.449 | I170: 1533616.113 | J170: 1597618.401 | L170: =IF($B170>0,Achievement_to_date_ongoing!$K169*Achievement_to_date_ongoing!M169,"") -> 711703.341 | M170: =IF($B170>0,Achievement_to_date_ongoing!$K169*Achievement_to_date_ongoing!N169,"") -> 1438484.449 | N170: =IF($B170>0,Achievement_to_date_ongoing!$K169*Achievement_to_date_ongoing!O169,"") -> 1533616.113 | O170: =IF($B170>0,Achievement_to_date_ongoing!$K169*Achievement_to_date_ongoing!P169,"") -> 1597618.401
B171: =Achievement_to_date_ongoing!B170 -> 116840 | C171: =IF($B171>0, Achievement_to_date_ongoing!C170, "") -> 4 | D171: =IF($B171>0, Achievement_to_date_ongoing!D170, "") -> All | E171: =IF($B171>0, Achievement_to_date_ongoing!E170, "") -> 1F | F171: =IF($B171>0, Achievement_to_date_ongoing!F170, "") -> All | G171: 838060.6255 | H171: 1461161.837 | I171: 1544370.221 | J171: 1599240.021 | L171: =IF($B171>0,Achievement_to_date_ongoing!$K170*Achievement_to_date_ongoing!M170,"") -> 838060.6255 | M171: =IF($B171>0,Achievement_to_date_ongoing!$K170*Achievement_to_date_ongoing!N170,"") -> 1461161.837 | N171: =IF($B171>0,Achievement_to_date_ongoing!$K170*Achievement_to_date_ongoing!O170,"") -> 1544370.221 | O171: =IF($B171>0,Achievement_to_date_ongoing!$K170*Achievement_to_date_ongoing!P170,"") -> 1599240.021
B172: =Achievement_to_date_ongoing!B171 -> 116149 | C172: =IF($B172>0, Achievement_to_date_ongoing!C171, "") -> 4 | D172: =IF($B172>0, Achievement_to_date_ongoing!D171, "") -> All | E172: =IF($B172>0, Achievement_to_date_ongoing!E171, "") -> 1F | F172: =IF($B172>0, Achievement_to_date_ongoing!F171, "") -> All | G172: 874616.3232 | H172: 1308264.865 | I172: 1394784.684 | J172: 1452993.13 | L172: =IF($B172>0,Achievement_to_date_ongoing!$K171*Achievement_to_date_ongoing!M171,"") -> 874616.3232 | M172: =IF($B172>0,Achievement_to_date_ongoing!$K171*Achievement_to_date_ongoing!N171,"") -> 1308264.865 | N172: =IF($B172>0,Achievement_to_date_ongoing!$K171*Achievement_to_date_ongoing!O171,"") -> 1394784.684 | O172: =IF($B172>0,Achievement_to_date_ongoing!$K171*Achievement_to_date_ongoing!P171,"") -> 1452993.13
B173: =Achievement_to_date_ongoing!B172 -> 116881 | C173: =IF($B173>0, Achievement_to_date_ongoing!C172, "") -> 4 | D173: =IF($B173>0, Achievement_to_date_ongoing!D172, "") -> All | E173: =IF($B173>0, Achievement_to_date_ongoing!E172, "") -> 1F | F173: =IF($B173>0, Achievement_to_date_ongoing!F172, "") -> All | G173: 893901.3191 | H173: 1460726.112 | I173: 1543909.683 | J173: 1598763.121 | L173: =IF($B173>0,Achievement_to_date_ongoing!$K172*Achievement_to_date_ongoing!M172,"") -> 893901.3191 | M173: =IF($B173>0,Achievement_to_date_ongoing!$K172*Achievement_to_date_ongoing!N172,"") -> 1460726.112 | N173: =IF($B173>0,Achievement_to_date_ongoing!$K172*Achievement_to_date_ongoing!O172,"") -> 1543909.683 | O173: =IF($B173>0,Achievement_to_date_ongoing!$K172*Achievement_to_date_ongoing!P172,"") -> 1598763.121
B174: =Achievement_to_date_ongoing!B173 -> 117651 | C174: =IF($B174>0, Achievement_to_date_ongoing!C173, "") -> 4 | D174: =IF($B174>0, Achievement_to_date_ongoing!D173, "") -> All | E174: =IF($B174>0, Achievement_to_date_ongoing!E173, "") -> 1F | F174: =IF($B174>0, Achievement_to_date_ongoing!F173, "") -> All | G174: 289550.8213 | H174: 1184073.212 | I174: 1257420.426 | J174: 1302095.211 | L174: =IF($B174>0,Achievement_to_date_ongoing!$K173*Achievement_to_date_ongoing!M173,"") -> 289550.8213 | M174: =IF($B174>0,Achievement_to_date_ongoing!$K173*Achievement_to_date_ongoing!N173,"") -> 1184073.212 | N174: =IF($B174>0,Achievement_to_date_ongoing!$K173*Achievement_to_date_ongoing!O173,"") -> 1257420.426 | O174: =IF($B174>0,Achievement_to_date_ongoing!$K173*Achievement_to_date_ongoing!P173,"") -> 1302095.211
B175: =Achievement_to_date_ongoing!B174 -> 117607 | C175: =IF($B175>0, Achievement_to_date_ongoing!C174, "") -> 4 | D175: =IF($B175>0, Achievement_to_date_ongoing!D174, "") -> All | E175: =IF($B175>0, Achievement_to_date_ongoing!E174, "") -> 1F | F175: =IF($B175>0, Achievement_to_date_ongoing!F174, "") -> All | G175: 535151.7345 | H175: 952711.0307 | I175: 1015716.916 | J175: 1058105.755 | L175: =IF($B175>0,Achievement_to_date_ongoing!$K174*Achievement_to_date_ongoing!M174,"") -> 535151.7345 | M175: =IF($B175>0,Achievement_to_date_ongoing!$K174*Achievement_to_date_ongoing!N174,"") -> 952711.0307 | N175: =IF($B175>0,Achievement_to_date_ongoing!$K174*Achievement_to_date_ongoing!O174,"") -> 1015716.916 | O175: =IF($B175>0,Achievement_to_date_ongoing!$K174*Achievement_to_date_ongoing!P174,"") -> 1058105.755
B176: =Achievement_to_date_ongoing!B175 -> 116654 | C176: =IF($B176>0, Achievement_to_date_ongoing!C175, "") -> 4 | D176: =IF($B176>0, Achievement_to_date_ongoing!D175, "") -> All | E176: =IF($B176>0, Achievement_to_date_ongoing!E175, "") -> 1F | F176: =IF($B176>0, Achievement_to_date_ongoing!F175, "") -> All | G176: 73096.99963 | H176: 89794.02668 | I176: 95732.39829 | J176: 99727.59138 | L176: =IF($B176>0,Achievement_to_date_ongoing!$K175*Achievement_to_date_ongoing!M175,"") -> 73096.99963 | M176: =IF($B176>0,Achievement_to_date_ongoing!$K175*Achievement_to_date_ongoing!N175,"") -> 89794.02668 | N176: =IF($B176>0,Achievement_to_date_ongoing!$K175*Achievement_to_date_ongoing!O175,"") -> 95732.39829 | O176: =IF($B176>0,Achievement_to_date_ongoing!$K175*Achievement_to_date_ongoing!P175,"") -> 99727.59138
B177: =Achievement_to_date_ongoing!B176 -> 116627 | C177: =IF($B177>0, Achievement_to_date_ongoing!C176, "") -> 4 | D177: =IF($B177>0, Achievement_to_date_ongoing!D176, "") -> All | E177: =IF($B177>0, Achievement_to_date_ongoing!E176, "") -> 1F | F177: =IF($B177>0, Achievement_to_date_ongoing!F176, "") -> All | G177: 75003.34148 | H177: 75003.34148 | I177: 78854.94911 | J177: 81656.58 | L177: =IF($B177>0,Achievement_to_date_ongoing!$K176*Achievement_to_date_ongoing!M176,"") -> 75003.34148 | M177: =IF($B177>0,Achievement_to_date_ongoing!$K176*Achievement_to_date_ongoing!N176,"") -> 75003.34148 | N177: =IF($B177>0,Achievement_to_date_ongoing!$K176*Achievement_to_date_ongoing!O176,"") -> 78854.94911 | O177: =IF($B177>0,Achievement_to_date_ongoing!$K176*Achievement_to_date_ongoing!P176,"") -> 81656.58
B178: =Achievement_to_date_ongoing!B177 -> 117174 | C178: =IF($B178>0, Achievement_to_date_ongoing!C177, "") -> 4 | D178: =IF($B178>0, Achievement_to_date_ongoing!D177, "") -> All | E178: =IF($B178>0, Achievement_to_date_ongoing!E177, "") -> 1F | F178: =IF($B178>0, Achievement_to_date_ongoing!F177, "") -> All | G178: 613896.6514 | H178: 1312008.631 | I178: 1386723.228 | J178: 1435992.002 | L178: =IF($B178>0,Achievement_to_date_ongoing!$K177*Achievement_to_date_ongoing!M177,"") -> 613896.6514 | M178: =IF($B178>0,Achievement_to_date_ongoing!$K177*Achievement_to_date_ongoing!N177,"") -> 1312008.631 | N178: =IF($B178>0,Achievement_to_date_ongoing!$K177*Achievement_to_date_ongoing!O177,"") -> 1386723.228 | O178: =IF($B178>0,Achievement_to_date_ongoing!$K177*Achievement_to_date_ongoing!P177,"") -> 1435992.002
B179: =Achievement_to_date_ongoing!B178 -> 117265 | C179: =IF($B179>0, Achievement_to_date_ongoing!C178, "") -> 4 | D179: =IF($B179>0, Achievement_to_date_ongoing!D178, "") -> All | E179: =IF($B179>0, Achievement_to_date_ongoing!E178, "") -> 1F | F179: =IF($B179>0, Achievement_to_date_ongoing!F178, "") -> All | G179: 965293.2268 | H179: 1462268.075 | I179: 1545539.456 | J179: 1600450.798 | L179: =IF($B179>0,Achievement_to_date_ongoing!$K178*Achievement_to_date_ongoing!M178,"") -> 965293.2268 | M179: =IF($B179>0,Achievement_to_date_ongoing!$K178*Achievement_to_date_ongoing!N178,"") -> 1462268.075 | N179: =IF($B179>0,Achievement_to_date_ongoing!$K178*Achievement_to_date_ongoing!O178,"") -> 1545539.456 | O179: =IF($B179>0,Achievement_to_date_ongoing!$K178*Achievement_to_date_ongoing!P178,"") -> 1600450.798
B180: =Achievement_to_date_ongoing!B179 -> 116923 | C180: =IF($B180>0, Achievement_to_date_ongoing!C179, "") -> 4 | D180: =IF($B180>0, Achievement_to_date_ongoing!D179, "") -> All | E180: =IF($B180>0, Achievement_to_date_ongoing!E179, "") -> 1F | F180: =IF($B180>0, Achievement_to_date_ongoing!F179, "") -> All | G180: 968587.3824 | H180: 1565066.311 | I180: 1654191.714 | J180: 1712963.353 | L180: =IF($B180>0,Achievement_to_date_ongoing!$K179*Achievement_to_date_ongoing!M179,"") -> 968587.3824 | M180: =IF($B180>0,Achievement_to_date_ongoing!$K179*Achievement_to_date_ongoing!N179,"") -> 1565066.311 | N180: =IF($B180>0,Achievement_to_date_ongoing!$K179*Achievement_to_date_ongoing!O179,"") -> 1654191.714 | O180: =IF($B180>0,Achievement_to_date_ongoing!$K179*Achievement_to_date_ongoing!P179,"") -> 1712963.353
B181: =Achievement_to_date_ongoing!B180 -> 131608 | C181: =IF($B181>0, Achievement_to_date_ongoing!C180, "") -> 4 | D181: =IF($B181>0, Achievement_to_date_ongoing!D180, "") -> All | E181: =IF($B181>0, Achievement_to_date_ongoing!E180, "") -> 1F | F181: =IF($B181>0, Achievement_to_date_ongoing!F180, "") -> All | G181: 16040.16495 | H181: 389260.0946 | I181: 394003.5937 | J181: 394003.5937 | L181: =IF($B181>0,Achievement_to_date_ongoing!$K180*Achievement_to_date_ongoing!M180,"") -> 16040.16495 | M181: =IF($B181>0,Achievement_to_date_ongoing!$K180*Achievement_to_date_ongoing!N180,"") -> 389260.0946 | N181: =IF($B181>0,Achievement_to_date_ongoing!$K180*Achievement_to_date_ongoing!O180,"") -> 394003.5937 | O181: =IF($B181>0,Achievement_to_date_ongoing!$K180*Achievement_to_date_ongoing!P180,"") -> 394003.5937
B182: =Achievement_to_date_ongoing!B181 -> 130438 | C182: =IF($B182>0, Achievement_to_date_ongoing!C181, "") -> 4 | D182: =IF($B182>0, Achievement_to_date_ongoing!D181, "") -> All | E182: =IF($B182>0, Achievement_to_date_ongoing!E181, "") -> 1F | F182: =IF($B182>0, Achievement_to_date_ongoing!F181, "") -> All | G182: 25460.57629 | H182: 523219.5412 | I182: 523219.5412 | J182: 523219.5412 | L182: =IF($B182>0,Achievement_to_date_ongoing!$K181*Achievement_to_date_ongoing!M181,"") -> 25460.57629 | M182: =IF($B182>0,Achievement_to_date_ongoing!$K181*Achievement_to_date_ongoing!N181,"") -> 523219.5412 | N182: =IF($B182>0,Achievement_to_date_ongoing!$K181*Achievement_to_date_ongoing!O181,"") -> 523219.5412 | O182: =IF($B182>0,Achievement_to_date_ongoing!$K181*Achievement_to_date_ongoing!P181,"") -> 523219.5412
B183: =Achievement_to_date_ongoing!B182 -> 117006 | C183: =IF($B183>0, Achievement_to_date_ongoing!C182, "") -> 4 | D183: =IF($B183>0, Achievement_to_date_ongoing!D182, "") -> All | E183: =IF($B183>0, Achievement_to_date_ongoing!E182, "") -> 1F | F183: =IF($B183>0, Achievement_to_date_ongoing!F182, "") -> All | G183: 3430280.25 | H183: 6940775.721 | I183: 7336030.18 | J183: 7596671.382 | L183: =IF($B183>0,Achievement_to_date_ongoing!$K182*Achievement_to_date_ongoing!M182,"") -> 3430280.25 | M183: =IF($B183>0,Achievement_to_date_ongoing!$K182*Achievement_to_date_ongoing!N182,"") -> 6940775.721 | N183: =IF($B183>0,Achievement_to_date_ongoing!$K182*Achievement_to_date_ongoing!O182,"") -> 7336030.18 | O183: =IF($B183>0,Achievement_to_date_ongoing!$K182*Achievement_to_date_ongoing!P182,"") -> 7596671.382
B184: =Achievement_to_date_ongoing!B183 -> 129128 | C184: =IF($B184>0, Achievement_to_date_ongoing!C183, "") -> 4 | D184: =IF($B184>0, Achievement_to_date_ongoing!D183, "") -> All | E184: =IF($B184>0, Achievement_to_date_ongoing!E183, "") -> 1F | F184: =IF($B184>0, Achievement_to_date_ongoing!F183, "") -> All | G184: 0 | H184: 480528.6197 | I184: 480528.6197 | J184: 480528.6197 | L184: =IF($B184>0,Achievement_to_date_ongoing!$K183*Achievement_to_date_ongoing!M183,"") -> 0 | M184: =IF($B184>0,Achievement_to_date_ongoing!$K183*Achievement_to_date_ongoing!N183,"") -> 480528.6197 | N184: =IF($B184>0,Achievement_to_date_ongoing!$K183*Achievement_to_date_ongoing!O183,"") -> 480528.6197 | O184: =IF($B184>0,Achievement_to_date_ongoing!$K183*Achievement_to_date_ongoing!P183,"") -> 480528.6197
B185: =Achievement_to_date_ongoing!B184 -> 129239 | C185: =IF($B185>0, Achievement_to_date_ongoing!C184, "") -> 4 | D185: =IF($B185>0, Achievement_to_date_ongoing!D184, "") -> All | E185: =IF($B185>0, Achievement_to_date_ongoing!E184, "") -> 1F | F185: =IF($B185>0, Achievement_to_date_ongoing!F184, "") -> All | G185: 34801.67643 | H185: 365876.6208 | I185: 365876.6208 | J185: 365876.6208 | L185: =IF($B185>0,Achievement_to_date_ongoing!$K184*Achievement_to_date_ongoing!M184,"") -> 34801.67643 | M185: =IF($B185>0,Achievement_to_date_ongoing!$K184*Achievement_to_date_ongoing!N184,"") -> 365876.6208 | N185: =IF($B185>0,Achievement_to_date_ongoing!$K184*Achievement_to_date_ongoing!O184,"") -> 365876.6208 | O185: =IF($B185>0,Achievement_to_date_ongoing!$K184*Achievement_to_date_ongoing!P184,"") -> 365876.6208
B186: =Achievement_to_date_ongoing!B185 -> 129997 | C186: =IF($B186>0, Achievement_to_date_ongoing!C185, "") -> 4 | D186: =IF($B186>0, Achievement_to_date_ongoing!D185, "") -> All | E186: =IF($B186>0, Achievement_to_date_ongoing!E185, "") -> 1F | F186: =IF($B186>0, Achievement_to_date_ongoing!F185, "") -> All | G186: 802824.1867 | H186: 846093.57 | I186: 846093.57 | J186: 846093.57 | L186: =IF($B186>0,Achievement_to_date_ongoing!$K185*Achievement_to_date_ongoing!M185,"") -> 802824.1867 | M186: =IF($B186>0,Achievement_to_date_ongoing!$K185*Achievement_to_date_ongoing!N185,"") -> 846093.57 | N186: =IF($B186>0,Achievement_to_date_ongoing!$K185*Achievement_to_date_ongoing!O185,"") -> 846093.57 | O186: =IF($B186>0,Achievement_to_date_ongoing!$K185*Achievement_to_date_ongoing!P185,"") -> 846093.57
B187: =Achievement_to_date_ongoing!B186 -> 129918 | C187: =IF($B187>0, Achievement_to_date_ongoing!C186, "") -> 4 | D187: =IF($B187>0, Achievement_to_date_ongoing!D186, "") -> All | E187: =IF($B187>0, Achievement_to_date_ongoing!E186, "") -> 1F | F187: =IF($B187>0, Achievement_to_date_ongoing!F186, "") -> All | G187: 226698.7514 | H187: 507887.2911 | I187: 507887.2911 | J187: 507887.2911 | L187: =IF($B187>0,Achievement_to_date_ongoing!$K186*Achievement_to_date_ongoing!M186,"") -> 226698.7514 | M187: =IF($B187>0,Achievement_to_date_ongoing!$K186*Achievement_to_date_ongoing!N186,"") -> 507887.2911 | N187: =IF($B187>0,Achievement_to_date_ongoing!$K186*Achievement_to_date_ongoing!O186,"") -> 507887.2911 | O187: =IF($B187>0,Achievement_to_date_ongoing!$K186*Achievement_to_date_ongoing!P186,"") -> 507887.2911
B188: =Achievement_to_date_ongoing!B187 -> 134928 | C188: =IF($B188>0, Achievement_to_date_ongoing!C187, "") -> 4 | D188: =IF($B188>0, Achievement_to_date_ongoing!D187, "") -> All | E188: =IF($B188>0, Achievement_to_date_ongoing!E187, "") -> 1F | F188: =IF($B188>0, Achievement_to_date_ongoing!F187, "") -> All | G188: 404383.5933 | H188: 511934.9931 | I188: 511934.9931 | J188: 511934.9931 | L188: =IF($B188>0,Achievement_to_date_ongoing!$K187*Achievement_to_date_ongoing!M187,"") -> 404383.5933 | M188: =IF($B188>0,Achievement_to_date_ongoing!$K187*Achievement_to_date_ongoing!N187,"") -> 511934.9931 | N188: =IF($B188>0,Achievement_to_date_ongoing!$K187*Achievement_to_date_ongoing!O187,"") -> 511934.9931 | O188: =IF($B188>0,Achievement_to_date_ongoing!$K187*Achievement_to_date_ongoing!P187,"") -> 511934.9931
B189: =Achievement_to_date_ongoing!B188 -> 131578 | C189: =IF($B189>0, Achievement_to_date_ongoing!C188, "") -> 4 | D189: =IF($B189>0, Achievement_to_date_ongoing!D188, "") -> All | E189: =IF($B189>0, Achievement_to_date_ongoing!E188, "") -> 1F | F189: =IF($B189>0, Achievement_to_date_ongoing!F188, "") -> All | G189: 339461.1184 | H189: 368725.58 | I189: 368725.58 | J189: 368725.58 | L189: =IF($B189>0,Achievement_to_date_ongoing!$K188*Achievement_to_date_ongoing!M188,"") -> 339461.1184 | M189: =IF($B189>0,Achievement_to_date_ongoing!$K188*Achievement_to_date_ongoing!N188,"") -> 368725.58 | N189: =IF($B189>0,Achievement_to_date_ongoing!$K188*Achievement_to_date_ongoing!O188,"") -> 368725.58 | O189: =IF($B189>0,Achievement_to_date_ongoing!$K188*Achievement_to_date_ongoing!P188,"") -> 368725.58
B190: =Achievement_to_date_ongoing!B189 -> 132988 | C190: =IF($B190>0, Achievement_to_date_ongoing!C189, "") -> 4 | D190: =IF($B190>0, Achievement_to_date_ongoing!D189, "") -> All | E190: =IF($B190>0, Achievement_to_date_ongoing!E189, "") -> 1F | F190: =IF($B190>0, Achievement_to_date_ongoing!F189, "") -> All | G190: 692.0005728 | H190: 478059.8181 | I190: 478059.8181 | J190: 478059.8181 | L190: =IF($B190>0,Achievement_to_date_ongoing!$K189*Achievement_to_date_ongoing!M189,"") -> 692.0005728 | M190: =IF($B190>0,Achievement_to_date_ongoing!$K189*Achievement_to_date_ongoing!N189,"") -> 478059.8181 | N190: =IF($B190>0,Achievement_to_date_ongoing!$K189*Achievement_to_date_ongoing!O189,"") -> 478059.8181 | O190: =IF($B190>0,Achievement_to_date_ongoing!$K189*Achievement_to_date_ongoing!P189,"") -> 478059.8181
B191: =Achievement_to_date_ongoing!B190 -> 136341 | C191: =IF($B191>0, Achievement_to_date_ongoing!C190, "") -> 4 | D191: =IF($B191>0, Achievement_to_date_ongoing!D190, "") -> All | E191: =IF($B191>0, Achievement_to_date_ongoing!E190, "") -> 1F | F191: =IF($B191>0, Achievement_to_date_ongoing!F190, "") -> All | G191: 0 | H191: 441517.8452 | I191: 471154.0104 | J191: 471154.0104 | L191: =IF($B191>0,Achievement_to_date_ongoing!$K190*Achievement_to_date_ongoing!M190,"") -> 0 | M191: =IF($B191>0,Achievement_to_date_ongoing!$K190*Achievement_to_date_ongoing!N190,"") -> 441517.8452 | N191: =IF($B191>0,Achievement_to_date_ongoing!$K190*Achievement_to_date_ongoing!O190,"") -> 471154.0104 | O191: =IF($B191>0,Achievement_to_date_ongoing!$K190*Achievement_to_date_ongoing!P190,"") -> 471154.0104
B192: =Achievement_to_date_ongoing!B191 -> 133328 | C192: =IF($B192>0, Achievement_to_date_ongoing!C191, "") -> 4 | D192: =IF($B192>0, Achievement_to_date_ongoing!D191, "") -> All | E192: =IF($B192>0, Achievement_to_date_ongoing!E191, "") -> 1F | F192: =IF($B192>0, Achievement_to_date_ongoing!F191, "") -> All | G192: 0 | H192: 773319.8121 | I192: 800795.027 | J192: 800795.027 | L192: =IF($B192>0,Achievement_to_date_ongoing!$K191*Achievement_to_date_ongoing!M191,"") -> 0 | M192: =IF($B192>0,Achievement_to_date_ongoing!$K191*Achievement_to_date_ongoing!N191,"") -> 773319.8121 | N192: =IF($B192>0,Achievement_to_date_ongoing!$K191*Achievement_to_date_ongoing!O191,"") -> 800795.027 | O192: =IF($B192>0,Achievement_to_date_ongoing!$K191*Achievement_to_date_ongoing!P191,"") -> 800795.027
B193: =Achievement_to_date_ongoing!B192 -> 130216 | C193: =IF($B193>0, Achievement_to_date_ongoing!C192, "") -> 4 | D193: =IF($B193>0, Achievement_to_date_ongoing!D192, "") -> All | E193: =IF($B193>0, Achievement_to_date_ongoing!E192, "") -> 1F | F193: =IF($B193>0, Achievement_to_date_ongoing!F192, "") -> All | G193: 169800.2786 | H193: 1178662.403 | I193: 1178662.403 | J193: 1178662.403 | L193: =IF($B193>0,Achievement_to_date_ongoing!$K192*Achievement_to_date_ongoing!M192,"") -> 169800.2786 | M193: =IF($B193>0,Achievement_to_date_ongoing!$K192*Achievement_to_date_ongoing!N192,"") -> 1178662.403 | N193: =IF($B193>0,Achievement_to_date_ongoing!$K192*Achievement_to_date_ongoing!O192,"") -> 1178662.403 | O193: =IF($B193>0,Achievement_to_date_ongoing!$K192*Achievement_to_date_ongoing!P192,"") -> 1178662.403
B194: =Achievement_to_date_ongoing!B193 -> 135103 | C194: =IF($B194>0, Achievement_to_date_ongoing!C193, "") -> 4 | D194: =IF($B194>0, Achievement_to_date_ongoing!D193, "") -> All | E194: =IF($B194>0, Achievement_to_date_ongoing!E193, "") -> 1F | F194: =IF($B194>0, Achievement_to_date_ongoing!F193, "") -> All | G194: 0 | H194: 159952.3452 | I194: 159952.3452 | J194: 159952.3452 | L194: =IF($B194>0,Achievement_to_date_ongoing!$K193*Achievement_to_date_ongoing!M193,"") -> 0 | M194: =IF($B194>0,Achievement_to_date_ongoing!$K193*Achievement_to_date_ongoing!N193,"") -> 159952.3452 | N194: =IF($B194>0,Achievement_to_date_ongoing!$K193*Achievement_to_date_ongoing!O193,"") -> 159952.3452 | O194: =IF($B194>0,Achievement_to_date_ongoing!$K193*Achievement_to_date_ongoing!P193,"") -> 159952.3452
B195: =Achievement_to_date_ongoing!B194 -> 130609 | C195: =IF($B195>0, Achievement_to_date_ongoing!C194, "") -> 4 | D195: =IF($B195>0, Achievement_to_date_ongoing!D194, "") -> All | E195: =IF($B195>0, Achievement_to_date_ongoing!E194, "") -> 1F | F195: =IF($B195>0, Achievement_to_date_ongoing!F194, "") -> All | G195: 172655.2213 | H195: 531673.9302 | I195: 531673.9302 | J195: 531673.9302 | L195: =IF($B195>0,Achievement_to_date_ongoing!$K194*Achievement_to_date_ongoing!M194,"") -> 172655.2213 | M195: =IF($B195>0,Achievement_to_date_ongoing!$K194*Achievement_to_date_ongoing!N194,"") -> 531673.9302 | N195: =IF($B195>0,Achievement_to_date_ongoing!$K194*Achievement_to_date_ongoing!O194,"") -> 531673.9302 | O195: =IF($B195>0,Achievement_to_date_ongoing!$K194*Achievement_to_date_ongoing!P194,"") -> 531673.9302
B196: =Achievement_to_date_ongoing!B195 -> 131170 | C196: =IF($B196>0, Achievement_to_date_ongoing!C195, "") -> 4 | D196: =IF($B196>0, Achievement_to_date_ongoing!D195, "") -> All | E196: =IF($B196>0, Achievement_to_date_ongoing!E195, "") -> 1F | F196: =IF($B196>0, Achievement_to_date_ongoing!F195, "") -> All | G196: 324124.2332 | H196: 415395.3598 | I196: 415395.3598 | J196: 415395.3598 | L196: =IF($B196>0,Achievement_to_date_ongoing!$K195*Achievement_to_date_ongoing!M195,"") -> 324124.2332 | M196: =IF($B196>0,Achievement_to_date_ongoing!$K195*Achievement_to_date_ongoing!N195,"") -> 415395.3598 | N196: =IF($B196>0,Achievement_to_date_ongoing!$K195*Achievement_to_date_ongoing!O195,"") -> 415395.3598 | O196: =IF($B196>0,Achievement_to_date_ongoing!$K195*Achievement_to_date_ongoing!P195,"") -> 415395.3598
B197: =Achievement_to_date_ongoing!B196 -> 131109 | C197: =IF($B197>0, Achievement_to_date_ongoing!C196, "") -> 4 | D197: =IF($B197>0, Achievement_to_date_ongoing!D196, "") -> All | E197: =IF($B197>0, Achievement_to_date_ongoing!E196, "") -> 1F | F197: =IF($B197>0, Achievement_to_date_ongoing!F196, "") -> All | G197: 8923.930044 | H197: 2382356.957 | I197: 2382356.957 | J197: 2382356.957 | L197: =IF($B197>0,Achievement_to_date_ongoing!$K196*Achievement_to_date_ongoing!M196,"") -> 8923.930044 | M197: =IF($B197>0,Achievement_to_date_ongoing!$K196*Achievement_to_date_ongoing!N196,"") -> 2382356.957 | N197: =IF($B197>0,Achievement_to_date_ongoing!$K196*Achievement_to_date_ongoing!O196,"") -> 2382356.957 | O197: =IF($B197>0,Achievement_to_date_ongoing!$K196*Achievement_to_date_ongoing!P196,"") -> 2382356.957
B198: =Achievement_to_date_ongoing!B197 -> 131171 | C198: =IF($B198>0, Achievement_to_date_ongoing!C197, "") -> 4 | D198: =IF($B198>0, Achievement_to_date_ongoing!D197, "") -> All | E198: =IF($B198>0, Achievement_to_date_ongoing!E197, "") -> 1F | F198: =IF($B198>0, Achievement_to_date_ongoing!F197, "") -> All | G198: 17105.01624 | H198: 690767.6817 | I198: 690767.6817 | J198: 690767.6817 | L198: =IF($B198>0,Achievement_to_date_ongoing!$K197*Achievement_to_date_ongoing!M197,"") -> 17105.01624 | M198: =IF($B198>0,Achievement_to_date_ongoing!$K197*Achievement_to_date_ongoing!N197,"") -> 690767.6817 | N198: =IF($B198>0,Achievement_to_date_ongoing!$K197*Achievement_to_date_ongoing!O197,"") -> 690767.6817 | O198: =IF($B198>0,Achievement_to_date_ongoing!$K197*Achievement_to_date_ongoing!P197,"") -> 690767.6817
B199: =Achievement_to_date_ongoing!B198 -> 133475 | C199: =IF($B199>0, Achievement_to_date_ongoing!C198, "") -> 4 | D199: =IF($B199>0, Achievement_to_date_ongoing!D198, "") -> All | E199: =IF($B199>0, Achievement_to_date_ongoing!E198, "") -> 1F | F199: =IF($B199>0, Achievement_to_date_ongoing!F198, "") -> All | G199: 0 | H199: 474221.6897 | I199: 474221.6897 | J199: 474221.6897 | L199: =IF($B199>0,Achievement_to_date_ongoing!$K198*Achievement_to_date_ongoing!M198,"") -> 0 | M199: =IF($B199>0,Achievement_to_date_ongoing!$K198*Achievement_to_date_ongoing!N198,"") -> 474221.6897 | N199: =IF($B199>0,Achievement_to_date_ongoing!$K198*Achievement_to_date_ongoing!O198,"") -> 474221.6897 | O199: =IF($B199>0,Achievement_to_date_ongoing!$K198*Achievement_to_date_ongoing!P198,"") -> 474221.6897
B200: =Achievement_to_date_ongoing!B199 -> 132216 | C200: =IF($B200>0, Achievement_to_date_ongoing!C199, "") -> 4 | D200: =IF($B200>0, Achievement_to_date_ongoing!D199, "") -> All | E200: =IF($B200>0, Achievement_to_date_ongoing!E199, "") -> 1F | F200: =IF($B200>0, Achievement_to_date_ongoing!F199, "") -> All | G200: 415815.9985 | H200: 561660.7984 | I200: 561660.7984 | J200: 561660.7984 | L200: =IF($B200>0,Achievement_to_date_ongoing!$K199*Achievement_to_date_ongoing!M199,"") -> 415815.9985 | M200: =IF($B200>0,Achievement_to_date_ongoing!$K199*Achievement_to_date_ongoing!N199,"") -> 561660.7984 | N200: =IF($B200>0,Achievement_to_date_ongoing!$K199*Achievement_to_date_ongoing!O199,"") -> 561660.7984 | O200: =IF($B200>0,Achievement_to_date_ongoing!$K199*Achievement_to_date_ongoing!P199,"") -> 561660.7984
B201: =Achievement_to_date_ongoing!B200 -> 133430 | C201: =IF($B201>0, Achievement_to_date_ongoing!C200, "") -> 4 | D201: =IF($B201>0, Achievement_to_date_ongoing!D200, "") -> All | E201: =IF($B201>0, Achievement_to_date_ongoing!E200, "") -> 1F | F201: =IF($B201>0, Achievement_to_date_ongoing!F200, "") -> All | G201: 0 | H201: 466788.1562 | I201: 484796.1932 | J201: 484796.1932 | L201: =IF($B201>0,Achievement_to_date_ongoing!$K200*Achievement_to_date_ongoing!M200,"") -> 0 | M201: =IF($B201>0,Achievement_to_date_ongoing!$K200*Achievement_to_date_ongoing!N200,"") -> 466788.1562 | N201: =IF($B201>0,Achievement_to_date_ongoing!$K200*Achievement_to_date_ongoing!O200,"") -> 484796.1932 | O201: =IF($B201>0,Achievement_to_date_ongoing!$K200*Achievement_to_date_ongoing!P200,"") -> 484796.1932
B202: =Achievement_to_date_ongoing!B201 -> 133129 | C202: =IF($B202>0, Achievement_to_date_ongoing!C201, "") -> 4 | D202: =IF($B202>0, Achievement_to_date_ongoing!D201, "") -> All | E202: =IF($B202>0, Achievement_to_date_ongoing!E201, "") -> 1F | F202: =IF($B202>0, Achievement_to_date_ongoing!F201, "") -> All | G202: 0 | H202: 784876.5246 | I202: 784876.5246 | J202: 784876.5246 | L202: =IF($B202>0,Achievement_to_date_ongoing!$K201*Achievement_to_date_ongoing!M201,"") -> 0 | M202: =IF($B202>0,Achievement_to_date_ongoing!$K201*Achievement_to_date_ongoing!N201,"") -> 784876.5246 | N202: =IF($B202>0,Achievement_to_date_ongoing!$K201*Achievement_to_date_ongoing!O201,"") -> 784876.5246 | O202: =IF($B202>0,Achievement_to_date_ongoing!$K201*Achievement_to_date_ongoing!P201,"") -> 784876.5246
... 358 more rows

Sheet Project_characteristics
A1: PA 1
E2: New Budget | F2: Remaining budget | G2: Add/Substract | H2: Comments
B3: Estimated budget | C3: =E3 -> 19783251.81 | E3: =F3+G3 -> 19783251.81 | F3: 19783251.81 | G3: 0
B4: Remaining projects | C4: =IF(C3/D18<0,0,C3/D18) -> 13.11814369 | P4: Project count CDF | W4: Financial disbursement curve | AE4: Non-cumulative new projects | AJ4: Disbursement matrix | AQ4: Completion matrix | AW4: Time elapsed
B5: CDF | C5: 2014 | D5: 2015 | E5: 2016 | F5: 2017 | G5: 2018 | H5: 2019 | I5: 2020 | J5: =+I5+1 -> 2021 | K5: Current value | L5: =+J5+1 -> 2022 | M5: =+L5+1 -> 2023
B6: Data | C6: 0 | D6: 0 | E6: 0 | F6: 0 | G6: 0 | H6: 2 | I6: 11 | J6: 11 | K6: 11 | AJ6: 2020* | AK6: 2021 | AL6: 2022 | AM6: 2023 | AQ6: 2020* | AR6: 2021 | AS6: 2022 | AT6: 2023 | AW6: 2020* | AX6: 2021 | AY6: 2022 | AZ6: 2023
B7: Statistical forecast | L7: =K6+($C4*0.4175) -> 16.47682499 | M7: =L7+($C4*0.4175) -> 21.95364999 | AE7: 2020* | AF7: 0 | AI7: 2020* | AJ7: =AW7*C13/100 -> 0.684610419 | AK7: 0 | AL7: 0 | AM7: 0 | AP7: 2020* | AQ7: =IF($C$19/365 > AW7, 0, 1) -> 0 | AR7: =IF($C$19/365 > AX7, 0, 1) -> 0 | AS7: 0 | AT7: 0 | AV7: 2020* | AW7: =(12 - MONTH(Achievement_finalised!$D$1))/12 -> 0.8333333333 | AX7: 0 | AY7: 0 | AZ7: 0
B8: Forecast | L8: =ROUND(L7,0) -> 16 | M8: =ROUND(M7,0) -> 22 | AE8: 2021* | AF8: 0 | AI8: 2021 | AJ8: =D13/100 -> 1 | AK8: =C13/100 -> 0.8215325028 | AL8: 0 | AM8: 0 | AP8: 2021 | AQ8: 0 | AR8: 0 | AS8: 0 | AT8: 0 | AV8: 2021 | AW8: =1+AW7 -> 1.833333333 | AX8: =AW7 -> 0.8333333333 | AY8: 0 | AZ8: 0
AE9: 2022 | AF9: =IF(YEAR(Achievement_finalised!D1)<Project_characteristics!$AE$9,(L8-J6),(L8-J6)*Project_characteristics!AY9) -> 5 | AI9: 2022 | AJ9: =E13/100 -> 1 | AK9: =AJ8 -> 1 | AL9: =AK8 -> 0.8215325028 | AM9: 0 | AP9: 2022 | AQ9: 1 | AR9: 0 | AS9: 0 | AT9: 0 | AV9: 2022 | AW9: =+AW8+1 -> 2.833333333 | AX9: =AW8 -> 1.833333333 | AY9: =AX8 -> 0.8333333333 | AZ9: 0
AE10: 2023 | AF10: =IF(YEAR(Achievement_finalised!D1)<Project_characteristics!$AE$10,(M8-L8),(M8-L8)*Project_characteristics!AZ10) -> 6 | AI10: 2023 | AJ10: =F13/100 -> 1 | AK10: =AJ9 -> 1 | AL10: =AK9 -> 1 | AM10: =AL9 -> 0.8215325028 | AP10: 2023 | AQ10: 1 | AR10: 1 | AS10: 0 | AT10: 0 | AV10: 2023 | AW10: =+AW9+1 -> 3.833333333 | AX10: =AW9 -> 2.833333333 | AY10: =AX9 -> 1.833333333 | AZ10: =AY9 -> 0.8333333333
B11: Disbursement curve | C11: t+0 | D11: t+1 | E11: t+2 | F11: t+3
B12: Data | C12: 82.15325028 | D12: 100 | E12: 100 | F12: 100
B13: Forecast | C13: =C12 -> 82.15325028 | D13: =D12 -> 100 | E13: 100 | F13: 100
B16: Indicators | C16: Project length | D16: Project budget | E16: 1.3 | F16: 1F
B17: Region | E17: All | F17: All
B18: Average | C18: 683.0909091 | D18: 1508083.176 | E18: 0.75 | F18: 205333.2
B19: Forecast | C19: =ROUND(C18,0) -> 683 | D19: =D18 -> 1508083.176 | E19: 0.75 | F19: 205333.2
A22: PA 2
E23: New Budget | F23: Remaining budget | G23: Add/Substract | H23: Comments
B24: Estimated budget | C24: 95762697.13 | E24: =F24+G24 -> 1558551.095 | F24: 1558551.095 | G24: 0
B25: Remaining projects | C25: =IF(C24/D39<0,0,C24/D39) -> 32.30238793 | P25: Project count CDF | W25: Financial disbursement curve | AE25: Non-cumulative new projects | AJ25: Disbursement matrix | AQ25: Completion matrix | AW25: Time elapsed
B26: CDF | C26: 2014 | D26: =+C26+1 -> 2015 | E26: =+D26+1 -> 2016 | F26: =+E26+1 -> 2017 | G26: =+F26+1 -> 2018 | H26: =+G26+1 -> 2019 | I26: =+H26+1 -> 2020 | J26: 2021 | K26: Current value | L26: =+J26+1 -> 2022 | M26: =+L26+1 -> 2023
B27: Data | C27: 0 | D27: 0 | E27: 0 | F27: 2 | G27: 34 | H27: 75 | I27: 124 | J27: 144 | K27: 157 | AJ27: 2020* | AK27: 2021 | AL27: 2022 | AM27: 2023 | AQ27: 2020* | AR27: 2021 | AS27: 2022 | AT27: 2023 | AW27: 2020* | AX27: 2021 | AY27: 2022 | AZ27: 2023
B28: Statistical forecast | L28: =K27+($C25*0.4175) -> 170.486247 | M28: =L28+($C25*0.4175) -> 183.9724939 | AE28: 2020* | AF28: 0 | AI28: 2020* | AJ28: =AW28*C34/100 -> 0.7252519 | AK28: 0 | AL28: 0 | AM28: 0 | AP28: 2020* | AQ28: =IF($C$40/365 > AW28, 0, 1) -> 0 | AR28: 0 | AS28: 0 | AT28: 0 | AV28: 2020* | AW28: =(12 - MONTH(Achievement_finalised!$D$1))/12 -> 0.8333333333 | AX28: 0 | AY28: 0 | AZ28: 0
B29: Forecast | L29: =K27 -> 157 | M29: =L29 -> 157 | AE29: 2021* | AF29: 0 | AI29: 2021 | AJ29: =D34/100 -> 1 | AK29: =C34/100 -> 0.87030228 | AL29: 0 | AM29: 0 | AP29: 2021 | AQ29: 1 | AR29: 0 | AS29: 0 | AT29: 0 | AV29: 2021 | AW29: =1+AW28 -> 1.833333333 | AX29: =AW28 -> 0.8333333333 | AY29: 0 | AZ29: 0
AE30: 2022 | AF30: =IF(YEAR(Achievement_finalised!D22)<Project_characteristics!$AE$9,(L29-J27),(L29-J27)*Project_characteristics!AY30) -> 13 | AI30: 2022 | AJ30: =E34/100 -> 1 | AK30: =AJ29 -> 1 | AL30: =AK29 -> 0.87030228 | AM30: 0 | AP30: 2022 | AQ30: 1 | AR30: 1 | AS30: 0 | AT30: 0 | AV30: 2022 | AW30: =+AW29+1 -> 2.833333333 | AX30: =AW29 -> 1.833333333 | AY30: =AX29 -> 0.8333333333 | AZ30: 0
AE31: 2023 | AF31: =IF(YEAR(Achievement_finalised!D22)<Project_characteristics!$AE$10,(M29-L29),(M29-L29)*Project_characteristics!AZ31) -> 0 | AI31: 2023 | AJ31: =F34/100 -> 1 | AK31: =AJ30 -> 1 | AL31: =AK30 -> 1 | AM31: =AL30 -> 0.87030228 | AP31: 2023 | AQ31: 1 | AR31: 1 | AS31: 1 | AT31: 0 | AV31: 2023 | AW31: =+AW30+1 -> 3.833333333 | AX31: =AW30 -> 2.833333333 | AY31: =AX30 -> 1.833333333 | AZ31: =AY30 -> 0.8333333333
B32: Disbursement curve | C32: t+0 | D32: t+1 | E32: t+2 | F32: t+3
B33: Data | C33: 87.030228 | D33: 100 | E33: 100 | F33: 100
B34: Forecast | C34: =C33 -> 87.030228 | D34: =D33 -> 100 | E34: =E33 -> 100 | F34: =F33 -> 100
B37: Indicators | C37: Project length | D37: Project budget | E37: 1F | F37: 2.2 | G37: 2.3
B38: Region | E38: All | F38: All | G38: All
B39: Average | C39: 594.2738854 | D39: 2964570.215 | E39: 1486729.828 | F39: 0.2790697674 | G39: 0.2635658915
B40: Forecast | C40: =C39 -> 594.2738854 | D40: =D39 -> 2964570.215 | E40: 1486729.828 | F40: 0.2790697674 | G40: 0.2635658915
A43: PA 3
E44: New Budget | F44: Remaining budget | G44: Add/Substract | H44: Comments
B45: Estimated budget | C45: =E45 -> 4492545.643 | E45: =F45+G45 -> 4492545.643 | F45: 4492545.643 | G45: 0
B46: Remaining projects | C46: =IF(C45/D60<0,0,C45/D60) -> 0.7035814508 | P46: Project count CDF | W46: Financial disbursement curve | AE46: Non-cumulative new projects | AJ46: Disbursement matrix | AQ46: Completion matrix | AW46: Time elapsed
B47: CDF | C47: 2014 | D47: =+C47+1 -> 2015 | E47: =+D47+1 -> 2016 | F47: =+E47+1 -> 2017 | G47: =+F47+1 -> 2018 | H47: =+G47+1 -> 2019 | I47: =+H47+1 -> 2020 | J47: 2021 | K47: Current value | L47: =+J47+1 -> 2022 | M47: =+L47+1 -> 2023
B48: Data | C48: 0 | D48: 0 | E48: 0 | F48: 0 | G48: 0 | H48: 4 | I48: 4 | J48: 4 | K48: 4 | AJ48: 2020* | AK48: 2021 | AL48: 2022 | AM48: 2023 | AQ48: 2020* | AR48: 2021 | AS48: 2022 | AT48: 2023 | AW48: 2020* | AX48: 2021 | AY48: 2022 | AZ48: 2023
B49: Statistical forecast | L49: =K48+($C46*0.4175) -> 4.293745256 | M49: =L49+($C46*0.4175) -> 4.587490511 | AE49: 2020* | AF49: 0 | AI49: 2020* | AJ49: =AW49*C55/100 -> 0.7340785391 | AK49: 0 | AL49: 0 | AM49: 0 | AP49: 2020* | AQ49: =IF($C$61/365 > AW49, 0, 1) -> 0 | AR49: 0 | AS49: 0 | AT49: 0 | AV49: 2020* | AW49: =(12 - MONTH(Achievement_finalised!$D$1))/12 -> 0.8333333333 | AX49: 0 | AY49: 0 | AZ49: 0
B50: Forecast | L50: 5 | M50: =ROUND(M49,0) -> 5 | AE50: 2021* | AF50: 0 | AI50: 2021 | AJ50: =D55/100 -> 1 | AK50: =C55/100 -> 0.8808942469 | AL50: 0 | AM50: 0 | AP50: 2021 | AQ50: 1 | AR50: 0 | AS50: 0 | AT50: 0 | AV50: 2021 | AW50: =1+AW49 -> 1.833333333 | AX50: =AW49 -> 0.8333333333 | AY50: 0 | AZ50: 0
AE51: 2022 | AF51: =IF(YEAR(Achievement_finalised!D43)<Project_characteristics!$AE$9,(L50-J48),(L50-J48)*Project_characteristics!AY51) -> 1 | AI51: 2022 | AJ51: =E55/100 -> 1 | AK51: =AJ50 -> 1 | AL51: =AK50 -> 0.8808942469 | AM51: 0 | AP51: 2022 | AQ51: 1 | AR51: 1 | AS51: 0 | AT51: 0 | AV51: 2022 | AW51: =+AW50+1 -> 2.833333333 | AX51: =AW50 -> 1.833333333 | AY51: =AX50 -> 0.8333333333 | AZ51: 0
AE52: 2023 | AF52: =IF(YEAR(Achievement_finalised!D43)<Project_characteristics!$AE$10,(M50-L50),(M50-L50)*Project_characteristics!AZ52) -> 0 | AI52: 2023 | AJ52: =F55/100 -> 1 | AK52: =AJ51 -> 1 | AL52: =AK51 -> 1 | AM52: =AL51 -> 0.8808942469 | AP52: 2023 | AQ52: 1 | AR52: 1 | AS52: 1 | AT52: 0 | AV52: 2023 | AW52: =+AW51+1 -> 3.833333333 | AX52: =AW51 -> 2.833333333 | AY52: =AX51 -> 1.833333333 | AZ52: =AY51 -> 0.8333333333
B53: Disbursement curve | C53: t+0 | D53: t+1 | E53: t+2 | F53: t+3
B54: Data | C54: 88.08942469 | D54: 100 | E54: 100 | F54: 100
B55: Forecast | C55: =C54 -> 88.08942469 | D55: =D54 -> 100 | E55: =E54 -> 100 | F55: =F54 -> 100
B58: Indicators | C58: Project length | D58: Project budget | E58: 1F | F58: 3.1 | G58: 3.2
B59: Region | E59: All | F59: All | G59: All
B60: Average | C60: 579 | D60: 6385253.105 | E60: 3270343.63 | F60: 0.5 | G60: 0.1666666667
B61: Forecast | C61: 365 | D61: =D60 -> 6385253.105 | E61: =E60 -> 3270343.63 | F61: 0 | G61: 1
A64: PA 4
E65: New Budget | F65: Remaining budget | G65: Add/Substract | H65: Comments
B66: Estimated budget | C66: =E66 -> 192393.9423 | E66: =F66+G66 -> 192393.9423 | F66: 192393.9423 | G66: 0
B67: Remaining projects | C67: =IF(C66/D81<0,0,C66/D81) -> 0.263878819 | P67: Project count CDF | W67: Financial disbursement curve | AE67: Non-cumulative new projects | AJ67: Disbursement matrix | AQ67: Completion matrix | AW67: Time elapsed
B68: CDF | C68: 2014 | D68: 2015 | E68: 2016 | F68: 2017 | G68: 2018 | H68: 2019 | I68: 2020 | J68: =+I68+1 -> 2021 | K68: Current value | L68: =+J68+1 -> 2022 | M68: =+L68+1 -> 2023
B69: Data | C69: 0 | D69: 0 | E69: 0 | F69: 22 | G69: 43 | H69: 52 | I69: 182 | J69: 258 | K69: 267 | AJ69: 2020* | AK69: 2021 | AL69: 2022 | AM69: 2023 | AQ69: 2020* | AR69: 2021 | AS69: 2022 | AT69: 2023 | AW69: 2020* | AX69: 2021 | AY69: 2022 | AZ69: 2023
B70: Statistical forecast | L70: =K69+($C67*0.4175) -> 267.1101694 | M70: =L70+($C67*0.4175) -> 267.2203388 | AE70: 2020* | AF70: 0 | AI70: 2020* | AJ70: =AW70*C76/100 -> 0.684610419 | AK70: 0 | AL70: 0 | AM70: 0 | AP70: 2020* | AQ70: =IF($C$82/365 > AW70, 0, 1) -> 0 | AR70: 0 | AS70: 0 | AT70: 0 | AV70: 2020* | AW70: =(12 - MONTH(Achievement_finalised!$D$1))/12 -> 0.8333333333 | AX70: 0 | AY70: 0 | AZ70: 0
B71: Forecast | L71: =ROUND(L70,0) -> 267 | M71: =ROUND(M70,0) -> 267 | AE71: 2021* | AF71: 0 | AI71: 2021 | AJ71: =D76/100 -> 1 | AK71: =C76/100 -> 0.8215325028 | AL71: 0 | AM71: 0 | AP71: 2021 | AQ71: 0 | AR71: 0 | AS71: 0 | AT71: 0 | AV71: 2021 | AW71: =1+AW70 -> 1.833333333 | AX71: =AW70 -> 0.8333333333 | AY71: 0 | AZ71: 0
AE72: 2022 | AF72: =IF(YEAR(Achievement_finalised!D64)<Project_characteristics!$AE$9,(L71-J69),(L71-J69)*Project_characteristics!AY72) -> 9 | AI72: 2022 | AJ72: =E76/100 -> 1 | AK72: =AJ71 -> 1 | AL72: =AK71 -> 0.8215325028 | AM72: 0 | AP72: 2022 | AQ72: 1 | AR72: 0 | AS72: 0 | AT72: 0 | AV72: 2022 | AW72: =+AW71+1 -> 2.833333333 | AX72: =AW71 -> 1.833333333 | AY72: =AX71 -> 0.8333333333 | AZ72: 0
AE73: 2023 | AF73: =IF(YEAR(Achievement_finalised!D64)<Project_characteristics!$AE$10,(M71-L71),(M71-L71)*Project_characteristics!AZ73) -> 0 | AI73: 2023 | AJ73: =F76/100 -> 1 | AK73: =AJ72 -> 1 | AL73: =AK72 -> 1 | AM73: =AL72 -> 0.8215325028 | AP73: 2023 | AQ73: 1 | AR73: 1 | AS73: 0 | AT73: 0 | AV73: 2023 | AW73: =+AW72+1 -> 3.833333333 | AX73: =AW72 -> 2.833333333 | AY73: =AX72 -> 1.833333333 | AZ73: =AY72 -> 0.8333333333
B74: Disbursement curve | C74: t+0 | D74: t+1 | E74: t+2 | F74: t+3
B75: Data | C75: 82.15325028 | D75: 100 | E75: 100 | F75: 100
B76: Forecast | C76: =C75 -> 82.15325028 | D76: =D75 -> 100 | E76: =E75 -> 100 | F76: =F75 -> 100
B79: Indicators | C79: Project length | D79: Project budget | E79: 1F | F79: 4.1 | G79: 4.2
B80: Region | E80: All | F80: All | G80: All
B81: Average | C81: 688.3370787 | D81: 729099.6033 | E81: 248039.247 | F81: 0.07547169811 | G81: 0.01886792453
B82: Forecast | C82: =ROUND(C81,0) -> 688 | D82: =D81 -> 729099.6033 | E82: 248039.247 | F82: 0.07547169811 | G82: 0.01886792453
A85: PA 5
E86: New Budget | F86: Remaining budget | G86: Add/Substract | H86: Comments
B87: Estimated budget | C87: =E87 -> 1308126.713 | E87: =F87+G87 -> 1308126.713 | F87: 1308126.713 | G87: 0
B88: Remaining projects | C88: =IF(C87/D102<0,0,C87/D102) -> 0.4685838496 | P88: Project count CDF | W88: Financial disbursement curve | AE88: Non-cumulative new projects | AJ88: Disbursement matrix | AQ88: Completion matrix
B89: CDF | C89: 2014 | D89: 2015 | E89: 2016 | F89: 2017 | G89: 2018 | H89: 2019 | I89: 2020 | J89: =+I89+1 -> 2021 | K89: Current value | L89: =+J89+1 -> 2022 | M89: =+L89+1 -> 2023
B90: Data | C90: 0 | D90: 0 | E90: 0 | F90: 0 | G90: 4 | H90: 9 | I90: 13 | J90: 18 | K90: 18 | AJ90: 2020* | AK90: 2021 | AL90: 2022 | AM90: 2023 | AQ90: 2020* | AR90: 2021 | AS90: 2022 | AT90: 2023
B91: Statistical forecast | L91: =K90+($C88*0.4175) -> 18.19563376 | M91: =L91+($C88*0.4175) -> 18.39126751 | AE91: 2020* | AF91: 0 | AI91: 2020* | AJ91: =AW91*C97/100 -> 0.6956319015 | AK91: 0 | AL91: 0 | AM91: 0 | AP91: 2020* | AQ91: =IF($C$103/365 > AW91, 0, 1) -> 0 | AR91: =IF($C$103/365 > AX91, 0, 1) -> 0 | AS91: 0 | AT91: 0 | AW91: =(12 - MONTH(Achievement_finalised!$D$1))/12 -> 0.8333333333 | AX91: 0 | AY91: 0 | AZ91: 0
B92: Forecast | L92: =ROUND(L91,0) -> 18 | M92: =ROUND(M91,0) -> 18 | AE92: 2021* | AF92: 0 | AI92: 2021 | AJ92: =D97/100 -> 1 | AK92: =C97/100 -> 0.8347582818 | AL92: 0 | AM92: 0 | AP92: 2021 | AQ92: =IF($C$103/365 > AW92, 0, 1) -> 1 | AR92: 0 | AS92: 0 | AT92: 0 | AW92: =1+AW91 -> 1.833333333 | AX92: =AW91 -> 0.8333333333 | AY92: 0 | AZ92: 0
AE93: 2022 | AF93: =IF(YEAR(Achievement_finalised!D85)<Project_characteristics!$AE$9,(L92-J90),(L92-J90)*Project_characteristics!AY93) -> 0 | AI93: 2022 | AJ93: =E97/100 -> 1 | AK93: =AJ92 -> 1 | AL93: =AK92 -> 0.8347582818 | AM93: 0 | AP93: 2022 | AQ93: 1 | AR93: 1 | AS93: 0 | AT93: 0 | AW93: =+AW92+1 -> 2.833333333 | AX93: =AW92 -> 1.833333333 | AY93: =AX92 -> 0.8333333333 | AZ93: 0
AE94: 2023 | AF94: =IF(YEAR(Achievement_finalised!D85)<Project_characteristics!$AE$10,(M92-L92),(M92-L92)*Project_characteristics!AZ94) -> 0 | AI94: 2023 | AJ94: =F97/100 -> 1 | AK94: =AJ93 -> 1 | AL94: =AK93 -> 1 | AM94: =AL93 -> 0.8347582818 | AP94: 2023 | AQ94: 1 | AR94: 1 | AS94: 1 | AT94: 0 | AW94: =+AW93+1 -> 3.833333333 | AX94: =AW93 -> 2.833333333 | AY94: =AX93 -> 1.833333333 | AZ94: =AY93 -> 0.8333333333
B95: Disbursement curve | C95: t+0 | D95: t+1 | E95: t+2 | F95: t+3
B96: Data | C96: 83.47582818 | D96: 100 | E96: 100 | F96: 100
B97: Forecast | C97: =C96 -> 83.47582818 | D97: =D96 -> 100 | E97: =E96 -> 100 | F97: =F96 -> 100
B100: Indicators | C100: Project length | D100: Project budget | E100: 1F | F100: 5.3
B101: Region | E101: All | F101: All
B102: Average | C102: 659.3888889 | D102: 2791659.836 | E102: 2009557.273 | F102: 0.8333333333
B103: Forecast | C103: =ROUND(C102,0) -> 659 | D103: =D102 -> 2791659.836 | E103: 2009557.273 | F103: 0.8333333333
A106: PA 6
E107: New Budget | F107: Remaining budget | G107: Add/Substract | H107: Comments
B108: Estimated budget | C108: =E108 -> 1515666.5 | E108: =F108+G108 -> 1515666.5 | F108: =D123-F123 -> 1515666.5 | G108: 0
B109: Remaining projects | C109: =IF(C108/D123<0,0,C108/D123) -> 0.1301308687 | P109: Project count CDF | W109: Financial disbursement curve | AE109: Non-cumulative new projects | AJ109: Disbursement matrix | AQ109: Completion matrix
B110: CDF | C110: 2014 | D110: 2015 | E110: 2016 | F110: 2017 | G110: 2018 | H110: 2019 | I110: 2020 | J110: =+I110+1 -> 2021 | K110: Current value | L110: =+J110+1 -> 2022 | M110: =+L110+1 -> 2023
B111: Data | C111: 0 | D111: 0 | E111: 0 | F111: 0 | G111: 0 | H111: 1 | I111: 1 | J111: 1 | K111: 1 | AJ111: 2020* | AK111: 2021 | AL111: 2022 | AM111: 2023 | AQ111: 2020* | AR111: 2021 | AS111: 2022 | AT111: 2023
B112: Statistical forecast | L112: =K111+($C109*0.4175) -> 1.054329638 | M112: =L112+($C109*0.4175) -> 1.108659275 | AE112: 2020* | AF112: 0 | AI112: 2020* | AJ112: =AW112*C118/100 -> 0.6668873089 | AK112: 0 | AL112: 0 | AM112: 0 | AP112: 2020* | AQ112: =IF($C$103/365 > AW112, 0, 1) -> 0 | AR112: =IF($C$103/365 > AX112, 0, 1) -> 0 | AS112: =IF($C$103/365 > AY112, 0, 1) -> 0 | AT112: =IF($C$103/365 > AZ112, 0, 1) -> 0 | AW112: =(12 - MONTH(Achievement_finalised!$D$1))/12 -> 0.8333333333 | AX112: 0 | AY112: 0 | AZ112: 0
B113: Forecast | L113: =ROUND(L112,0) -> 1 | M113: =ROUND(M112,0) -> 1 | AE113: 2021* | AF113: 0 | AI113: 2021 | AJ113: =D118/100 -> 1 | AK113: =C118/100 -> 0.8002647707 | AL113: 0 | AM113: 0 | AP113: 2021 | AQ113: =IF($C$103/365 > AW113, 0, 1) -> 1 | AR113: 0 | AS113: 0 | AT113: 0 | AW113: =1+AW112 -> 1.833333333 | AX113: =AW112 -> 0.8333333333 | AY113: 0 | AZ113: 0
AE114: 2022 | AF114: =IF(YEAR(Achievement_finalised!D106)<Project_characteristics!$AE$9,(L113-J111),(L113-J111)*Project_characteristics!AY114) -> 0 | AI114: 2022 | AJ114: =E118/100 -> 1 | AK114: =AJ113 -> 1 | AL114: =AK113 -> 0.8002647707 | AM114: 0 | AP114: 2022 | AQ114: 1 | AR114: 1 | AS114: 0 | AT114: 0 | AW114: =+AW113+1 -> 2.833333333 | AX114: =AW113 -> 1.833333333 | AY114: =AX113 -> 0.8333333333 | AZ114: 0
AE115: 2023 | AF115: =IF(YEAR(Achievement_finalised!D106)<Project_characteristics!$AE$10,(M113-L113),(M113-L113)*Project_characteristics!AZ115) -> 0 | AI115: 2023 | AJ115: =F118/100 -> 1 | AK115: =AJ114 -> 1 | AL115: =AK114 -> 1 | AM115: =AL114 -> 0.8002647707 | AP115: 2023 | AQ115: 1 | AR115: 1 | AS115: 1 | AT115: 0 | AW115: =+AW114+1 -> 3.833333333 | AX115: =AW114 -> 2.833333333 | AY115: =AX114 -> 1.833333333 | AZ115: =AY114 -> 0.8333333333
B116: Disbursement curve | C116: t+0 | D116: t+1 | E116: t+2 | F116: t+3
B117: Data | C117: 80.02647707 | D117: 100 | E117: 100 | F117: 100
B118: Forecast | C118: =C117 -> 80.02647707 | D118: =D117 -> 100 | E118: =E117 -> 100 | F118: =F117 -> 100
B121: Indicators | C121: Project length | D121: Project budget | E121: 6.1 | F121: F1
B122: Region | E122: All | F122: All
B123: Average | C123: 731 | D123: 11647248 | E123: 1 | F123: 10131581.5
B124: Forecast | C124: =ROUND(C123,0) -> 731 | D124: =D123 -> 11647248 | E124: 1 | F124: 10131581.5

Sheet Achievement_forecasts_future
G2: User calibrations | L2: Statistical projections
B3: PA | C3: PI | D3: Indicator | E3: Region | F3: Type | G3: 2020 | H3: 2021 | I3: 2022 | J3: 2023 | L3: 2020 | M3: 2021 | N3: 2022 | O3: 2023
B4: 1 | C4: All | D4: 1.3 | E4: All | F4: Physical | G4: 0 | H4: 0 | I4: 0 | J4: 0 | L4: =TRANSPOSE(MMULT(Project_characteristics!AQ7:AT10,Project_characteristics!AF7:AF10)*Project_characteristics!E19) -> 0 | M4: 0 | N4: 0 | O4: 0
B5: 1 | C5: All | D5: 1F | E5: All | F5: Financial | G5: 0 | H5: 0 | I5: 843439.4886 | J5: 2038793.386 | L5: =TRANSPOSE(MMULT(Project_characteristics!AJ7:AM10,Project_characteristics!AF7:AF10)*Project_characteristics!F19) -> 0 | M5: 0 | N5: 843439.4886 | O5: 2038793.386
B6: 2 | C6: All | D6: 1F | E6: All | F6: Financial | G6: 0 | H6: 0 | I6: 16820756.67 | J6: 19327487.76 | L6: =TRANSPOSE(MMULT(Project_characteristics!AJ28:AM31,Project_characteristics!AF28:AF31)*Project_characteristics!E40) -> 0 | M6: 0 | N6: 16820756.67 | O6: 19327487.76
B7: 2 | C7: All | D7: 2.2 | E7: All | F7: Physical | G7: 0 | H7: 0 | I7: 0 | J7: 3.627906977 | L7: =TRANSPOSE(MMULT(Project_characteristics!AQ28:AT31,Project_characteristics!AF28:AF31)*Project_characteristics!F40:G40) -> 0 | M7: 0 | N7: 0 | O7: 3.627906977
B8: 2 | C8: All | D8: 2.3 | E8: All | F8: Physical | G8: 0 | H8: 0 | I8: 0 | J8: 3.426356589 | L8: 0 | M8: 0 | N8: 0 | O8: 3.426356589
B9: 3 | C9: All | D9: 1F | E9: All | F9: Financial | G9: 0 | H9: 0 | I9: 2880826.889 | J9: 3270343.63 | L9: =TRANSPOSE(MMULT(Project_characteristics!AJ49:AM52,Project_characteristics!AF49:AF52)*Project_characteristics!E61) -> 0 | M9: 0 | N9: 2880826.889 | O9: 3270343.63
B10: 3 | C10: All | D10: 3.1 | E10: All | F10: Physical | G10: 0 | H10: 0 | I10: 0 | J10: 0 | L10: =TRANSPOSE(MMULT(Project_characteristics!AQ49:AT52,Project_characteristics!AF49:AF52)*Project_characteristics!F61:G61) -> 0 | M10: 0 | N10: 0 | O10: 0
B11: 3 | C11: All | D11: 3.2 | E11: All | F11: Physical | G11: 0 | H11: 0 | I11: 0 | J11: 1 | L11: 0 | M11: 0 | N11: 0 | O11: 1
B12: 4 | C12: All | D12: 1F | E12: All | F12: Financial | G12: 0 | H12: 0 | I12: 1833950.73 | J12: 2232353.223 | L12: =TRANSPOSE(MMULT(Project_characteristics!AJ70:AM73,Project_characteristics!AF70:AF73)*Project_characteristics!E82) -> 0 | M12: 0 | N12: 1833950.73 | O12: 2232353.223
B13: 4 | C13: All | D13: 4.1 | E13: All | F13: Physical | G13: 0 | H13: 0 | I13: 0 | J13: 0 | L13: =TRANSPOSE(MMULT(Project_characteristics!AQ70:AT73,Project_characteristics!AF70:AF73)*Project_characteristics!F82:G82) -> 0 | M13: 0 | N13: 0 | O13: 0
B14: 4 | C14: All | D14: 4.2 | E14: All | F14: Physical | G14: 0 | H14: 0 | I14: 0 | J14: 0 | L14: 0 | M14: 0 | N14: 0 | O14: 0
B15: 5 | C15: All | D15: 1F | E15: All | F15: Financial | G15: 0 | H15: 0 | I15: 0 | J15: 0 | L15: =TRANSPOSE(MMULT(Project_characteristics!AJ91:AM94,Project_characteristics!AF91:AF94)*Project_characteristics!E103) -> 0 | M15: 0 | N15: 0 | O15: 0
B16: 5 | C16: All | D16: 5.3 | E16: All | F16: Physical | G16: 0 | H16: 0 | I16: 0 | J16: 0 | L16: =TRANSPOSE(MMULT(Project_characteristics!AQ91:AT94,Project_characteristics!AF91:AF94)*Project_characteristics!F103) -> 0 | M16: 0 | N16: 0 | O16: 0
B17: 6 | C17: All | D17: 6.1 | E17: All | F17: Physical | G17: 0 | H17: 0 | I17: 0 | J17: 0 | L17: =TRANSPOSE(MMULT(Project_characteristics!AQ112:AT115,Project_characteristics!AF112:AF115)*Project_characteristics!E124) -> 0 | M17: 0 | N17: 0 | O17: 0
B18: 6 | C18: All | D18: F1 | E18: All | F18: Financial | G18: 0 | H18: 0 | I18: 0 | J18: 0 | L18: =TRANSPOSE(MMULT(Project_characteristics!AJ112:AM115,Project_characteristics!AF112:AF115)*Project_characteristics!F124) -> 0 | M18: 0 | N18: 0 | O18: 0
